Workbook

Sheet Orçamento
O4: UNIDADE ESCOLAR | X4: CÓDIGO INEP
O5: COORDENAÇÃO REGIONAL DE EDUCAÇÃO DE JATAÍ | X5: 52052656
A7: Nmax | O7: OBRA | S7: DATA | X7: CIDADE
A8: =MAX($C$19:$C$380) -> 4 | O8: REFORMA E AMPLIAÇÃO | S8: 2020-05-19 | X8: JATAÍ
O10: CRE | R10: ENDEREÇO | S10: REFERÊNCIA AGETOP | X10: REFERÊNCIA SINAPI
O11: CRE-JATAI | R11: PRAÇA DOM GERMANO, 42 - CENTRO | S11: ABR/19 | T11: DESONERADA | X11: MAR/20 | Y11: DESONERADA
O13: ÁREA EXISTENTE (M²) | R13: ÁREA A CONSTRUIR (M²) | S13: ÁREA A DEMOLIR (M²) | X13: ÁREA TOTAL CONSTRUÍDA (M²)
O14: 450.54 | R14: 1.53 | X14: 452.07
L16: FILTRO | O16: PLANILHA ORÇAMENTÁRIA
A17: Nível E | B17: Save Nivel | C17: Nível C | D17: Altura | E17: n1 | F17: n2 | G17: n3 | H17: n4 | I17: n5 | J17: Czero | K17: Cnível | L17: ↓ | M17: Nível | N17: Nível Corrigido | O17: ITEM | P17: TABELA | Q17: CODIGO | R17: DESCRIÇÃO DOS SERVIÇOS | S17: UNID | T17: QUANT | U17: REPET | V17: QUANT TOTAL | W17: MAT | X17: MO | Y17: T.SERVIÇO UNIT | Z17: VALOR TOTAL | AA17: OBSERVAÇÕES¹
A18: =CHOOSE(1+LOG(1+2*(ORÇAMENTO.Nivel="Nível 1")+4*(ORÇAMENTO.Nivel="Nível 2")+8*(ORÇAMENTO.Nivel="Nível 3")+16*(ORÇAMENTO.Nivel="Nível 4")+32*(ORÇAMENTO.Nivel="Serviço"),2),0,1,2,3,4,"S") -> S | B18: =IF(OR(C18="s",C18=0),OFFSET(B18,-1,0),C18) -> Save Nivel | C18: =IF(OFFSET(C18,-1,0)="L",1,IF(OFFSET(C18,-1,0)=1,2,IF(OR(A18="s",A18=0),"S",IF(AND(OFFSET(C18,-1,0)=2,A18=4),3,IF(AND(OR(OFFSET(C18,-1,0)="s",OFFSET(C18,-1,0)=0),A18<>"s",A18>OFFSET(B18,-1,0)),OFFSET(B18,-1,0),A18))))) -> S | D18: =IF(OR(C18="S",C18=0),0,IF(ISERROR(K18),J18,SMALL(J18:K18,1))) -> 0 | E18: =IF($C18=1,OFFSET(E18,-1,0)+1,OFFSET(E18,-1,0)) -> n1 | F18: =IF($C18=1,0,IF($C18=2,OFFSET(F18,-1,0)+1,OFFSET(F18,-1,0))) -> n2 | G18: =IF(AND($C18<=2,$C18<>0),0,IF($C18=3,OFFSET(G18,-1,0)+1,OFFSET(G18,-1,0))) -> n3 | H18: =IF(AND($C18<=3,$C18<>0),0,IF($C18=4,OFFSET(H18,-1,0)+1,OFFSET(H18,-1,0))) -> n4 | I18: =IF(AND($C18<=4,$C18<>0),0,IF(AND($C18="S",$Y18>0),OFFSET(I18,-1,0)+1,OFFSET(I18,-1,0))) -> n5 | J18: =IF(OR($C18="S",$C18=0),0,MATCH(0,OFFSET($D18,1,$C18,ROW($C$380)-ROW($C18)),0)) -> 0 | K18: =IF(OR($C18="S",$C18=0),0,MATCH(OFFSET($D18,0,$C18)+1,OFFSET($D18,1,$C18,ROW($C$380)-ROW($C18)),0)) -> 0 | M18: Serviço | N18: Serviço | O18: - | P18: SINAPI | R18: (sem código) | S18: - | U18: REPET | V18: - | W18: 0 | X18: 0 | Y18: 0 | Z18: -
A19: 0 | C19: L | D19: =COUNTA(OFFSET(D19,1,0):D$380) -> 360 | E19: =LEFT(O20,1)-1 -> 0 | L19: F | M19: LOTE | N19: LOTE | O19: REFORMA E AMPLIAÇÃO - COORDENAÇÃO REGIONAL DE EDUCAÇÃO DE JATAÍ | Z19: 0
A20: 1 | B20: =IF(OR(C20="s",C20=0),OFFSET(B20,-1,0),C20) -> 1 | C20: =IF(OFFSET(C20,-1,0)="L",1,IF(OFFSET(C20,-1,0)=1,2,IF(OR(A20="s",A20=0),"S",IF(AND(OFFSET(C20,-1,0)=2,A20=4),3,IF(AND(OR(OFFSET(C20,-1,0)="s",OFFSET(C20,-1,0)=0),A20<>"s",A20>OFFSET(B20,-1,0)),OFFSET(B20,-1,0),A20))))) -> 1 | D20: =IF(OR(C20="S",C20=0),0,IF(ISERROR(K20),J20,SMALL(J20:K20,1))) -> 360 | E20: =IF($C20=1,OFFSET(E20,-1,0)+1,OFFSET(E20,-1,0)) -> 1 | F20: =IF($C20=1,0,IF($C20=2,OFFSET(F20,-1,0)+1,OFFSET(F20,-1,0))) -> 0 | G20: =IF(AND($C20<=2,$C20<>0),0,IF($C20=3,OFFSET(G20,-1,0)+1,OFFSET(G20,-1,0))) -> 0 | H20: =IF(AND($C20<=3,$C20<>0),0,IF($C20=4,OFFSET(H20,-1,0)+1,OFFSET(H20,-1,0))) -> 0 | I20: 0 | J20: =IF(OR($C20="S",$C20=0),0,MATCH(0,OFFSET($D20,1,$C20,ROW($C$380)-ROW($C20)),0)) -> 360 | K20: =IF(OR($C20="S",$C20=0),0,MATCH(OFFSET($D20,0,$C20)+1,OFFSET($D20,1,$C20,ROW($C$380)-ROW($C20)),0)) ->  | L20: F | M20: Nível 1 | N20: Nível 1 | O20: 1. | P20: AGETOP | R20: REFORMA E AMPLIAÇÃO | S20: UN | T20: 1 | U20: 1 | V20: 1 | Y20: 0 | Z20: 0
A21: 2 | B21: 2 | C21: 2 | D21: 39 | E21: 1 | F21: 1 | G21: 0 | H21: 0 | I21: 0 | J21: 359 | K21: 39 | M21: Nível 2 | N21: Nível 2 | O21: - | P21: AGETOP | R21: SERVIÇOS PRELIMINARES | S21: - | U21: 1 | V21: - | Y21: 0 | Z21: 0
A22: 3 | B22: 3 | C22: 3 | D22: 2 | E22: 1 | F22: 1 | G22: 1 | H22: 0 | I22: 0 | J22: 38 | K22: 2 | M22: Nível 3 | N22: Nível 3 | O22: - | P22: SINAPI | R22: TELHADO BLOCO 1 | S22: - | U22: 1 | V22: - | W22: 0 | X22: 0 | Y22: 0 | Z22: 0
A23: =CHOOSE(1+LOG(1+2*(ORÇAMENTO.Nivel="Nível 1")+4*(ORÇAMENTO.Nivel="Nível 2")+8*(ORÇAMENTO.Nivel="Nível 3")+16*(ORÇAMENTO.Nivel="Nível 4")+32*(ORÇAMENTO.Nivel="Serviço"),2),0,1,2,3,4,"S") -> S | B23: 3 | C23: S | D23: 0 | E23: 1 | F23: 1 | G23: 1 | H23: 0 | I23: 0 | J23: 0 | K23: 0 | M23: Serviço | N23: Serviço | O23: - | P23: AGETOP | Q23: 20100 | R23: DEMOLIÇÃO - COBERTURA TELHA METÁLICA C/ TRANSP. ATÉ CB. E CARGA | S23: m2 | T23: 168.82 | U23: 1 | V23: 168.82 | Y23: 0 | Z23: 0
A24: =CHOOSE(1+LOG(1+2*(ORÇAMENTO.Nivel="Nível 1")+4*(ORÇAMENTO.Nivel="Nível 2")+8*(ORÇAMENTO.Nivel="Nível 3")+16*(ORÇAMENTO.Nivel="Nível 4")+32*(ORÇAMENTO.Nivel="Serviço"),2),0,1,2,3,4,"S") -> 3 | B24: 3 | C24: 3 | D24: 2 | E24: 1 | F24: 1 | G24: 2 | H24: 0 | I24: 0 | J24: 36 | K24: 2 | M24: Nível 3 | N24: Nível 3 | O24: - | P24: SINAPI | R24: FORRO BLOCO 1 | S24: - | U24: 1 | V24: - | Y24: 0 | Z24: 0
A25: S | B25: 3 | C25: S | D25: 0 | E25: 1 | F25: 1 | G25: 2 | H25: 0 | I25: =IF(AND($C25<=4,$C25<>0),0,IF(AND($C25="S",$Y25>0),OFFSET(I25,-1,0)+1,OFFSET(I25,-1,0))) -> 0 | J25: 0 | K25: 0 | M25: Serviço | N25: Serviço | O25: - | P25: AGETOP | Q25: 20148 | R25: DEMOLIÇÃO DE FORRO PVC ( SOMENTE O FORRO) C/ TRANSP. ATÉ CB. E CARGA | S25: m2 | T25: 159.23 | U25: 1 | V25: 159.23 | Y25: 0 | Z25: 0
A26: 3 | B26: 3 | C26: 3 | D26: 2 | E26: 1 | F26: 1 | G26: 3 | H26: 0 | I26: 0 | J26: 34 | K26: 2 | M26: Nível 3 | N26: Nível 3 | O26: - | P26: SINAPI | R26: TELHADO BLOCO 2 | S26: - | U26: 1 | V26: - | Y26: 0 | Z26: 0
A27: S | B27: 3 | C27: S | D27: 0 | E27: 1 | F27: 1 | G27: 3 | H27: 0 | I27: =IF(AND($C27<=4,$C27<>0),0,IF(AND($C27="S",$Y27>0),OFFSET(I27,-1,0)+1,OFFSET(I27,-1,0))) -> 0 | J27: 0 | K27: 0 | M27: Serviço | N27: Serviço | O27: - | P27: AGETOP | Q27: 20100 | R27: DEMOLIÇÃO - COBERTURA TELHA METÁLICA C/ TRANSP. ATÉ CB. E CARGA | S27: m2 | T27: 114.17 | U27: 1 | V27: 114.17 | Y27: 0 | Z27: 0
A28: 3 | B28: 3 | C28: 3 | D28: 2 | E28: 1 | F28: 1 | G28: 4 | H28: 0 | I28: 0 | J28: 32 | K28: 2 | M28: Nível 3 | N28: Nível 3 | O28: - | P28: SINAPI | R28: FORRO BLOCO 2 | S28: - | U28: 1 | V28: - | Y28: 0 | Z28: 0
A29: S | B29: 3 | C29: S | D29: 0 | E29: 1 | F29: 1 | G29: 4 | H29: 0 | I29: =IF(AND($C29<=4,$C29<>0),0,IF(AND($C29="S",$Y29>0),OFFSET(I29,-1,0)+1,OFFSET(I29,-1,0))) -> 0 | J29: 0 | K29: 0 | M29: Serviço | N29: Serviço | O29: - | P29: AGETOP | Q29: 20105 | R29: DEMOL.FORRO PAULISTA C/TRANSP.ATE CB.E CARGA | S29: m2 | T29: 8.88 | U29: 1 | V29: 8.88 | Y29: 0 | Z29: 0
A30: 3 | B30: 3 | C30: 3 | D30: 9 | E30: 1 | F30: 1 | G30: 5 | H30: 0 | I30: 0 | J30: 30 | K30: 9 | M30: Nível 3 | N30: Nível 3 | O30: - | P30: SINAPI | R30: ADAPTAÇÃO SANITÁRIOS PcD /CIRCULAÇÃO BLOCO 2 | S30: - | U30: 1 | V30: - | Y30: 0 | Z30: 0
A31: S | B31: =IF(OR(C31="s",C31=0),OFFSET(B31,-1,0),C31) -> 3 | C31: =IF(OFFSET(C31,-1,0)="L",1,IF(OFFSET(C31,-1,0)=1,2,IF(OR(A31="s",A31=0),"S",IF(AND(OFFSET(C31,-1,0)=2,A31=4),3,IF(AND(OR(OFFSET(C31,-1,0)="s",OFFSET(C31,-1,0)=0),A31<>"s",A31>OFFSET(B31,-1,0)),OFFSET(B31,-1,0),A31))))) -> S | D31: =IF(OR(C31="S",C31=0),0,IF(ISERROR(K31),J31,SMALL(J31:K31,1))) -> 0 | E31: =IF($C31=1,OFFSET(E31,-1,0)+1,OFFSET(E31,-1,0)) -> 1 | F31: =IF($C31=1,0,IF($C31=2,OFFSET(F31,-1,0)+1,OFFSET(F31,-1,0))) -> 1 | G31: =IF(AND($C31<=2,$C31<>0),0,IF($C31=3,OFFSET(G31,-1,0)+1,OFFSET(G31,-1,0))) -> 5 | H31: =IF(AND($C31<=3,$C31<>0),0,IF($C31=4,OFFSET(H31,-1,0)+1,OFFSET(H31,-1,0))) -> 0 | I31: =IF(AND($C31<=4,$C31<>0),0,IF(AND($C31="S",$Y31>0),OFFSET(I31,-1,0)+1,OFFSET(I31,-1,0))) -> 0 | J31: 0 | K31: 0 | M31: Serviço | N31: Serviço | O31: - | P31: AGETOP | Q31: 20137 | R31: DEMOLIÇAO BACIA SANITARIA C/ TRANSP. ATÉ CB. E CARGA | S31: Un | T31: 3 | U31: 1 | V31: 3 | Y31: 0 | Z31: 0
A32: S | B32: 3 | C32: S | D32: 0 | E32: 1 | F32: 1 | G32: 5 | H32: 0 | I32: 0 | J32: 0 | K32: 0 | M32: Serviço | N32: Serviço | O32: - | P32: AGETOP | Q32: 20140 | R32: DEMOLIÇAO DE VÁLVULA DE DESCARGA C/ TRANSP. ATÉ CB. E CARGA | S32: Un | T32: 2 | U32: 1 | V32: 2 | Y32: 0 | Z32: 0
A33: S | B33: 3 | C33: S | D33: 0 | E33: 1 | F33: 1 | G33: 5 | H33: 0 | I33: 0 | J33: 0 | K33: 0 | M33: Serviço | N33: Serviço | O33: - | P33: AGETOP | Q33: 20138 | R33: DEMOLIÇAO DE LAVATÓRIO C/ TRANSP. ATÉ CB. E CARGA | S33: Un | T33: 2 | U33: 1 | V33: 2 | Y33: 0 | Z33: 0
A34: S | B34: 3 | C34: S | D34: 0 | E34: 1 | F34: 1 | G34: 5 | H34: 0 | I34: 0 | J34: 0 | K34: 0 | M34: Serviço | N34: Serviço | O34: - | P34: AGETOP | Q34: 20163 | R34: DEMOLIÇÃO DAS INSTALAÇÕES HIDROSANITÁRIAS E AFINS C/ TRANSP. ATÉ CB. E CARGA | S34: H | T34: 1.7 | U34: 1 | V34: 1.7 | Y34: 0 | Z34: 0
A35: S | B35: 3 | C35: S | D35: 0 | E35: 1 | F35: 1 | G35: 5 | H35: 0 | I35: 0 | J35: 0 | K35: 0 | M35: Serviço | N35: Serviço | O35: - | P35: AGETOP | Q35: 20118 | R35: DEM.ALVEN.TIJOLO S/REAP. C/TR.ATE CB. E CARGA | S35: m3 | T35: 0.8 | U35: 1 | V35: 0.8 | Y35: 0 | Z35: 0
A36: S | B36: 3 | C36: S | D36: 0 | E36: 1 | F36: 1 | G36: 5 | H36: 0 | I36: 0 | J36: 0 | K36: 0 | M36: Serviço | N36: Serviço | O36: - | P36: AGETOP | Q36: 20111 | R36: DEM.PISO CERAM.SOBRE LASTRO CONC.C/TR.CB.E CARGA | S36: m2 | T36: 8.88 | U36: 1 | V36: 8.88 | Y36: 0 | Z36: 0
A37: S | B37: 3 | C37: S | D37: 0 | E37: 1 | F37: 1 | G37: 5 | H37: 0 | I37: 0 | J37: 0 | K37: 0 | M37: Serviço | N37: Serviço | O37: - | P37: SINAPI | Q37: 97633 | R37: DEMOLIÇÃO DE REVESTIMENTO CERÂMICO, DE FORMA MANUAL, SEM REAPROVEITAMENTO. AF_12/2017 | S37: M2 | T37: 51.41 | U37: 1 | V37: 51.41 | Y37: 0 | Z37: 0 | AA37: Referência: AGETOP - 20115
A38: S | B38: 3 | C38: S | D38: 0 | E38: 1 | F38: 1 | G38: 5 | H38: 0 | I38: 0 | J38: 0 | K38: 0 | M38: Serviço | N38: Serviço | O38: - | P38: SINAPI | Q38: 97644 | R38: REMOÇÃO DE PORTAS, DE FORMA MANUAL, SEM REAPROVEITAMENTO. AF_12/2017 | S38: M2 | T38: 1.68 | U38: 1 | V38: 1.68 | Y38: 0 | Z38: 0 | AA38: Referência: AGETOP - 20106
A39: 3 | B39: 3 | C39: 3 | D39: 7 | E39: 1 | F39: 1 | G39: 6 | H39: 0 | I39: 0 | J39: 21 | K39: 7 | M39: Nível 3 | N39: Nível 3 | O39: - | P39: SINAPI | R39: REFORMA SANITÁRIO PAV. SUPERIOR | S39: - | U39: 1 | V39: - | Y39: 0 | Z39: 0
A40: S | B40: 3 | C40: S | D40: 0 | E40: 1 | F40: 1 | G40: 6 | H40: 0 | I40: 0 | J40: 0 | K40: 0 | M40: Serviço | N40: Serviço | O40: - | P40: AGETOP | Q40: 20137 | R40: DEMOLIÇAO BACIA SANITARIA C/ TRANSP. ATÉ CB. E CARGA | S40: Un | T40: 1 | U40: 1 | V40: 1 | Y40: 0 | Z40: 0
A41: S | B41: 3 | C41: S | D41: 0 | E41: 1 | F41: 1 | G41: 6 | H41: 0 | I41: 0 | J41: 0 | K41: 0 | M41: Serviço | N41: Serviço | O41: - | P41: AGETOP | Q41: 20140 | R41: DEMOLIÇAO DE VÁLVULA DE DESCARGA C/ TRANSP. ATÉ CB. E CARGA | S41: Un | T41: 1 | U41: 1 | V41: 1 | Y41: 0 | Z41: 0
A42: S | B42: 3 | C42: S | D42: 0 | E42: 1 | F42: 1 | G42: 6 | H42: 0 | I42: 0 | J42: 0 | K42: 0 | M42: Serviço | N42: Serviço | O42: - | P42: AGETOP | Q42: 20138 | R42: DEMOLIÇAO DE LAVATÓRIO C/ TRANSP. ATÉ CB. E CARGA | S42: Un | T42: 1 | U42: 1 | V42: 1 | Y42: 0 | Z42: 0
A43: S | B43: 3 | C43: S | D43: 0 | E43: 1 | F43: 1 | G43: 6 | H43: 0 | I43: 0 | J43: 0 | K43: 0 | M43: Serviço | N43: Serviço | O43: - | P43: AGETOP | Q43: 20163 | R43: DEMOLIÇÃO DAS INSTALAÇÕES HIDROSANITÁRIAS E AFINS C/ TRANSP. ATÉ CB. E CARGA | S43: H | T43: 1.1 | U43: 1 | V43: 1.1 | Y43: 0 | Z43: 0
A44: S | B44: 3 | C44: S | D44: 0 | E44: 1 | F44: 1 | G44: 6 | H44: 0 | I44: 0 | J44: 0 | K44: 0 | M44: Serviço | N44: Serviço | O44: - | P44: AGETOP | Q44: 20111 | R44: DEM.PISO CERAM.SOBRE LASTRO CONC.C/TR.CB.E CARGA | S44: m2 | T44: 2 | U44: 1 | V44: 2 | Y44: 0 | Z44: 0
A45: S | B45: 3 | C45: S | D45: 0 | E45: 1 | F45: 1 | G45: 6 | H45: 0 | I45: 0 | J45: 0 | K45: 0 | M45: Serviço | N45: Serviço | O45: - | P45: SINAPI | Q45: 97633 | R45: DEMOLIÇÃO DE REVESTIMENTO CERÂMICO, DE FORMA MANUAL, SEM REAPROVEITAMENTO. AF_12/2017 | S45: M2 | T45: 4.12 | U45: 1 | V45: 4.12 | Y45: 0 | Z45: 0 | AA45: Referência: AGETOP - 20115
A46: 3 | B46: 3 | C46: 3 | D46: 3 | E46: 1 | F46: 1 | G46: 7 | H46: 0 | I46: 0 | J46: 14 | K46: 3 | M46: Nível 3 | N46: Nível 3 | O46: - | P46: SINAPI | R46: ADAPTAÇÃO NOVO ALMOXARIFADO | S46: - | U46: 1 | V46: - | Y46: 0 | Z46: 0
A47: S | B47: 3 | C47: S | D47: 0 | E47: 1 | F47: 1 | G47: 7 | H47: 0 | I47: 0 | J47: 0 | K47: 0 | M47: Serviço | N47: Serviço | O47: - | P47: AGETOP | Q47: 20139 | R47: DEMOLIÇAO DE BANCADAS C/ TRANSP. ATÉ CB. E CARGA | S47: m2 | T47: 1.88 | U47: 1 | V47: 1.88 | Y47: 0 | Z47: 0
A48: S | B48: 3 | C48: S | D48: 0 | E48: 1 | F48: 1 | G48: 7 | H48: 0 | I48: 0 | J48: 0 | K48: 0 | M48: Serviço | N48: Serviço | O48: - | P48: AGETOP | Q48: 20163 | R48: DEMOLIÇÃO DAS INSTALAÇÕES HIDROSANITÁRIAS E AFINS C/ TRANSP. ATÉ CB. E CARGA | S48: H | T48: 1.1 | U48: 1 | V48: 1.1 | Y48: 0 | Z48: 0
A49: 3 | B49: 3 | C49: 3 | D49: 3 | E49: 1 | F49: 1 | G49: 8 | H49: 0 | I49: 0 | J49: 11 | K49: 3 | M49: Nível 3 | N49: Nível 3 | O49: - | P49: SINAPI | R49: ADAPTAÇÃO NOVA COZINHA | S49: - | U49: 1 | V49: - | Y49: 0 | Z49: 0
A50: S | B50: 3 | C50: S | D50: 0 | E50: 1 | F50: 1 | G50: 8 | H50: 0 | I50: 0 | J50: 0 | K50: 0 | M50: Serviço | N50: Serviço | O50: - | P50: AGETOP | Q50: 20111 | R50: DEM.PISO CERAM.SOBRE LASTRO CONC.C/TR.CB.E CARGA | S50: m2 | T50: 30 | U50: 1 | V50: 30 | Y50: 0 | Z50: 0
A51: S | B51: 3 | C51: S | D51: 0 | E51: 1 | F51: 1 | G51: 8 | H51: 0 | I51: 0 | J51: 0 | K51: 0 | M51: Serviço | N51: Serviço | O51: - | P51: AGETOP | Q51: 20147 | R51: DEMOLIÇÃO DE FORRO PVC INCLUSIVE ESTRUTURA DE SUSTENTAÇÃO C/ TRANSP. ATÉ CB. E CARGA | S51: m2 | T51: 30 | U51: 1 | V51: 30 | Y51: 0 | Z51: 0
A52: =CHOOSE(1+LOG(1+2*(ORÇAMENTO.Nivel="Nível 1")+4*(ORÇAMENTO.Nivel="Nível 2")+8*(ORÇAMENTO.Nivel="Nível 3")+16*(ORÇAMENTO.Nivel="Nível 4")+32*(ORÇAMENTO.Nivel="Serviço"),2),0,1,2,3,4,"S") -> 3 | B52: 3 | C52: 3 | D52: 2 | E52: 1 | F52: 1 | G52: 9 | H52: 0 | I52: 0 | J52: 8 | K52: 2 | M52: Nível 3 | N52: Nível 3 | O52: - | P52: SINAPI | R52: CALÇADA EXTERNA E RAMPA | S52: - | U52: 1 | V52: - | Y52: 0 | Z52: 0
A53: S | B53: 3 | C53: S | D53: 0 | E53: 1 | F53: 1 | G53: 9 | H53: 0 | I53: 0 | J53: 0 | K53: 0 | M53: Serviço | N53: Serviço | O53: - | P53: AGETOP | Q53: 20109 | R53: DEM.PISO CIMENT.SOBRE LASTRO CONC.C/TR.ATE CB. E CARGA | S53: m2 | T53: 17.1 | U53: 1 | V53: 17.1 | Y53: 0 | Z53: 0
A54: 3 | B54: =IF(OR(C54="s",C54=0),OFFSET(B54,-1,0),C54) -> 3 | C54: =IF(OFFSET(C54,-1,0)="L",1,IF(OFFSET(C54,-1,0)=1,2,IF(OR(A54="s",A54=0),"S",IF(AND(OFFSET(C54,-1,0)=2,A54=4),3,IF(AND(OR(OFFSET(C54,-1,0)="s",OFFSET(C54,-1,0)=0),A54<>"s",A54>OFFSET(B54,-1,0)),OFFSET(B54,-1,0),A54))))) -> 3 | D54: =IF(OR(C54="S",C54=0),0,IF(ISERROR(K54),J54,SMALL(J54:K54,1))) -> 2 | E54: =IF($C54=1,OFFSET(E54,-1,0)+1,OFFSET(E54,-1,0)) -> 1 | F54: =IF($C54=1,0,IF($C54=2,OFFSET(F54,-1,0)+1,OFFSET(F54,-1,0))) -> 1 | G54: =IF(AND($C54<=2,$C54<>0),0,IF($C54=3,OFFSET(G54,-1,0)+1,OFFSET(G54,-1,0))) -> 10 | H54: =IF(AND($C54<=3,$C54<>0),0,IF($C54=4,OFFSET(H54,-1,0)+1,OFFSET(H54,-1,0))) -> 0 | I54: 0 | J54: 6 | K54: 2 | M54: Nível 3 | N54: Nível 3 | O54: - | P54: SINAPI | R54: ACESSIBILIDADE | S54: - | U54: 1 | V54: - | Y54: 0 | Z54: 0
A55: S | B55: 3 | C55: S | D55: 0 | E55: 1 | F55: 1 | G55: 10 | H55: 0 | I55: 0 | J55: 0 | K55: 0 | M55: Serviço | N55: Serviço | O55: - | P55: AGETOP | Q55: 20109 | R55: DEM.PISO CIMENT.SOBRE LASTRO CONC.C/TR.ATE CB. E CARGA | S55: m2 | T55: 6.79 | U55: 1 | V55: 6.79 | Y55: 0 | Z55: 0
A56: 3 | B56: 3 | C56: 3 | D56: 2 | E56: 1 | F56: 1 | G56: 11 | H56: 0 | I56: 0 | J56: 4 | K56: 2 | M56: Nível 3 | N56: Nível 3 | O56: - | P56: SINAPI | R56: INSTALAÇÕES DE GÁS | S56: - | U56: 1 | V56: - | Y56: 0 | Z56: 0
A57: S | B57: 3 | C57: S | D57: 0 | E57: 1 | F57: 1 | G57: 11 | H57: 0 | I57: 0 | J57: 0 | K57: 0 | M57: Serviço | N57: Serviço | O57: - | P57: AGETOP | Q57: 20121 | R57: DEM. MANUAL EM CONCR.SIMPLES C/TR.ATE CB.E CARGA (O.C.) | S57: m3 | T57: 0.04 | U57: 1 | V57: 0.04 | Y57: 0 | Z57: 0
A58: 3 | B58: 3 | C58: 3 | D58: 2 | E58: 1 | F58: 1 | G58: 12 | H58: 0 | I58: 0 | J58: 2 | M58: Nível 3 | N58: Nível 3 | O58: - | P58: SINAPI | R58: PLACA DE OBRA | S58: - | U58: 1 | V58: - | Y58: 0 | Z58: 0
A59: =CHOOSE(1+LOG(1+2*(ORÇAMENTO.Nivel="Nível 1")+4*(ORÇAMENTO.Nivel="Nível 2")+8*(ORÇAMENTO.Nivel="Nível 3")+16*(ORÇAMENTO.Nivel="Nível 4")+32*(ORÇAMENTO.Nivel="Serviço"),2),0,1,2,3,4,"S") -> S | B59: 3 | C59: S | D59: 0 | E59: 1 | F59: 1 | G59: 12 | H59: 0 | I59: 0 | J59: 0 | K59: 0 | M59: Serviço | N59: Serviço | O59: - | P59: AGETOP | Q59: 21301 | R59: PLACA DE OBRA PLOTADA EM CHAPA METÁLICA 26 , AFIXADA EM CAVALETES DE MADEIRA DE LEI (VIGOTAS 6X12CM) - PADRÃO GOINFRA | S59: m2 | T59: 7.5 | U59: 1 | V59: 7.5 | Y59: 0 | Z59: 0
A60: =CHOOSE(1+LOG(1+2*(ORÇAMENTO.Nivel="Nível 1")+4*(ORÇAMENTO.Nivel="Nível 2")+8*(ORÇAMENTO.Nivel="Nível 3")+16*(ORÇAMENTO.Nivel="Nível 4")+32*(ORÇAMENTO.Nivel="Serviço"),2),0,1,2,3,4,"S") -> 2 | B60: 2 | C60: 2 | D60: 3 | E60: 1 | F60: 2 | G60: 0 | H60: 0 | I60: 0 | J60: 320 | K60: 3 | M60: Nível 2 | N60: Nível 2 | O60: - | P60: AGETOP | R60: TRANSPORTES | S60: - | U60: 1 | V60: - | Y60: 0 | Z60: 0
A61: =CHOOSE(1+LOG(1+2*(ORÇAMENTO.Nivel="Nível 1")+4*(ORÇAMENTO.Nivel="Nível 2")+8*(ORÇAMENTO.Nivel="Nível 3")+16*(ORÇAMENTO.Nivel="Nível 4")+32*(ORÇAMENTO.Nivel="Serviço"),2),0,1,2,3,4,"S") -> S | B61: 2 | C61: S | D61: 0 | E61: 1 | F61: 2 | G61: 0 | H61: 0 | I61: 0 | J61: 0 | K61: 0 | M61: Serviço | N61: Serviço | O61: - | P61: SINAPI | Q61: 72900 | R61: TRANSPORTE DE ENTULHO COM CAMINHAO BASCULANTE 6 M3, RODOVIA PAVIMENTADA, DMT 0,5 A 1,0 KM | S61: M3 | T61: 31.08 | U61: 1 | V61: 31.08 | Y61: 0 | Z61: 0
A62: =CHOOSE(1+LOG(1+2*(ORÇAMENTO.Nivel="Nível 1")+4*(ORÇAMENTO.Nivel="Nível 2")+8*(ORÇAMENTO.Nivel="Nível 3")+16*(ORÇAMENTO.Nivel="Nível 4")+32*(ORÇAMENTO.Nivel="Serviço"),2),0,1,2,3,4,"S") -> S | B62: 2 | C62: S | D62: 0 | E62: 1 | F62: 2 | G62: 0 | H62: 0 | I62: 0 | J62: 0 | K62: 0 | M62: Serviço | N62: Serviço | O62: - | P62: SINAPI | Q62: 72897 | R62: CARGA MANUAL DE ENTULHO EM CAMINHAO BASCULANTE 6 M3 | S62: M3 | T62: 31.08 | U62: 1 | V62: 31.08 | Y62: 0 | Z62: 0
A63: 2 | B63: 2 | C63: 2 | D63: 15 | E63: 1 | F63: 3 | G63: 0 | H63: 0 | I63: 0 | J63: 317 | K63: 15 | M63: Nível 2 | N63: Nível 2 | O63: - | P63: SINAPI | R63: SERVIÇO EM TERRA | S63: - | U63: 1 | V63: - | Y63: 0 | Z63: 0
A64: =CHOOSE(1+LOG(1+2*(ORÇAMENTO.Nivel="Nível 1")+4*(ORÇAMENTO.Nivel="Nível 2")+8*(ORÇAMENTO.Nivel="Nível 3")+16*(ORÇAMENTO.Nivel="Nível 4")+32*(ORÇAMENTO.Nivel="Serviço"),2),0,1,2,3,4,"S") -> 3 | B64: 3 | C64: 3 | D64: 7 | E64: 1 | F64: 3 | G64: 1 | H64: 0 | I64: 0 | J64: 14 | K64: 7 | M64: Nível 3 | N64: Nível 3 | O64: - | P64: SINAPI | R64: AQUISIÇÃO DE TERRA (SOMENTE ATERRO) | S64: - | U64: 1 | V64: - | Y64: 0 | Z64: 0
A65: 4 | B65: =IF(OR(C65="s",C65=0),OFFSET(B65,-1,0),C65) -> 4 | C65: =IF(OFFSET(C65,-1,0)="L",1,IF(OFFSET(C65,-1,0)=1,2,IF(OR(A65="s",A65=0),"S",IF(AND(OFFSET(C65,-1,0)=2,A65=4),3,IF(AND(OR(OFFSET(C65,-1,0)="s",OFFSET(C65,-1,0)=0),A65<>"s",A65>OFFSET(B65,-1,0)),OFFSET(B65,-1,0),A65))))) -> 4 | D65: =IF(OR(C65="S",C65=0),0,IF(ISERROR(K65),J65,SMALL(J65:K65,1))) -> 6 | E65: =IF($C65=1,OFFSET(E65,-1,0)+1,OFFSET(E65,-1,0)) -> 1 | F65: =IF($C65=1,0,IF($C65=2,OFFSET(F65,-1,0)+1,OFFSET(F65,-1,0))) -> 3 | G65: =IF(AND($C65<=2,$C65<>0),0,IF($C65=3,OFFSET(G65,-1,0)+1,OFFSET(G65,-1,0))) -> 1 | H65: =IF(AND($C65<=3,$C65<>0),0,IF($C65=4,OFFSET(H65,-1,0)+1,OFFSET(H65,-1,0))) -> 1 | I65: 0 | J65: 6 | K65: 10 | M65: Nível 4 | N65: Nível 4 | O65: - | P65: SINAPI | R65: CALÇADA EXTERNA E RAMPA | S65: - | U65: 1 | V65: - | Y65: 0 | Z65: 0
A66: S | B66: 4 | C66: S | D66: 0 | E66: 1 | F66: 3 | G66: 1 | H66: 1 | I66: 0 | J66: 0 | K66: 0 | M66: Serviço | N66: Serviço | O66: - | P66: SINAPI | Q66: 79480 | R66: ESCAVACAO MECANICA CAMPO ABERTO EM SOLO EXCETO ROCHA ATE 2,00M PROFUNDIDADE | S66: M3 | T66: 0.35 | U66: 1 | V66: 0.35 | Y66: 0 | Z66: 0 | AA66: Referência: AGETOP - 41004
A67: S | B67: 4 | C67: S | D67: 0 | E67: 1 | F67: 3 | G67: 1 | H67: 1 | I67: 0 | J67: 0 | K67: 0 | M67: Serviço | N67: Serviço | O67: - | P67: AGETOP | Q67: 41005 | R67: CARGA MECANIZADA | S67: m3 | T67: 0.35 | U67: 1 | V67: 0.35 | Y67: 0 | Z67: 0
A68: S | B68: 4 | C68: S | D68: 0 | E68: 1 | F68: 3 | G68: 1 | H68: 1 | I68: 0 | J68: 0 | K68: 0 | M68: Serviço | N68: Serviço | O68: - | P68: AGETOP | Q68: 41012 | R68: INDENIZAÇÃO DE JAZIDA | S68: m3 | T68: 0.35 | U68: 1 | V68: 0.35 | Y68: 0 | Z68: 0
A69: S | B69: 4 | C69: S | D69: 0 | E69: 1 | F69: 3 | G69: 1 | H69: 1 | I69: 0 | J69: 0 | K69: 0 | M69: Serviço | N69: Serviço | O69: - | P69: AGETOP | Q69: 41006 | R69: TRANSPORTE DE MATERIAL ESCAVADO M3.KM | S69: m3km | T69: 3.5 | U69: 1 | V69: 3.5 | Y69: 0 | Z69: 0
A70: S | B70: 4 | C70: S | D70: 0 | E70: 1 | F70: 3 | G70: 1 | H70: 1 | I70: 0 | J70: 0 | K70: 0 | M70: Serviço | N70: Serviço | O70: - | P70: AGETOP | Q70: 41009 | R70: COMPACTAÇÃO MECÂNICA SEM CONTROLE LABORATÓRIO | S70: m3 | T70: 0.28 | U70: 1 | V70: 0.28 | Y70: 0 | Z70: 0
A71: 3 | B71: 3 | C71: 3 | D71: 7 | E71: 1 | F71: 3 | G71: 2 | H71: 0 | I71: 0 | J71: 7 | K71: 124 | M71: Nível 3 | N71: Nível 3 | O71: - | P71: SINAPI | R71: OUTROS | S71: - | U71: 1 | V71: - | Y71: 0 | Z71: 0
A72: =CHOOSE(1+LOG(1+2*(ORÇAMENTO.Nivel="Nível 1")+4*(ORÇAMENTO.Nivel="Nível 2")+8*(ORÇAMENTO.Nivel="Nível 3")+16*(ORÇAMENTO.Nivel="Nível 4")+32*(ORÇAMENTO.Nivel="Serviço"),2),0,1,2,3,4,"S") -> 4 | B72: 4 | C72: 4 | D72: 3 | E72: 1 | F72: 3 | G72: 2 | H72: 1 | I72: 0 | J72: 6 | K72: 3 | M72: Nível 4 | N72: Nível 4 | O72: - | P72: SINAPI | R72: CALÇADA EXTERNA E RAMPA | S72: - | U72: 1 | V72: - | Y72: 0 | Z72: 0
A73: S | B73: 4 | C73: S | D73: 0 | E73: 1 | F73: 3 | G73: 2 | H73: 1 | I73: 0 | J73: 0 | K73: 0 | M73: Serviço | N73: Serviço | O73: - | P73: AGETOP | Q73: 41140 | R73: REGULARIZAÇÃO DO TERRENO SEM APILOAMENTO COM TRANSPORTE MANUAL DA TERRA ESCAVADA | S73: m2 | T73: 2.7 | U73: 1 | V73: 2.7 | Y73: 0 | Z73: 0
A74: S | B74: 4 | C74: S | D74: 0 | E74: 1 | F74: 3 | G74: 2 | H74: 1 | I74: 0 | J74: 0 | K74: 0 | M74: Serviço | N74: Serviço | O74: - | P74: AGETOP | Q74: 41002 | R74: APILOAMENTO | S74: m2 | T74: 2.7 | U74: 1 | V74: 2.7 | Y74: 0 | Z74: 0
A75: 4 | B75: =IF(OR(C75="s",C75=0),OFFSET(B75,-1,0),C75) -> 4 | C75: =IF(OFFSET(C75,-1,0)="L",1,IF(OFFSET(C75,-1,0)=1,2,IF(OR(A75="s",A75=0),"S",IF(AND(OFFSET(C75,-1,0)=2,A75=4),3,IF(AND(OR(OFFSET(C75,-1,0)="s",OFFSET(C75,-1,0)=0),A75<>"s",A75>OFFSET(B75,-1,0)),OFFSET(B75,-1,0),A75))))) -> 4 | D75: =IF(OR(C75="S",C75=0),0,IF(ISERROR(K75),J75,SMALL(J75:K75,1))) -> 3 | E75: =IF($C75=1,OFFSET(E75,-1,0)+1,OFFSET(E75,-1,0)) -> 1 | F75: =IF($C75=1,0,IF($C75=2,OFFSET(F75,-1,0)+1,OFFSET(F75,-1,0))) -> 3 | G75: =IF(AND($C75<=2,$C75<>0),0,IF($C75=3,OFFSET(G75,-1,0)+1,OFFSET(G75,-1,0))) -> 2 | H75: =IF(AND($C75<=3,$C75<>0),0,IF($C75=4,OFFSET(H75,-1,0)+1,OFFSET(H75,-1,0))) -> 2 | I75: 0 | J75: 3 | K75: 77 | M75: Nível 4 | N75: Nível 4 | O75: - | P75: SINAPI | R75: INSTALAÇÕES DE GÁS | S75: - | U75: 1 | V75: - | Y75: 0 | Z75: 0
A76: S | B76: 4 | C76: S | D76: 0 | E76: 1 | F76: 3 | G76: 2 | H76: 2 | I76: 0 | J76: 0 | K76: 0 | M76: Serviço | N76: Serviço | O76: - | P76: SINAPI | Q76: 93358 | R76: ESCAVAÇÃO MANUAL DE VALA COM PROFUNDIDADE MENOR OU IGUAL A 1,30 M. AF_03/2016 | S76: M3 | T76: 0.21 | U76: 1 | V76: 0.21 | Y76: 0 | Z76: 0 | AA76: Referência: AGETOP - 40101
A77: S | B77: 4 | C77: S | D77: 0 | E77: 1 | F77: 3 | G77: 2 | H77: 2 | I77: 0 | J77: 0 | K77: 0 | M77: Serviço | N77: Serviço | O77: - | P77: SINAPI | Q77: 96995 | R77: REATERRO MANUAL APILOADO COM SOQUETE. AF_10/2017 | S77: M3 | T77: 0.21 | U77: 1 | V77: 0.21 | Y77: 0 | Z77: 0 | AA77: Referência: AGETOP - 40902
A78: 2 | B78: 2 | C78: 2 | D78: 4 | E78: 1 | F78: 4 | G78: 0 | H78: 0 | I78: 0 | J78: 302 | K78: 4 | M78: Nível 2 | N78: Nível 2 | O78: - | P78: SINAPI | R78: ESTRUTURA | S78: - | U78: 1 | V78: - | Y78: 0 | Z78: 0
A79: =CHOOSE(1+LOG(1+2*(ORÇAMENTO.Nivel="Nível 1")+4*(ORÇAMENTO.Nivel="Nível 2")+8*(ORÇAMENTO.Nivel="Nível 3")+16*(ORÇAMENTO.Nivel="Nível 4")+32*(ORÇAMENTO.Nivel="Serviço"),2),0,1,2,3,4,"S") -> 3 | B79: 3 | C79: 3 | D79: 3 | E79: 1 | F79: 4 | G79: 1 | H79: 0 | I79: 0 | J79: 3 | K79: 92 | M79: Nível 3 | N79: Nível 3 | O79: - | R79: OUTROS | S79: - | U79: 1 | V79: - | Y79: 0 | Z79: 0
A80: 4 | B80: 4 | C80: 4 | D80: 2 | E80: 1 | F80: 4 | G80: 1 | H80: 1 | I80: 0 | J80: 2 | K80: 64 | M80: Nível 4 | N80: Nível 4 | O80: - | P80: SINAPI | R80: ADAPTAÇÃO SANITÁRIOS PcD/CIRCULAÇÃO BLOCO 2 | S80: - | U80: 1 | V80: - | Y80: 0 | Z80: 0
A81: =CHOOSE(1+LOG(1+2*(ORÇAMENTO.Nivel="Nível 1")+4*(ORÇAMENTO.Nivel="Nível 2")+8*(ORÇAMENTO.Nivel="Nível 3")+16*(ORÇAMENTO.Nivel="Nível 4")+32*(ORÇAMENTO.Nivel="Serviço"),2),0,1,2,3,4,"S") -> S | B81: 4 | C81: S | D81: 0 | E81: 1 | F81: 4 | G81: 1 | H81: 1 | I81: 0 | J81: 0 | K81: 0 | M81: Serviço | N81: Serviço | O81: - | P81: AGETOP | Q81: 60010 | R81: VERGA/CONTRAVERGA EM CONCRETO ARMADO FCK = 20 MPA | S81: m3 | T81: 0.05 | U81: 1 | V81: 0.05 | Y81: 0 | Z81: 0
A82: =CHOOSE(1+LOG(1+2*(ORÇAMENTO.Nivel="Nível 1")+4*(ORÇAMENTO.Nivel="Nível 2")+8*(ORÇAMENTO.Nivel="Nível 3")+16*(ORÇAMENTO.Nivel="Nível 4")+32*(ORÇAMENTO.Nivel="Serviço"),2),0,1,2,3,4,"S") -> 2 | B82: 2 | C82: 2 | D82: 56 | E82: 1 | F82: 5 | G82: 0 | H82: 0 | I82: 0 | J82: 298 | K82: 56 | M82: Nível 2 | N82: Nível 2 | O82: - | R82: INSTALAÇÕES ELÉTRICAS | S82: - | U82: 1 | V82: - | Y82: 0 | Z82: 0
A83: S | B83: 2 | C83: S | D83: 0 | E83: 1 | F83: 5 | G83: 0 | H83: 0 | I83: 0 | J83: 0 | K83: 0 | M83: Serviço | N83: Serviço | O83: - | P83: SINAPI | Q83: 74131/5 | R83: QUADRO DE DISTRIBUICAO DE ENERGIA DE EMBUTIR, EM CHAPA METALICA, PARA 24 DISJUNTORES TERMOMAGNETICOS MONOPOLARES, COM BARRAMENTO TRIFASICO E NEUTRO, FORNECIMENTO E INSTALACAO | S83: UN | T83: 1 | U83: 1 | V83: 1 | Y83: 0 | Z83: 0
A84: S | B84: 2 | C84: S | D84: 0 | E84: 1 | F84: 5 | G84: 0 | H84: 0 | I84: 0 | J84: =IF(OR($C84="S",$C84=0),0,MATCH(0,OFFSET($D84,1,$C84,ROW($C$380)-ROW($C84)),0)) -> 0 | K84: =IF(OR($C84="S",$C84=0),0,MATCH(OFFSET($D84,0,$C84)+1,OFFSET($D84,1,$C84,ROW($C$380)-ROW($C84)),0)) -> 0 | M84: Serviço | N84: Serviço | O84: - | P84: SINAPI | Q84: 74131/4 | R84: QUADRO DE DISTRIBUICAO DE ENERGIA DE EMBUTIR, EM CHAPA METALICA, PARA 18 DISJUNTORES TERMOMAGNETICOS MONOPOLARES, COM BARRAMENTO TRIFASICO E NEUTRO, FORNECIMENTO E INSTALACAO | S84: UN | T84: 3 | U84: 1 | V84: 3 | Y84: 0 | Z84: 0
A85: S | B85: 2 | C85: S | D85: 0 | E85: 1 | F85: 5 | G85: 0 | H85: 0 | I85: 0 | J85: 0 | K85: 0 | M85: Serviço | N85: Serviço | O85: - | P85: AGETOP | Q85: 71175 | R85: DISJUNTOR TRIPOLAR DE 60 A 100-A | S85: Un | T85: 2 | U85: 1 | V85: 2 | Y85: 0 | Z85: 0
A86: S | B86: 2 | C86: S | D86: 0 | E86: 1 | F86: 5 | G86: 0 | H86: 0 | I86: 0 | J86: 0 | K86: 0 | M86: Serviço | N86: Serviço | O86: - | P86: SINAPI | Q86: 93670 | R86: DISJUNTOR TRIPOLAR TIPO DIN, CORRENTE NOMINAL DE 25A - FORNECIMENTO E INSTALAÇÃO. AF_04/2016 | S86: UN | T86: 2 | U86: 1 | V86: 2 | Y86: 0 | Z86: 0 | AA86: Referência: AGETOP - 71173
A87: S | B87: 2 | C87: S | D87: 0 | E87: 1 | F87: 5 | G87: 0 | H87: 0 | I87: 0 | J87: 0 | K87: 0 | M87: Serviço | N87: Serviço | O87: - | P87: SINAPI | Q87: 93672 | R87: DISJUNTOR TRIPOLAR TIPO DIN, CORRENTE NOMINAL DE 40A - FORNECIMENTO E INSTALAÇÃO. AF_04/2016 | S87: UN | T87: 2 | U87: 1 | V87: 2 | Y87: 0 | Z87: 0 | AA87: Referência: AGETOP - 71174
A88: S | B88: 2 | C88: S | D88: 0 | E88: 1 | F88: 5 | G88: 0 | H88: 0 | I88: 0 | J88: 0 | K88: 0 | M88: Serviço | N88: Serviço | O88: - | P88: SINAPI | Q88: 93673 | R88: DISJUNTOR TRIPOLAR TIPO DIN, CORRENTE NOMINAL DE 50A - FORNECIMENTO E INSTALAÇÃO. AF_04/2016 | S88: UN | T88: 2 | U88: 1 | V88: 2 | Y88: 0 | Z88: 0 | AA88: Referência: AGETOP - 71174
A89: S | B89: 2 | C89: S | D89: 0 | E89: 1 | F89: 5 | G89: 0 | H89: 0 | I89: 0 | J89: 0 | K89: 0 | M89: Serviço | N89: Serviço | O89: - | P89: SINAPI | Q89: 93656 | R89: DISJUNTOR MONOPOLAR TIPO DIN, CORRENTE NOMINAL DE 25A - FORNECIMENTO E INSTALAÇÃO. AF_04/2016 | S89: UN | T89: 17 | U89: 1 | V89: 17 | Y89: 0 | Z89: 0
A90: S | B90: 2 | C90: S | D90: 0 | E90: 1 | F90: 5 | G90: 0 | H90: 0 | I90: 0 | J90: 0 | K90: 0 | M90: Serviço | N90: Serviço | O90: - | P90: SINAPI | Q90: 93654 | R90: DISJUNTOR MONOPOLAR TIPO DIN, CORRENTE NOMINAL DE 16A - FORNECIMENTO E INSTALAÇÃO. AF_04/2016 | S90: UN | T90: 8 | U90: 1 | V90: 8 | Y90: 0 | Z90: 0
A91: S | B91: 2 | C91: S | D91: 0 | E91: 1 | F91: 5 | G91: 0 | H91: 0 | I91: 0 | J91: 0 | K91: 0 | M91: Serviço | N91: Serviço | O91: - | P91: SINAPI | Q91: 93653 | R91: DISJUNTOR MONOPOLAR TIPO DIN, CORRENTE NOMINAL DE 10A - FORNECIMENTO E INSTALAÇÃO. AF_04/2016 | S91: UN | T91: 11 | U91: 1 | V91: 11 | Y91: 0 | Z91: 0
A92: S | B92: 2 | C92: S | D92: 0 | E92: 1 | F92: 5 | G92: 0 | H92: 0 | I92: 0 | J92: 0 | K92: 0 | M92: Serviço | N92: Serviço | O92: - | P92: AGETOP | Q92: 71184 | R92: DISPOSITIVO DE PROTEÇÃO CONTRA SURTOS (D.P.S.) 275V DE 8 A 40KA | S92: Un | T92: 1 | U92: 1 | V92: 1 | Y92: 0 | Z92: 0
A93: S | B93: 2 | C93: S | D93: 0 | E93: 1 | F93: 5 | G93: 0 | H93: 0 | I93: 0 | J93: 0 | K93: 0 | M93: Serviço | N93: Serviço | O93: - | P93: AGETOP | Q93: 71450 | R93: INTERRUPTOR DIFERENCIAL RESIDUAL (D.R.) BIPOLAR DE 25A-30mA | S93: Un | T93: 5 | U93: 1 | V93: 5 | Y93: 0 | Z93: 0
A94: S | B94: 2 | C94: S | D94: 0 | E94: 1 | F94: 5 | G94: 0 | H94: 0 | I94: 0 | J94: 0 | K94: 0 | M94: Serviço | N94: Serviço | O94: - | P94: SINAPI | Q94: 92984 | R94: CABO DE COBRE FLEXÍVEL ISOLADO, 25 MM², ANTI-CHAMA 0,6/1,0 KV, PARA DISTRIBUIÇÃO - FORNECIMENTO E INSTALAÇÃO. AF_12/2015 | S94: M | T94: 10 | U94: 1 | V94: 10 | Y94: 0 | Z94: 0 | AA94: Referência: AGETOP - 70511
A95: S | B95: 2 | C95: S | D95: 0 | E95: 1 | F95: 5 | G95: 0 | H95: 0 | I95: 0 | J95: 0 | K95: 0 | M95: Serviço | N95: Serviço | O95: - | P95: SINAPI | Q95: 92982 | R95: CABO DE COBRE FLEXÍVEL ISOLADO, 16 MM², ANTI-CHAMA 0,6/1,0 KV, PARA DISTRIBUIÇÃO - FORNECIMENTO E INSTALAÇÃO. AF_12/2015 | S95: M | T95: 3 | U95: 1 | V95: 3 | Y95: 0 | Z95: 0
A96: S | B96: 2 | C96: S | D96: 0 | E96: 1 | F96: 5 | G96: 0 | H96: 0 | I96: 0 | J96: 0 | K96: 0 | M96: Serviço | N96: Serviço | O96: - | P96: SINAPI | Q96: 91928 | R96: CABO DE COBRE FLEXÍVEL ISOLADO, 4 MM², ANTI-CHAMA 450/750 V, PARA CIRCUITOS TERMINAIS - FORNECIMENTO E INSTALAÇÃO. AF_12/2015 | S96: M | T96: 845 | U96: 1 | V96: 845 | Y96: 0 | Z96: 0 | AA96: Referência: AGETOP - 70564
A97: S | B97: 2 | C97: S | D97: 0 | E97: 1 | F97: 5 | G97: 0 | H97: 0 | I97: 0 | J97: 0 | K97: 0 | M97: Serviço | N97: Serviço | O97: - | P97: SINAPI | Q97: 91926 | R97: CABO DE COBRE FLEXÍVEL ISOLADO, 2,5 MM², ANTI-CHAMA 450/750 V, PARA CIRCUITOS TERMINAIS - FORNECIMENTO E INSTALAÇÃO. AF_12/2015 | S97: M | T97: 2087 | U97: 1 | V97: 2087 | Y97: 0 | Z97: 0 | AA97: Referência: AGETOP - 70563
A98: S | B98: 2 | C98: S | D98: 0 | E98: 1 | F98: 5 | G98: 0 | H98: 0 | I98: 0 | J98: 0 | K98: 0 | M98: Serviço | N98: Serviço | O98: - | P98: SINAPI | Q98: 92979 | R98: CABO DE COBRE FLEXÍVEL ISOLADO, 10 MM², ANTI-CHAMA 450/750 V, PARA DISTRIBUIÇÃO - FORNECIMENTO E INSTALAÇÃO. AF_12/2015 | S98: M | T98: 485 | U98: 1 | V98: 485 | Y98: 0 | Z98: 0
A99: S | B99: 2 | C99: S | D99: 0 | E99: 1 | F99: 5 | G99: 0 | H99: 0 | I99: 0 | J99: 0 | K99: 0 | M99: Serviço | N99: Serviço | O99: - | P99: SINAPI | Q99: 91871 | R99: ELETRODUTO RÍGIDO ROSCÁVEL, PVC, DN 25 MM (3/4"), PARA CIRCUITOS TERMINAIS, INSTALADO EM PAREDE - FORNECIMENTO E INSTALAÇÃO. AF_12/2015 | S99: M | T99: 579 | U99: 1 | V99: 579 | Y99: 0 | Z99: 0 | AA99: Referência: AGETOP - 71201
A100: S | B100: 2 | C100: S | D100: 0 | E100: 1 | F100: 5 | G100: 0 | H100: 0 | I100: 0 | J100: 0 | K100: 0 | M100: Serviço | N100: Serviço | O100: - | P100: SINAPI | Q100: 91872 | R100: ELETRODUTO RÍGIDO ROSCÁVEL, PVC, DN 32 MM (1"), PARA CIRCUITOS TERMINAIS, INSTALADO EM PAREDE - FORNECIMENTO E INSTALAÇÃO. AF_12/2015 | S100: M | T100: 150 | U100: 1 | V100: 150 | Y100: 0 | Z100: 0 | AA100: Referência: AGETOP - 71202
A101: S | B101: =IF(OR(C101="s",C101=0),OFFSET(B101,-1,0),C101) -> 2 | C101: =IF(OFFSET(C101,-1,0)="L",1,IF(OFFSET(C101,-1,0)=1,2,IF(OR(A101="s",A101=0),"S",IF(AND(OFFSET(C101,-1,0)=2,A101=4),3,IF(AND(OR(OFFSET(C101,-1,0)="s",OFFSET(C101,-1,0)=0),A101<>"s",A101>OFFSET(B101,-1,0)),OFFSET(B101,-1,0),A101))))) -> S | D101: =IF(OR(C101="S",C101=0),0,IF(ISERROR(K101),J101,SMALL(J101:K101,1))) -> 0 | E101: =IF($C101=1,OFFSET(E101,-1,0)+1,OFFSET(E101,-1,0)) -> 1 | F101: =IF($C101=1,0,IF($C101=2,OFFSET(F101,-1,0)+1,OFFSET(F101,-1,0))) -> 5 | G101: =IF(AND($C101<=2,$C101<>0),0,IF($C101=3,OFFSET(G101,-1,0)+1,OFFSET(G101,-1,0))) -> 0 | H101: =IF(AND($C101<=3,$C101<>0),0,IF($C101=4,OFFSET(H101,-1,0)+1,OFFSET(H101,-1,0))) -> 0 | I101: 0 | J101: 0 | K101: 0 | M101: Serviço | N101: Serviço | O101: - | P101: SINAPI | Q101: 93008 | R101: ELETRODUTO RÍGIDO ROSCÁVEL, PVC, DN 50 MM (1 1/2") - FORNECIMENTO E INSTALAÇÃO. AF_12/2015 | S101: M | T101: 106 | U101: 1 | V101: 106 | Y101: 0 | Z101: 0
A102: S | B102: 2 | C102: S | D102: 0 | E102: 1 | F102: 5 | G102: 0 | H102: 0 | I102: 0 | J102: 0 | K102: 0 | M102: Serviço | N102: Serviço | O102: - | P102: AGETOP | Q102: 70351 | R102: BRACADEIRA METALICA TIPO "U" DIAM. 3/4" | S102: Un | T102: 100 | U102: 1 | V102: 100 | Y102: 0 | Z102: 0
A103: S | B103: 2 | C103: S | D103: 0 | E103: 1 | F103: 5 | G103: 0 | H103: 0 | I103: 0 | J103: 0 | K103: 0 | M103: Serviço | N103: Serviço | O103: - | P103: AGETOP | Q103: 70352 | R103: BRACADEIRA METALICA TIPO "U" DIAM. 1" | S103: Un | T103: 50 | U103: 1 | V103: 50 | Y103: 0 | Z103: 0
A104: S | B104: 2 | C104: S | D104: 0 | E104: 1 | F104: 5 | G104: 0 | H104: 0 | I104: 0 | J104: 0 | K104: 0 | M104: Serviço | N104: Serviço | O104: - | P104: AGETOP | Q104: 70354 | R104: BRACADEIRA METALICA TIPO "U" DIAM. 1.1/2" | S104: Un | T104: 36 | U104: 1 | V104: 36 | Y104: 0 | Z104: 0
A105: S | B105: 2 | C105: S | D105: 0 | E105: 1 | F105: 5 | G105: 0 | H105: 0 | I105: 0 | J105: 0 | K105: 0 | M105: Serviço | N105: Serviço | O105: - | P105: SINAPI | Q105: 91879 | R105: LUVA PARA ELETRODUTO, PVC, ROSCÁVEL, DN 25 MM (3/4"), PARA CIRCUITOS TERMINAIS, INSTALADA EM LAJE - FORNECIMENTO E INSTALAÇÃO. AF_12/2015 | S105: UN | T105: 100 | U105: 1 | V105: 100 | Y105: 0 | Z105: 0 | AA105: Referência: AGETOP - 71741
A106: S | B106: 2 | C106: S | D106: 0 | E106: 1 | F106: 5 | G106: 0 | H106: 0 | I106: 0 | J106: 0 | K106: 0 | M106: Serviço | N106: Serviço | O106: - | P106: SINAPI | Q106: 91880 | R106: LUVA PARA ELETRODUTO, PVC, ROSCÁVEL, DN 32 MM (1"), PARA CIRCUITOS TERMINAIS, INSTALADA EM LAJE - FORNECIMENTO E INSTALAÇÃO. AF_12/2015 | S106: UN | T106: 50 | U106: 1 | V106: 50 | Y106: 0 | Z106: 0 | AA106: Referência: AGETOP - 71742
A107: S | B107: 2 | C107: S | D107: 0 | E107: 1 | F107: 5 | G107: 0 | H107: 0 | I107: 0 | J107: 0 | K107: 0 | M107: Serviço | N107: Serviço | O107: - | P107: SINAPI | Q107: 93013 | R107: LUVA PARA ELETRODUTO, PVC, ROSCÁVEL, DN 50 MM (1 1/2") - FORNECIMENTO E INSTALAÇÃO. AF_12/2015 | S107: UN | T107: 36 | U107: 1 | V107: 36 | Y107: 0 | Z107: 0 | AA107: Referência: AGETOP - 71744
A108: S | B108: 2 | C108: S | D108: 0 | E108: 1 | F108: 5 | G108: 0 | H108: 0 | I108: 0 | J108: 0 | K108: 0 | M108: Serviço | N108: Serviço | O108: - | P108: AGETOP | Q108: 72395 | R108: TAMPA CEGA PARA CONDULETE METÁLICO | S108: Un | T108: 25 | U108: 1 | V108: 25 | Y108: 0 | Z108: 0
A109: S | B109: 2 | C109: S | D109: 0 | E109: 1 | F109: 5 | G109: 0 | H109: 0 | I109: 0 | J109: 0 | K109: 0 | M109: Serviço | N109: Serviço | O109: - | P109: SINAPI | Q109: 95801 | R109: CONDULETE DE ALUMÍNIO, TIPO X, PARA ELETRODUTO DE AÇO GALVANIZADO DN 20 MM (3/4''), APARENTE - FORNECIMENTO E INSTALAÇÃO. AF_11/2016_P | S109: UN | T109: 25 | U109: 1 | V109: 25 | Y109: 0 | Z109: 0 | AA109: Referência: AGETOP - 70929
A110: S | B110: 2 | C110: S | D110: 0 | E110: 1 | F110: 5 | G110: 0 | H110: 0 | I110: 0 | J110: 0 | K110: 0 | M110: Serviço | N110: Serviço | O110: - | P110: SINAPI | Q110: 91902 | R110: CURVA 90 GRAUS PARA ELETRODUTO, PVC, ROSCÁVEL, DN 25 MM (3/4"), PARA CIRCUITOS TERMINAIS, INSTALADA EM LAJE - FORNECIMENTO E INSTALAÇÃO. AF_12/2015 | S110: UN | T110: 5 | U110: 1 | V110: 5 | Y110: 0 | Z110: 0 | AA110: Referência: AGETOP - 71141
A111: S | B111: 2 | C111: S | D111: 0 | E111: 1 | F111: 5 | G111: 0 | H111: 0 | I111: 0 | J111: 0 | K111: 0 | M111: Serviço | N111: Serviço | O111: - | P111: SINAPI | Q111: 91905 | R111: CURVA 90 GRAUS PARA ELETRODUTO, PVC, ROSCÁVEL, DN 32 MM (1"), PARA CIRCUITOS TERMINAIS, INSTALADA EM LAJE - FORNECIMENTO E INSTALAÇÃO. AF_12/2015 | S111: UN | T111: 5 | U111: 1 | V111: 5 | Y111: 0 | Z111: 0 | AA111: Referência: AGETOP - 71142
A112: S | B112: 2 | C112: S | D112: 0 | E112: 1 | F112: 5 | G112: 0 | H112: 0 | I112: 0 | J112: 0 | K112: 0 | M112: Serviço | N112: Serviço | O112: - | P112: AGETOP | Q112: 71124 | R112: CURVA 90 GRAUS AÇO ZINCADO DIÂMETRO 1.1/2" | S112: Un | T112: 5 | U112: 1 | V112: 5 | Y112: 0 | Z112: 0
A113: S | B113: 2 | C113: S | D113: 0 | E113: 1 | F113: 5 | G113: 0 | H113: 0 | I113: 0 | J113: 0 | K113: 0 | M113: Serviço | N113: Serviço | O113: - | P113: SINAPI | Q113: 91939 | R113: CAIXA RETANGULAR 4" X 2" ALTA (2,00 M DO PISO), PVC, INSTALADA EM PAREDE - FORNECIMENTO E INSTALAÇÃO. AF_12/2015 | S113: UN | T113: 121 | U113: 1 | V113: 121 | Y113: 0 | Z113: 0
A114: S | B114: 2 | C114: S | D114: 0 | E114: 1 | F114: 5 | G114: 0 | H114: 0 | I114: 0 | J114: 0 | K114: 0 | M114: Serviço | N114: Serviço | O114: - | P114: SINAPI | Q114: 91937 | R114: CAIXA OCTOGONAL 3" X 3", PVC, INSTALADA EM LAJE - FORNECIMENTO E INSTALAÇÃO. AF_12/2015 | S114: UN | T114: 74 | U114: 1 | V114: 74 | Y114: 0 | Z114: 0
A115: S | B115: 2 | C115: S | D115: 0 | E115: 1 | F115: 5 | G115: 0 | H115: 0 | I115: 0 | J115: 0 | K115: 0 | M115: Serviço | N115: Serviço | O115: - | P115: SINAPI | Q115: 92865 | R115: CAIXA OCTOGONAL 4" X 4", METÁLICA, INSTALADA EM LAJE - FORNECIMENTO E INSTALAÇÃO. AF_12/2015 | S115: UN | T115: 1 | U115: 1 | V115: 1 | Y115: 0 | Z115: 0 | AA115: Referência: AGETOP - 70682
A116: S | B116: 2 | C116: S | D116: 0 | E116: 1 | F116: 5 | G116: 0 | H116: 0 | I116: 0 | J116: 0 | K116: 0 | M116: Serviço | N116: Serviço | O116: - | P116: SINAPI | Q116: 91953 | R116: INTERRUPTOR SIMPLES (1 MÓDULO), 10A/250V, INCLUINDO SUPORTE E PLACA - FORNECIMENTO E INSTALAÇÃO. AF_12/2015 | S116: UN | T116: 21 | U116: 1 | V116: 21 | Y116: 0 | Z116: 0 | AA116: Referência: AGETOP - 71440
A117: S | B117: 2 | C117: S | D117: 0 | E117: 1 | F117: 5 | G117: 0 | H117: 0 | I117: 0 | J117: 0 | K117: 0 | M117: Serviço | N117: Serviço | O117: - | P117: SINAPI | Q117: 91955 | R117: INTERRUPTOR PARALELO (1 MÓDULO), 10A/250V, INCLUINDO SUPORTE E PLACA - FORNECIMENTO E INSTALAÇÃO. AF_12/2015 | S117: UN | T117: 6 | U117: 1 | V117: 6 | Y117: 0 | Z117: 0 | AA117: Referência: AGETOP - 71431
A118: S | B118: 2 | C118: S | D118: 0 | E118: 1 | F118: 5 | G118: 0 | H118: 0 | I118: 0 | J118: 0 | K118: 0 | M118: Serviço | N118: Serviço | O118: - | P118: SINAPI | Q118: 91959 | R118: INTERRUPTOR SIMPLES (2 MÓDULOS), 10A/250V, INCLUINDO SUPORTE E PLACA - FORNECIMENTO E INSTALAÇÃO. AF_12/2015 | S118: UN | T118: 1 | U118: 1 | V118: 1 | Y118: 0 | Z118: 0 | AA118: Referência: AGETOP - 71441
A119: S | B119: 2 | C119: S | D119: 0 | E119: 1 | F119: 5 | G119: 0 | H119: 0 | I119: 0 | J119: 0 | K119: 0 | M119: Serviço | N119: Serviço | O119: - | P119: SINAPI | Q119: 91969 | R119: INTERRUPTOR PARALELO (3 MÓDULOS), 10A/250V, INCLUINDO SUPORTE E PLACA - FORNECIMENTO E INSTALAÇÃO. AF_12/2015 | S119: UN | T119: 1 | U119: 1 | V119: 1 | Y119: 0 | Z119: 0
A120: S | B120: 2 | C120: S | D120: 0 | E120: 1 | F120: 5 | G120: 0 | H120: 0 | I120: 0 | J120: 0 | K120: 0 | M120: Serviço | N120: Serviço | O120: - | P120: SINAPI | Q120: 92000 | R120: TOMADA BAIXA DE EMBUTIR (1 MÓDULO), 2P+T 10 A, INCLUINDO SUPORTE E PLACA - FORNECIMENTO E INSTALAÇÃO. AF_12/2015 | S120: UN | T120: 43 | U120: 1 | V120: 43 | Y120: 0 | Z120: 0 | AA120: Referência: AGETOP - 72578
A121: S | B121: 2 | C121: S | D121: 0 | E121: 1 | F121: 5 | G121: 0 | H121: 0 | I121: 0 | J121: 0 | K121: 0 | M121: Serviço | N121: Serviço | O121: - | P121: SINAPI | Q121: 91996 | R121: TOMADA MÉDIA DE EMBUTIR (1 MÓDULO), 2P+T 10 A, INCLUINDO SUPORTE E PLACA - FORNECIMENTO E INSTALAÇÃO. AF_12/2015 | S121: UN | T121: 6 | U121: 1 | V121: 6 | Y121: 0 | Z121: 0 | AA121: Referência: AGETOP - 72578
A122: =CHOOSE(1+LOG(1+2*(ORÇAMENTO.Nivel="Nível 1")+4*(ORÇAMENTO.Nivel="Nível 2")+8*(ORÇAMENTO.Nivel="Nível 3")+16*(ORÇAMENTO.Nivel="Nível 4")+32*(ORÇAMENTO.Nivel="Serviço"),2),0,1,2,3,4,"S") -> S | B122: =IF(OR(C122="s",C122=0),OFFSET(B122,-1,0),C122) -> 2 | C122: =IF(OFFSET(C122,-1,0)="L",1,IF(OFFSET(C122,-1,0)=1,2,IF(OR(A122="s",A122=0),"S",IF(AND(OFFSET(C122,-1,0)=2,A122=4),3,IF(AND(OR(OFFSET(C122,-1,0)="s",OFFSET(C122,-1,0)=0),A122<>"s",A122>OFFSET(B122,-1,0)),OFFSET(B122,-1,0),A122))))) -> S | D122: =IF(OR(C122="S",C122=0),0,IF(ISERROR(K122),J122,SMALL(J122:K122,1))) -> 0 | E122: =IF($C122=1,OFFSET(E122,-1,0)+1,OFFSET(E122,-1,0)) -> 1 | F122: =IF($C122=1,0,IF($C122=2,OFFSET(F122,-1,0)+1,OFFSET(F122,-1,0))) -> 5 | G122: =IF(AND($C122<=2,$C122<>0),0,IF($C122=3,OFFSET(G122,-1,0)+1,OFFSET(G122,-1,0))) -> 0 | H122: =IF(AND($C122<=3,$C122<>0),0,IF($C122=4,OFFSET(H122,-1,0)+1,OFFSET(H122,-1,0))) -> 0 | I122: 0 | J122: 0 | K122: 0 | M122: Serviço | N122: Serviço | O122: - | P122: SINAPI | Q122: 92005 | R122: TOMADA MÉDIA DE EMBUTIR (2 MÓDULOS), 2P+T 20 A, INCLUINDO SUPORTE E PLACA - FORNECIMENTO E INSTALAÇÃO. AF_12/2015 | S122: UN | T122: 0 | U122: 1 | V122: - | Y122: 0 | Z122: 0
A123: S | B123: 2 | C123: S | D123: 0 | E123: 1 | F123: 5 | G123: 0 | H123: 0 | I123: 0 | J123: 0 | K123: 0 | M123: Serviço | N123: Serviço | O123: - | P123: SINAPI | Q123: 91993 | R123: TOMADA ALTA DE EMBUTIR (1 MÓDULO), 2P+T 20 A, INCLUINDO SUPORTE E PLACA - FORNECIMENTO E INSTALAÇÃO. AF_12/2015 | S123: UN | T123: 16 | U123: 1 | V123: 16 | Y123: 0 | Z123: 0 | AA123: Referência: AGETOP - 72585
A124: S | B124: 2 | C124: S | D124: 0 | E124: 1 | F124: 5 | G124: 0 | H124: 0 | I124: 0 | J124: 0 | K124: 0 | M124: Serviço | N124: Serviço | O124: - | P124: SINAPI | Q124: 92004 | R124: TOMADA MÉDIA DE EMBUTIR (2 MÓDULOS), 2P+T 10 A, INCLUINDO SUPORTE E PLACA - FORNECIMENTO E INSTALAÇÃO. AF_12/2015 | S124: UN | T124: 46 | U124: 1 | V124: 46 | Y124: 0 | Z124: 0 | AA124: Referência: AGETOP - 72578
A125: S | B125: 2 | C125: S | D125: 0 | E125: 1 | F125: 5 | G125: 0 | H125: 0 | I125: 0 | J125: 0 | K125: 0 | M125: Serviço | N125: Serviço | O125: - | P125: SINAPI | Q125: 91992 | R125: TOMADA ALTA DE EMBUTIR (1 MÓDULO), 2P+T 10 A, INCLUINDO SUPORTE E PLACA - FORNECIMENTO E INSTALAÇÃO. AF_12/2015 | S125: UN | T125: 3 | U125: 1 | V125: 3 | Y125: 0 | Z125: 0
A126: S | B126: 2 | C126: S | D126: 0 | E126: 1 | F126: 5 | G126: 0 | H126: 0 | I126: 0 | J126: 0 | K126: 0 | M126: Serviço | N126: Serviço | O126: - | P126: SINAPI | Q126: 97585 | R126: LUMINÁRIA TIPO CALHA, DE SOBREPOR, COM 2 LÂMPADAS TUBULARES FLUORESCENTES DE 18 W, COM REATOR DE PARTIDA RÁPIDA - FORNECIMENTO E INSTALAÇÃO. AF_02/2020 | S126: UN | T126: 74 | U126: 1 | V126: 74 | Y126: 0 | Z126: 0
A127: S | B127: 2 | C127: S | D127: 0 | E127: 1 | F127: 5 | G127: 0 | H127: 0 | I127: 0 | J127: 0 | K127: 0 | M127: Serviço | N127: Serviço | O127: - | P127: COMPOSIÇÃO | Q127: COMP 387_SEE | R127: LÂMPADA LED TUBULAR 18W | S127: UN | T127: 148 | U127: 1 | V127: 148 | Y127: 0 | Z127: 0
A128: S | B128: 2 | C128: S | D128: 0 | E128: 1 | F128: 5 | G128: 0 | H128: 0 | I128: 0 | J128: 0 | K128: 0 | M128: Serviço | N128: Serviço | O128: - | P128: SINAPI | Q128: 97606 | R128: LUMINÁRIA ARANDELA TIPO MEIA LUA, DE SOBREPOR, COM 1 LÂMPADA FLUORESCENTE DE 15 W, SEM REATOR - FORNECIMENTO E INSTALAÇÃO. AF_02/2020 | S128: UN | T128: 10 | U128: 1 | V128: 10 | Y128: 0 | Z128: 0
A129: S | B129: 2 | C129: S | D129: 0 | E129: 1 | F129: 5 | G129: 0 | H129: 0 | I129: 0 | J129: 0 | K129: 0 | M129: Serviço | N129: Serviço | O129: - | P129: SINAPI | Q129: 97610 | R129: LÂMPADA COMPACTA DE LED 10 W, BASE E27 - FORNECIMENTO E INSTALAÇÃO. AF_02/2020 | S129: UN | T129: 10 | U129: 1 | V129: 10 | Y129: 0 | Z129: 0
A130: S | B130: 2 | C130: S | D130: 0 | E130: 1 | F130: 5 | G130: 0 | H130: 0 | I130: 0 | J130: 0 | K130: 0 | M130: Serviço | N130: Serviço | O130: - | P130: AGETOP | Q130: 71380 | R130: HASTE REV.COBRE(COPPERWELD) 3/4" X 2,40 M C/CONECTOR | S130: Un | T130: 3 | U130: 1 | V130: 3 | Y130: 0 | Z130: 0
A131: S | B131: 2 | C131: S | D131: 0 | E131: 1 | F131: 5 | G131: 0 | H131: 0 | I131: 0 | J131: 0 | K131: 0 | M131: Serviço | N131: Serviço | O131: - | P131: AGETOP | Q131: 70255 | R131: ATERRAMENTO - SOLDA EXOTÉRMICA - CARTUCHO 90 G | S131: un | T131: 3 | U131: 1 | V131: 3 | Y131: 0 | Z131: 0
A132: S | B132: 2 | C132: S | D132: 0 | E132: 1 | F132: 5 | G132: 0 | H132: 0 | I132: 0 | J132: 0 | K132: 0 | M132: Serviço | N132: Serviço | O132: - | P132: AGETOP | Q132: 70648 | R132: CAIXA DE PASSAGEM METÁLICA DE EMBUTIR 40X40X15 CM | S132: Un | T132: 2 | U132: 1 | V132: 2 | Y132: 0 | Z132: 0
A133: S | B133: 2 | C133: S | D133: 0 | E133: 1 | F133: 5 | G133: 0 | H133: 0 | I133: 0 | J133: 0 | K133: 0 | M133: Serviço | N133: Serviço | O133: - | P133: AGETOP | Q133: 70391 | R133: BUCHA DE NYLON S-6 | S133: Un | T133: 172 | U133: 1 | V133: 172 | Y133: 0 | Z133: 0
A134: S | B134: =IF(OR(C134="s",C134=0),OFFSET(B134,-1,0),C134) -> 2 | C134: =IF(OFFSET(C134,-1,0)="L",1,IF(OFFSET(C134,-1,0)=1,2,IF(OR(A134="s",A134=0),"S",IF(AND(OFFSET(C134,-1,0)=2,A134=4),3,IF(AND(OR(OFFSET(C134,-1,0)="s",OFFSET(C134,-1,0)=0),A134<>"s",A134>OFFSET(B134,-1,0)),OFFSET(B134,-1,0),A134))))) -> S | D134: =IF(OR(C134="S",C134=0),0,IF(ISERROR(K134),J134,SMALL(J134:K134,1))) -> 0 | E134: 1 | F134: 5 | G134: 0 | H134: 0 | I134: 0 | J134: 0 | K134: 0 | M134: Serviço | N134: Serviço | O134: - | P134: AGETOP | Q134: 71861 | R134: PARAFUSO P/BUCHA S-6 | S134: Un | T134: 172 | U134: 1 | V134: 172 | Y134: 0 | Z134: 0
A135: S | B135: 2 | C135: S | D135: 0 | E135: 1 | F135: 5 | G135: 0 | H135: 0 | I135: 0 | J135: 0 | K135: 0 | M135: Serviço | N135: Serviço | O135: - | P135: AGETOP | Q135: 71826 | R135: PADRÃO TRIFASICO 25 MM H=7 METROS | S135: Un | T135: 1 | U135: 1 | V135: 1 | Y135: 0 | Z135: 0
A136: S | B136: 2 | C136: S | D136: 0 | E136: 1 | F136: 5 | G136: 0 | H136: 0 | I136: 0 | J136: 0 | K136: 0 | M136: Serviço | N136: Serviço | O136: - | P136: AGETOP | Q136: 71321 | R136: FITA DE AUTO FUSAO, ROLO E 10,00 MM | S136: Un | T136: 5 | U136: 1 | V136: 5 | Y136: 0 | Z136: 0
A137: S | B137: 2 | C137: S | D137: 0 | E137: 1 | F137: 5 | G137: 0 | H137: 0 | I137: 0 | J137: 0 | K137: 0 | M137: Serviço | N137: Serviço | O137: - | P137: AGETOP | Q137: 20162 | R137: DEMOLIÇÃO DAS INSTALAÇÕES ELÉTRICAS E AFINS C/ TRANSP. ATÉ CB. E CARGA | S137: H | T137: 40 | U137: 1 | V137: 40 | Y137: 0 | Z137: 0
A138: =CHOOSE(1+LOG(1+2*(ORÇAMENTO.Nivel="Nível 1")+4*(ORÇAMENTO.Nivel="Nível 2")+8*(ORÇAMENTO.Nivel="Nível 3")+16*(ORÇAMENTO.Nivel="Nível 4")+32*(ORÇAMENTO.Nivel="Serviço"),2),0,1,2,3,4,"S") -> 2 | B138: =IF(OR(C138="s",C138=0),OFFSET(B138,-1,0),C138) -> 2 | C138: =IF(OFFSET(C138,-1,0)="L",1,IF(OFFSET(C138,-1,0)=1,2,IF(OR(A138="s",A138=0),"S",IF(AND(OFFSET(C138,-1,0)=2,A138=4),3,IF(AND(OR(OFFSET(C138,-1,0)="s",OFFSET(C138,-1,0)=0),A138<>"s",A138>OFFSET(B138,-1,0)),OFFSET(B138,-1,0),A138))))) -> 2 | D138: =IF(OR(C138="S",C138=0),0,IF(ISERROR(K138),J138,SMALL(J138:K138,1))) -> 83 | E138: =IF($C138=1,OFFSET(E138,-1,0)+1,OFFSET(E138,-1,0)) -> 1 | F138: =IF($C138=1,0,IF($C138=2,OFFSET(F138,-1,0)+1,OFFSET(F138,-1,0))) -> 6 | G138: =IF(AND($C138<=2,$C138<>0),0,IF($C138=3,OFFSET(G138,-1,0)+1,OFFSET(G138,-1,0))) -> 0 | H138: =IF(AND($C138<=3,$C138<>0),0,IF($C138=4,OFFSET(H138,-1,0)+1,OFFSET(H138,-1,0))) -> 0 | I138: =IF(AND($C138<=4,$C138<>0),0,IF(AND($C138="S",$Y138>0),OFFSET(I138,-1,0)+1,OFFSET(I138,-1,0))) -> 0 | J138: 242 | K138: 83 | M138: Nível 2 | N138: Nível 2 | O138: - | P138: AGETOP | R138: INSTALAÇÕES HIDROSSANITÁRIAS | S138: - | U138: 1 | V138: - | Y138: 0 | Z138: 0
A139: 3 | B139: 3 | C139: 3 | D139: 32 | E139: 1 | F139: 6 | G139: 1 | H139: 0 | I139: 0 | J139: 82 | K139: 32 | M139: Nível 3 | N139: Nível 3 | O139: - | P139: SINAPI | R139: PEÇAS E ACESSÓRIOS | S139: - | U139: 1 | V139: - | Y139: 0 | Z139: 0
A140: 4 | B140: 4 | C140: 4 | D140: 4 | E140: 1 | F140: 6 | G140: 1 | H140: 1 | I140: 0 | J140: 31 | K140: 4 | M140: Nível 4 | N140: Nível 4 | O140: - | P140: SINAPI | R140: CAIXAS E CURVAS | S140: - | U140: 1 | V140: - | Y140: 0 | Z140: 0
A141: S | B141: 4 | C141: S | D141: 0 | E141: 1 | F141: 6 | G141: 1 | H141: 1 | I141: 0 | J141: 0 | K141: 0 | M141: Serviço | N141: Serviço | O141: - | P141: SINAPI | Q141: 6171 | R141: TAMPA DE CONCRETO ARMADO 60X60X5CM PARA CAIXA | S141: UN | T141: 5 | U141: 1 | V141: 5 | Y141: 0 | Z141: 0
A142: S | B142: 4 | C142: S | D142: 0 | E142: 1 | F142: 6 | G142: 1 | H142: 1 | I142: 0 | J142: 0 | K142: 0 | M142: Serviço | N142: Serviço | O142: - | P142: AGETOP | Q142: 70715 | R142: CAIXA DE PASSAGEM 60X60X80CM FUNDO DE BRITA SEM TAMPA | S142: Un | T142: 4 | U142: 1 | V142: 4 | Y142: 0 | Z142: 0
A143: =CHOOSE(1+LOG(1+2*(ORÇAMENTO.Nivel="Nível 1")+4*(ORÇAMENTO.Nivel="Nível 2")+8*(ORÇAMENTO.Nivel="Nível 3")+16*(ORÇAMENTO.Nivel="Nível 4")+32*(ORÇAMENTO.Nivel="Serviço"),2),0,1,2,3,4,"S") -> S | B143: =IF(OR(C143="s",C143=0),OFFSET(B143,-1,0),C143) -> 4 | C143: =IF(OFFSET(C143,-1,0)="L",1,IF(OFFSET(C143,-1,0)=1,2,IF(OR(A143="s",A143=0),"S",IF(AND(OFFSET(C143,-1,0)=2,A143=4),3,IF(AND(OR(OFFSET(C143,-1,0)="s",OFFSET(C143,-1,0)=0),A143<>"s",A143>OFFSET(B143,-1,0)),OFFSET(B143,-1,0),A143))))) -> S | D143: =IF(OR(C143="S",C143=0),0,IF(ISERROR(K143),J143,SMALL(J143:K143,1))) -> 0 | E143: =IF($C143=1,OFFSET(E143,-1,0)+1,OFFSET(E143,-1,0)) -> 1 | F143: =IF($C143=1,0,IF($C143=2,OFFSET(F143,-1,0)+1,OFFSET(F143,-1,0))) -> 6 | G143: =IF(AND($C143<=2,$C143<>0),0,IF($C143=3,OFFSET(G143,-1,0)+1,OFFSET(G143,-1,0))) -> 1 | H143: =IF(AND($C143<=3,$C143<>0),0,IF($C143=4,OFFSET(H143,-1,0)+1,OFFSET(H143,-1,0))) -> 1 | I143: 0 | J143: 0 | K143: 0 | M143: Serviço | N143: Serviço | O143: - | P143: AGETOP | Q143: 81851 | R143: CAIXA DE GORDURA 100 L CONCRETO PADRÃO GOINFRA IMPERMEABILIZADA | S143: Un | T143: 1 | U143: 1 | V143: 1 | Y143: 0 | Z143: 0
A144: 4 | B144: 4 | C144: 4 | D144: 8 | E144: 1 | F144: 6 | G144: 1 | H144: 2 | I144: 0 | J144: 27 | K144: 8 | M144: Nível 4 | N144: Nível 4 | O144: - | P144: SINAPI | R144: VASO SANITÁRIO E ACESSÓRIOS | S144: - | U144: 1 | V144: - | Y144: 0 | Z144: 0
A145: S | B145: 4 | C145: S | D145: 0 | E145: 1 | F145: 6 | G145: 1 | H145: 2 | I145: 0 | J145: 0 | K145: 0 | M145: Serviço | N145: Serviço | O145: - | P145: SINAPI | Q145: 95470 | R145: VASO SANITARIO SIFONADO CONVENCIONAL COM LOUÇA BRANCA, INCLUSO CONJUNTO DE LIGAÇÃO PARA BACIA SANITÁRIA AJUSTÁVEL - FORNECIMENTO E INSTALAÇÃO. AF_10/2016 | S145: UN | T145: 3 | U145: 1 | V145: 3 | Y145: 0 | Z145: 0
A146: S | B146: 4 | C146: S | D146: 0 | E146: 1 | F146: 6 | G146: 1 | H146: 2 | I146: 0 | J146: 0 | K146: 0 | M146: Serviço | N146: Serviço | O146: - | P146: AGETOP | Q146: 80514 | R146: TUBO DE LIGACAO PVC CROMADO 1.1/2" / ESPUDE - (ENTRADA) | S146: Un | T146: 3 | U146: 1 | V146: 3 | Y146: 0 | Z146: 0
A147: S | B147: 4 | C147: S | D147: 0 | E147: 1 | F147: 6 | G147: 1 | H147: 2 | I147: 0 | J147: 0 | K147: 0 | M147: Serviço | N147: Serviço | O147: - | P147: AGETOP | Q147: 80513 | R147: TUBO PARA VÁLVULA DE DESCARGA ( CURTO 1.1/4" ) | S147: Un | T147: 3 | U147: 1 | V147: 3 | Y147: 0 | Z147: 0
A148: S | B148: 4 | C148: S | D148: 0 | E148: 1 | F148: 6 | G148: 1 | H148: 2 | I148: 0 | J148: =IF(OR($C148="S",$C148=0),0,MATCH(0,OFFSET($D148,1,$C148,ROW($C$380)-ROW($C148)),0)) -> 0 | K148: =IF(OR($C148="S",$C148=0),0,MATCH(OFFSET($D148,0,$C148)+1,OFFSET($D148,1,$C148,ROW($C$380)-ROW($C148)),0)) -> 0 | M148: Serviço | N148: Serviço | O148: - | P148: SINAPI | Q148: 99635 | R148: VÁLVULA DE DESCARGA METÁLICA, BASE 1 1/2 ", ACABAMENTO METALICO CROMADO - FORNECIMENTO E INSTALAÇÃO. AF_01/2019 | S148: UN | T148: 3 | U148: 1 | V148: 3 | Y148: 0 | Z148: 0 | AA148: Referência: AGETOP - 80515
A149: S | B149: 4 | C149: S | D149: 0 | E149: 1 | F149: 6 | G149: 1 | H149: 2 | I149: 0 | J149: 0 | K149: 0 | M149: Serviço | N149: Serviço | O149: - | P149: AGETOP | Q149: 80520 | R149: CONJUNTO DE FIXACAO P/VASO SANITARIO (PAR) | S149: CJ | T149: 3 | U149: 1 | V149: 3 | Y149: 0 | Z149: 0
A150: S | B150: 4 | C150: S | D150: 0 | E150: 1 | F150: 6 | G150: 1 | H150: 2 | I150: 0 | J150: 0 | K150: 0 | M150: Serviço | N150: Serviço | O150: - | P150: AGETOP | Q150: 80510 | R150: ANEL DE VEDAÇÃO PARA VASO SANITÁRIO | S150: Un | T150: 3 | U150: 1 | V150: 3 | Y150: 0 | Z150: 0
A151: S | B151: 4 | C151: S | D151: 0 | E151: 1 | F151: 6 | G151: 1 | H151: 2 | I151: 0 | J151: 0 | K151: 0 | M151: Serviço | N151: Serviço | O151: - | P151: AGETOP | Q151: 80526 | R151: ASSENTO EM POLIPROPILENO COM SISTEMA DE FECHAMENTO SUAVE PARA VASO SANITÁRIO | S151: Un | T151: 3 | U151: 1 | V151: 3 | Y151: 0 | Z151: 0
A152: 4 | B152: 4 | C152: 4 | D152: 7 | E152: 1 | F152: 6 | G152: 1 | H152: 3 | I152: 0 | J152: 19 | K152: 7 | M152: Nível 4 | N152: Nível 4 | O152: - | R152: LAVATÓRIO E ACESSÓRIOS | S152: - | U152: 1 | V152: - | Y152: 0 | Z152: 0
A153: S | B153: 4 | C153: S | D153: 0 | E153: 1 | F153: 6 | G153: 1 | H153: 3 | I153: 0 | J153: 0 | K153: 0 | M153: Serviço | N153: Serviço | O153: - | P153: AGETOP | Q153: 80542 | R153: LAVATÓRIO MÉDIO SEM COLUNA | S153: Un | T153: 3 | U153: 1 | V153: 3 | Y153: 0 | Z153: 0
A154: S | B154: 4 | C154: S | D154: 0 | E154: 1 | F154: 6 | G154: 1 | H154: 3 | I154: 0 | J154: 0 | K154: 0 | M154: Serviço | N154: Serviço | O154: - | P154: AGETOP | Q154: 80550 | R154: FIXACAO P/LAVATORIO (PAR) | S154: PAR | T154: 3 | U154: 1 | V154: 3 | Y154: 0 | Z154: 0
A155: S | B155: 4 | C155: S | D155: 0 | E155: 1 | F155: 6 | G155: 1 | H155: 3 | I155: 0 | J155: 0 | K155: 0 | M155: Serviço | N155: Serviço | O155: - | P155: AGETOP | Q155: 80556 | R155: LIGAÇÃO FLEXÍVEL PVC DIAM.1/2" (ENGATE) | S155: Un | T155: 3 | U155: 1 | V155: 3 | Y155: 0 | Z155: 0
A156: S | B156: 4 | C156: S | D156: 0 | E156: 1 | F156: 6 | G156: 1 | H156: 3 | I156: 0 | J156: 0 | K156: 0 | M156: Serviço | N156: Serviço | O156: - | P156: SINAPI | Q156: 86883 | R156: SIFÃO DO TIPO FLEXÍVEL EM PVC 1 X 1.1/2 - FORNECIMENTO E INSTALAÇÃO. AF_01/2020 | S156: UN | T156: 3 | U156: 1 | V156: 3 | Y156: 0 | Z156: 0
A157: S | B157: 4 | C157: S | D157: 0 | E157: 1 | F157: 6 | G157: 1 | H157: 3 | I157: 0 | J157: 0 | K157: 0 | M157: Serviço | N157: Serviço | O157: - | P157: SINAPI | Q157: 86915 | R157: TORNEIRA CROMADA DE MESA, 1/2 OU 3/4, PARA LAVATÓRIO, PADRÃO MÉDIO - FORNECIMENTO E INSTALAÇÃO. AF_01/2020 | S157: UN | T157: 3 | U157: 1 | V157: 3 | Y157: 0 | Z157: 0 | AA157: Referência: AGETOP - 80570
A158: S | B158: 4 | C158: S | D158: 0 | E158: 1 | F158: 6 | G158: 1 | H158: 3 | I158: 0 | J158: 0 | K158: 0 | M158: Serviço | N158: Serviço | O158: - | P158: SINAPI | Q158: 86877 | R158: VÁLVULA EM METAL CROMADO 1.1/2 X 1.1/2 PARA TANQUE OU LAVATÓRIO, COM OU SEM LADRÃO - FORNECIMENTO E INSTALAÇÃO. AF_01/2020 | S158: UN | T158: 3 | U158: 1 | V158: 3 | Y158: 0 | Z158: 0 | AA158: Referência: AGETOP - 80580
A159: =CHOOSE(1+LOG(1+2*(ORÇAMENTO.Nivel="Nível 1")+4*(ORÇAMENTO.Nivel="Nível 2")+8*(ORÇAMENTO.Nivel="Nível 3")+16*(ORÇAMENTO.Nivel="Nível 4")+32*(ORÇAMENTO.Nivel="Serviço"),2),0,1,2,3,4,"S") -> 4 | B159: 4 | C159: 4 | D159: 5 | E159: 1 | F159: 6 | G159: 1 | H159: 4 | I159: 0 | J159: 12 | K159: 5 | M159: Nível 4 | N159: Nível 4 | O159: - | P159: SINAPI | R159: PIA E ACESSÓRIOS | S159: - | U159: 1 | V159: - | Y159: 0 | Z159: 0
A160: S | B160: 4 | C160: S | D160: 0 | E160: 1 | F160: 6 | G160: 1 | H160: 4 | I160: 0 | J160: 0 | K160: 0 | M160: Serviço | N160: Serviço | O160: - | P160: AGETOP | Q160: 80660 | R160: TORNEIRA DE PAREDE PARA PIA OU BEBEDOURO DIÂMETRO DE 1/2" E 3/4" | S160: Un | T160: 1 | U160: 1 | V160: 1 | Y160: 0 | Z160: 0
A161: S | B161: 4 | C161: S | D161: 0 | E161: 1 | F161: 6 | G161: 1 | H161: 4 | I161: 0 | J161: 0 | K161: 0 | M161: Serviço | N161: Serviço | O161: - | P161: SINAPI | Q161: 86881 | R161: SIFÃO DO TIPO GARRAFA EM METAL CROMADO 1 X 1.1/2 - FORNECIMENTO E INSTALAÇÃO. AF_01/2020 | S161: UN | T161: 1 | U161: 1 | V161: 1 | Y161: 0 | Z161: 0 | AA161: Referência: AGETOP - 80670
A162: S | B162: 4 | C162: S | D162: 0 | E162: 1 | F162: 6 | G162: 1 | H162: 4 | I162: 0 | J162: 0 | K162: 0 | M162: Serviço | N162: Serviço | O162: - | P162: SINAPI | Q162: 86878 | R162: VÁLVULA EM METAL CROMADO TIPO AMERICANA 3.1/2 X 1.1/2 PARA PIA - FORNECIMENTO E INSTALAÇÃO. AF_01/2020 | S162: UN | T162: 1 | U162: 1 | V162: 1 | Y162: 0 | Z162: 0
A163: S | B163: 4 | C163: S | D163: 0 | E163: 1 | F163: 6 | G163: 1 | H163: 4 | I163: 0 | J163: 0 | K163: 0 | M163: Serviço | N163: Serviço | O163: - | P163: AGETOP | Q163: 80686 | R163: CUBA INOX 56X34X17CM E=0,6MM-AÇO 304 (CUBA Nº2) | S163: Un | T163: 1 | U163: 1 | V163: 1 | Y163: 0 | Z163: 0
A164: 4 | B164: =IF(OR(C164="s",C164=0),OFFSET(B164,-1,0),C164) -> 4 | C164: =IF(OFFSET(C164,-1,0)="L",1,IF(OFFSET(C164,-1,0)=1,2,IF(OR(A164="s",A164=0),"S",IF(AND(OFFSET(C164,-1,0)=2,A164=4),3,IF(AND(OR(OFFSET(C164,-1,0)="s",OFFSET(C164,-1,0)=0),A164<>"s",A164>OFFSET(B164,-1,0)),OFFSET(B164,-1,0),A164))))) -> 4 | D164: =IF(OR(C164="S",C164=0),0,IF(ISERROR(K164),J164,SMALL(J164:K164,1))) -> 4 | E164: =IF($C164=1,OFFSET(E164,-1,0)+1,OFFSET(E164,-1,0)) -> 1 | F164: =IF($C164=1,0,IF($C164=2,OFFSET(F164,-1,0)+1,OFFSET(F164,-1,0))) -> 6 | G164: =IF(AND($C164<=2,$C164<>0),0,IF($C164=3,OFFSET(G164,-1,0)+1,OFFSET(G164,-1,0))) -> 1 | H164: =IF(AND($C164<=3,$C164<>0),0,IF($C164=4,OFFSET(H164,-1,0)+1,OFFSET(H164,-1,0))) -> 5 | I164: 0 | J164: 7 | K164: 4 | M164: Nível 4 | N164: Nível 4 | O164: - | P164: SINAPI | R164: CHUVEIRO | S164: - | U164: 1 | V164: - | Y164: 0 | Z164: 0
A165: S | B165: =IF(OR(C165="s",C165=0),OFFSET(B165,-1,0),C165) -> 4 | C165: =IF(OFFSET(C165,-1,0)="L",1,IF(OFFSET(C165,-1,0)=1,2,IF(OR(A165="s",A165=0),"S",IF(AND(OFFSET(C165,-1,0)=2,A165=4),3,IF(AND(OR(OFFSET(C165,-1,0)="s",OFFSET(C165,-1,0)=0),A165<>"s",A165>OFFSET(B165,-1,0)),OFFSET(B165,-1,0),A165))))) -> S | D165: =IF(OR(C165="S",C165=0),0,IF(ISERROR(K165),J165,SMALL(J165:K165,1))) -> 0 | E165: =IF($C165=1,OFFSET(E165,-1,0)+1,OFFSET(E165,-1,0)) -> 1 | F165: =IF($C165=1,0,IF($C165=2,OFFSET(F165,-1,0)+1,OFFSET(F165,-1,0))) -> 6 | G165: =IF(AND($C165<=2,$C165<>0),0,IF($C165=3,OFFSET(G165,-1,0)+1,OFFSET(G165,-1,0))) -> 1 | H165: =IF(AND($C165<=3,$C165<>0),0,IF($C165=4,OFFSET(H165,-1,0)+1,OFFSET(H165,-1,0))) -> 5 | I165: 0 | J165: 0 | K165: 0 | M165: Serviço | N165: Serviço | O165: - | P165: AGETOP | Q165: 80721 | R165: CHUVEIRO ELÉTRICO EM PVC COM BRAÇO METÁLICO | S165: Un | T165: 1 | U165: 1 | V165: 1 | Y165: 0 | Z165: 0
A166: =CHOOSE(1+LOG(1+2*(ORÇAMENTO.Nivel="Nível 1")+4*(ORÇAMENTO.Nivel="Nível 2")+8*(ORÇAMENTO.Nivel="Nível 3")+16*(ORÇAMENTO.Nivel="Nível 4")+32*(ORÇAMENTO.Nivel="Serviço"),2),0,1,2,3,4,"S") -> S | B166: 4 | C166: S | D166: 0 | E166: 1 | F166: 6 | G166: 1 | H166: 5 | I166: 0 | J166: 0 | K166: 0 | M166: Serviço | N166: Serviço | O166: - | P166: SINAPI | Q166: 95543 | R166: PORTA TOALHA BANHO EM METAL CROMADO, TIPO BARRA, INCLUSO FIXAÇÃO. AF_01/2020 | S166: UN | T166: 1 | U166: 1 | V166: 1 | Y166: 0 | Z166: 0
A167: S | B167: 4 | C167: S | D167: 0 | E167: 1 | F167: 6 | G167: 1 | H167: 5 | I167: 0 | J167: 0 | K167: 0 | M167: Serviço | N167: Serviço | O167: - | P167: AGETOP | Q167: 80741 | R167: SABONETEIRA EM METAL / ACABAMENTO CROMADO | S167: Un | T167: 1 | U167: 1 | V167: 1 | Y167: 0 | Z167: 0
A168: 4 | B168: 4 | C168: 4 | D168: 3 | E168: 1 | F168: 6 | G168: 1 | H168: 6 | I168: 0 | J168: 3 | K168: 24 | M168: Nível 4 | N168: Nível 4 | O168: - | P168: SINAPI | R168: REGISTROS | S168: - | U168: 1 | V168: - | Y168: 0 | Z168: 0
A169: S | B169: 4 | C169: S | D169: 0 | E169: 1 | F169: 6 | G169: 1 | H169: 6 | I169: 0 | J169: 0 | K169: 0 | M169: Serviço | N169: Serviço | O169: - | P169: SINAPI | Q169: 94794 | R169: REGISTRO DE GAVETA BRUTO, LATÃO, ROSCÁVEL, 1 1/2, COM ACABAMENTO E CANOPLA CROMADOS, INSTALADO EM RESERVAÇÃO DE ÁGUA DE EDIFICAÇÃO QUE POSSUA RESERVATÓRIO DE FIBRA/FIBROCIMENTO  FORNECIMENTO E INSTALAÇÃO. AF_06/2016 | S169: UN | T169: 2 | U169: 1 | V169: 2 | Y169: 0 | Z169: 0 | AA169: Referência: AGETOP - 80929
A170: =CHOOSE(1+LOG(1+2*(ORÇAMENTO.Nivel="Nível 1")+4*(ORÇAMENTO.Nivel="Nível 2")+8*(ORÇAMENTO.Nivel="Nível 3")+16*(ORÇAMENTO.Nivel="Nível 4")+32*(ORÇAMENTO.Nivel="Serviço"),2),0,1,2,3,4,"S") -> S | B170: =IF(OR(C170="s",C170=0),OFFSET(B170,-1,0),C170) -> 4 | C170: =IF(OFFSET(C170,-1,0)="L",1,IF(OFFSET(C170,-1,0)=1,2,IF(OR(A170="s",A170=0),"S",IF(AND(OFFSET(C170,-1,0)=2,A170=4),3,IF(AND(OR(OFFSET(C170,-1,0)="s",OFFSET(C170,-1,0)=0),A170<>"s",A170>OFFSET(B170,-1,0)),OFFSET(B170,-1,0),A170))))) -> S | D170: =IF(OR(C170="S",C170=0),0,IF(ISERROR(K170),J170,SMALL(J170:K170,1))) -> 0 | E170: =IF($C170=1,OFFSET(E170,-1,0)+1,OFFSET(E170,-1,0)) -> 1 | F170: =IF($C170=1,0,IF($C170=2,OFFSET(F170,-1,0)+1,OFFSET(F170,-1,0))) -> 6 | G170: =IF(AND($C170<=2,$C170<>0),0,IF($C170=3,OFFSET(G170,-1,0)+1,OFFSET(G170,-1,0))) -> 1 | H170: =IF(AND($C170<=3,$C170<>0),0,IF($C170=4,OFFSET(H170,-1,0)+1,OFFSET(H170,-1,0))) -> 6 | I170: 0 | J170: 0 | K170: 0 | M170: Serviço | N170: Serviço | O170: - | P170: SINAPI | Q170: 89353 | R170: REGISTRO DE GAVETA BRUTO, LATÃO, ROSCÁVEL, 3/4", FORNECIDO E INSTALADO EM RAMAL DE ÁGUA. AF_12/2014 | S170: UN | T170: 1 | U170: 1 | V170: 1 | Y170: 0 | Z170: 0 | AA170: Referência: AGETOP - 80902
A171: 3 | B171: 3 | C171: 3 | D171: 24 | E171: 1 | F171: 6 | G171: 2 | H171: 0 | I171: 0 | J171: 50 | K171: 24 | M171: Nível 3 | N171: Nível 3 | O171: - | P171: SINAPI | R171: ÁGUA FRIA | S171: - | U171: 1 | V171: - | Y171: 0 | Z171: 0
A172: 4 | B172: 4 | C172: 4 | D172: 4 | E172: 1 | F172: 6 | G172: 2 | H172: 1 | I172: 0 | J172: 23 | K172: 4 | M172: Nível 4 | N172: Nível 4 | O172: - | P172: SINAPI | R172: TUBOS DE PVC SOLDÁVEL | S172: - | U172: 1 | V172: - | Y172: 0 | Z172: 0
A173: =CHOOSE(1+LOG(1+2*(ORÇAMENTO.Nivel="Nível 1")+4*(ORÇAMENTO.Nivel="Nível 2")+8*(ORÇAMENTO.Nivel="Nível 3")+16*(ORÇAMENTO.Nivel="Nível 4")+32*(ORÇAMENTO.Nivel="Serviço"),2),0,1,2,3,4,"S") -> S | B173: 4 | C173: S | D173: 0 | E173: 1 | F173: 6 | G173: 2 | H173: 1 | I173: 0 | J173: 0 | K173: 0 | M173: Serviço | N173: Serviço | O173: - | P173: SINAPI | Q173: 89402 | R173: TUBO, PVC, SOLDÁVEL, DN 25MM, INSTALADO EM RAMAL DE DISTRIBUIÇÃO DE ÁGUA - FORNECIMENTO E INSTALAÇÃO. AF_12/2014 | S173: M | T173: 12 | U173: 1 | V173: 12 | Y173: 0 | Z173: 0 | AA173: Referência: AGETOP - 81003
A174: S | B174: 4 | C174: S | D174: 0 | E174: 1 | F174: 6 | G174: 2 | H174: 1 | I174: 0 | J174: 0 | K174: 0 | M174: Serviço | N174: Serviço | O174: - | P174: SINAPI | Q174: 89448 | R174: TUBO, PVC, SOLDÁVEL, DN 40MM, INSTALADO EM PRUMADA DE ÁGUA - FORNECIMENTO E INSTALAÇÃO. AF_12/2014 | S174: M | T174: 10 | U174: 1 | V174: 10 | Y174: 0 | Z174: 0
A175: S | B175: 4 | C175: S | D175: 0 | E175: 1 | F175: 6 | G175: 2 | H175: 1 | I175: 0 | J175: 0 | K175: 0 | M175: Serviço | N175: Serviço | O175: - | P175: SINAPI | Q175: 89449 | R175: TUBO, PVC, SOLDÁVEL, DN 50MM, INSTALADO EM PRUMADA DE ÁGUA - FORNECIMENTO E INSTALAÇÃO. AF_12/2014 | S175: M | T175: 10 | U175: 1 | V175: 10 | Y175: 0 | Z175: 0
A176: 4 | B176: 4 | C176: 4 | D176: 3 | E176: 1 | F176: 6 | G176: 2 | H176: 2 | I176: 0 | J176: 19 | K176: 3 | M176: Nível 4 | N176: Nível 4 | O176: - | P176: SINAPI | R176: ADAPTADORES DE PVC SOLDÁVEL | S176: - | U176: 1 | V176: - | Y176: 0 | Z176: 0
A177: S | B177: 4 | C177: S | D177: 0 | E177: 1 | F177: 6 | G177: 2 | H177: 2 | I177: 0 | J177: 0 | K177: 0 | M177: Serviço | N177: Serviço | O177: - | P177: SINAPI | Q177: 94711 | R177: ADAPTADOR COM FLANGES LIVRES, PVC, SOLDÁVEL, DN 50 MM X 1 1/2 , INSTALADO EM RESERVAÇÃO DE ÁGUA DE EDIFICAÇÃO QUE POSSUA RESERVATÓRIO DE FIBRA/FIBROCIMENTO FORNECIMENTO E INSTALAÇÃO. AF_06/2016 | S177: UN | T177: 6 | U177: 1 | V177: 6 | Y177: 0 | Z177: 0 | AA177: Referência: AGETOP - 81043
A178: =CHOOSE(1+LOG(1+2*(ORÇAMENTO.Nivel="Nível 1")+4*(ORÇAMENTO.Nivel="Nível 2")+8*(ORÇAMENTO.Nivel="Nível 3")+16*(ORÇAMENTO.Nivel="Nível 4")+32*(ORÇAMENTO.Nivel="Serviço"),2),0,1,2,3,4,"S") -> S | B178: 4 | C178: S | D178: 0 | E178: 1 | F178: 6 | G178: 2 | H178: 2 | I178: 0 | J178: 0 | K178: 0 | M178: Serviço | N178: Serviço | O178: - | P178: SINAPI | Q178: 89429 | R178: ADAPTADOR CURTO COM BOLSA E ROSCA PARA REGISTRO, PVC, SOLDÁVEL, DN 25MM X 3/4, INSTALADO EM RAMAL DE DISTRIBUIÇÃO DE ÁGUA - FORNECIMENTO E INSTALAÇÃO. AF_12/2014 | S178: UN | T178: 2 | U178: 1 | V178: 2 | Y178: 0 | Z178: 0 | AA178: Referência: AGETOP - 81066
A179: 4 | B179: 4 | C179: 4 | D179: 2 | E179: 1 | F179: 6 | G179: 2 | H179: 3 | I179: 0 | J179: 16 | K179: 2 | M179: Nível 4 | N179: Nível 4 | O179: - | P179: SINAPI | R179: BUCHAS | S179: - | U179: 1 | V179: - | Y179: 0 | Z179: 0
A180: S | B180: 4 | C180: S | D180: 0 | E180: 1 | F180: 6 | G180: 2 | H180: 3 | I180: 0 | J180: 0 | K180: 0 | M180: Serviço | N180: Serviço | O180: - | P180: AGETOP | Q180: 81177 | R180: BUCHA DE REDUCAO SOLD.LONGA 40 X 25 | S180: Un | T180: 1 | U180: 1 | V180: 1 | Y180: 0 | Z180: 0
A181: 4 | B181: 4 | C181: 4 | D181: 4 | E181: 1 | F181: 6 | G181: 2 | H181: 4 | I181: 0 | J181: 14 | K181: 4 | M181: Nível 4 | N181: Nível 4 | O181: - | P181: SINAPI | R181: LUVAS DE PVC | S181: - | U181: 1 | V181: - | Y181: 0 | Z181: 0
A182: S | B182: 4 | C182: S | D182: 0 | E182: 1 | F182: 6 | G182: 2 | H182: 4 | I182: 0 | J182: 0 | K182: 0 | M182: Serviço | N182: Serviço | O182: - | P182: SINAPI | Q182: 89528 | R182: LUVA, PVC, SOLDÁVEL, DN 25MM, INSTALADO EM PRUMADA DE ÁGUA - FORNECIMENTO E INSTALAÇÃO. AF_12/2014 | S182: UN | T182: 3 | U182: 1 | V182: 3 | Y182: 0 | Z182: 0
A183: S | B183: 4 | C183: S | D183: 0 | E183: 1 | F183: 6 | G183: 2 | H183: 4 | I183: 0 | J183: 0 | K183: 0 | M183: Serviço | N183: Serviço | O183: - | P183: SINAPI | Q183: 89575 | R183: LUVA, PVC, SOLDÁVEL, DN 50MM, INSTALADO EM PRUMADA DE ÁGUA - FORNECIMENTO E INSTALAÇÃO. AF_12/2014 | S183: UN | T183: 3 | U183: 1 | V183: 3 | Y183: 0 | Z183: 0 | AA183: Referência: AGETOP - 81105
A184: S | B184: 4 | C184: S | D184: 0 | E184: 1 | F184: 6 | G184: 2 | H184: 4 | I184: 0 | J184: 0 | K184: 0 | M184: Serviço | N184: Serviço | O184: - | P184: SINAPI | Q184: 89558 | R184: LUVA, PVC, SOLDÁVEL, DN 40MM, INSTALADO EM PRUMADA DE ÁGUA - FORNECIMENTO E INSTALAÇÃO. AF_12/2014 | S184: UN | T184: 2 | U184: 1 | V184: 2 | Y184: 0 | Z184: 0
A185: 4 | B185: 4 | C185: 4 | D185: 5 | E185: 1 | F185: 6 | G185: 2 | H185: 5 | I185: 0 | J185: 10 | K185: 5 | M185: Nível 4 | N185: Nível 4 | O185: - | P185: SINAPI | R185: JOELHO | S185: - | U185: 1 | V185: - | Y185: 0 | Z185: 0
A186: S | B186: 4 | C186: S | D186: 0 | E186: 1 | F186: 6 | G186: 2 | H186: 5 | I186: 0 | J186: 0 | K186: 0 | M186: Serviço | N186: Serviço | O186: - | P186: SINAPI | Q186: 89481 | R186: JOELHO 90 GRAUS, PVC, SOLDÁVEL, DN 25MM, INSTALADO EM PRUMADA DE ÁGUA - FORNECIMENTO E INSTALAÇÃO. AF_12/2014 | S186: UN | T186: 8 | U186: 1 | V186: 8 | Y186: 0 | Z186: 0
A187: S | B187: 4 | C187: S | D187: 0 | E187: 1 | F187: 6 | G187: 2 | H187: 5 | I187: 0 | J187: 0 | K187: 0 | M187: Serviço | N187: Serviço | O187: - | P187: SINAPI | Q187: 89497 | R187: JOELHO 90 GRAUS, PVC, SOLDÁVEL, DN 40MM, INSTALADO EM PRUMADA DE ÁGUA - FORNECIMENTO E INSTALAÇÃO. AF_12/2014 | S187: UN | T187: 4 | U187: 1 | V187: 4 | Y187: 0 | Z187: 0
A188: S | B188: 4 | C188: S | D188: 0 | E188: 1 | F188: 6 | G188: 2 | H188: 5 | I188: 0 | J188: 0 | K188: 0 | M188: Serviço | N188: Serviço | O188: - | P188: SINAPI | Q188: 89501 | R188: JOELHO 90 GRAUS, PVC, SOLDÁVEL, DN 50MM, INSTALADO EM PRUMADA DE ÁGUA - FORNECIMENTO E INSTALAÇÃO. AF_12/2014 | S188: UN | T188: 5 | U188: 1 | V188: 5 | Y188: 0 | Z188: 0
A189: S | B189: 4 | C189: S | D189: 0 | E189: 1 | F189: 6 | G189: 2 | H189: 5 | I189: 0 | J189: 0 | K189: 0 | M189: Serviço | N189: Serviço | O189: - | P189: SINAPI | Q189: 94672 | R189: JOELHO 90 GRAUS COM BUCHA DE LATÃO, PVC, SOLDÁVEL, DN 25 MM, X 3/4 INSTALADO EM RESERVAÇÃO DE ÁGUA DE EDIFICAÇÃO QUE POSSUA RESERVATÓRIO DE FIBRA/FIBROCIMENTO FORNECIMENTO E INSTALAÇÃO. AF_06/2016 | S189: UN | T189: 3 | U189: 1 | V189: 3 | Y189: 0 | Z189: 0
A190: 4 | B190: 4 | C190: 4 | D190: 2 | E190: 1 | F190: 6 | G190: 2 | H190: 6 | I190: 0 | J190: 5 | K190: 2 | M190: Nível 4 | N190: Nível 4 | O190: - | P190: SINAPI | R190: TÊ | S190: - | U190: 1 | V190: - | Y190: 0 | Z190: 0
A191: S | B191: 4 | C191: S | D191: 0 | E191: 1 | F191: 6 | G191: 2 | H191: 6 | I191: 0 | J191: 0 | K191: 0 | M191: Serviço | N191: Serviço | O191: - | P191: SINAPI | Q191: 89627 | R191: TÊ DE REDUÇÃO, PVC, SOLDÁVEL, DN 50MM X 25MM, INSTALADO EM PRUMADA DE ÁGUA - FORNECIMENTO E INSTALAÇÃO. AF_12/2014 | S191: UN | T191: 2 | U191: 1 | V191: 2 | Y191: 0 | Z191: 0
A192: 4 | B192: 4 | C192: 4 | D192: 3 | E192: 1 | F192: 6 | G192: 2 | H192: 7 | I192: 0 | J192: 3 | M192: Nível 4 | N192: Nível 4 | O192: - | P192: SINAPI | R192: ADESIVOS | S192: - | U192: 1 | V192: - | Y192: 0 | Z192: 0
A193: S | B193: 4 | C193: S | D193: 0 | E193: 1 | F193: 6 | G193: 2 | H193: 7 | I193: 0 | J193: 0 | K193: 0 | M193: Serviço | N193: Serviço | O193: - | P193: AGETOP | Q193: 81501 | R193: ADESIVO PLASTICO - FRASCO 850 G | S193: Un | T193: 2 | U193: 1 | V193: 2 | Y193: 0 | Z193: 0
A194: S | B194: 4 | C194: S | D194: 0 | E194: 1 | F194: 6 | G194: 2 | H194: 7 | I194: 0 | J194: 0 | K194: 0 | M194: Serviço | N194: Serviço | O194: - | P194: AGETOP | Q194: 81504 | R194: SOLUCAO LIMPADORA 1000 CM3 | S194: Un | T194: 2 | U194: 1 | V194: 2 | Y194: 0 | Z194: 0
A195: 3 | B195: 3 | C195: 3 | D195: 24 | E195: 1 | F195: 6 | G195: 3 | H195: 0 | I195: 0 | J195: 26 | K195: 24 | M195: Nível 3 | N195: Nível 3 | O195: - | P195: SINAPI | R195: ESGOTO SANITÁRIO | S195: - | U195: 1 | V195: - | Y195: 0 | Z195: 0
A196: 4 | B196: 4 | C196: 4 | D196: 2 | E196: 1 | F196: 6 | G196: 3 | H196: 1 | I196: 0 | J196: 23 | K196: 2 | M196: Nível 4 | N196: Nível 4 | O196: - | P196: SINAPI | R196: CORPO DE CAIXA SIFONADA / RALO | S196: - | U196: 1 | V196: - | Y196: 0 | Z196: 0
A197: S | B197: 4 | C197: S | D197: 0 | E197: 1 | F197: 6 | G197: 3 | H197: 1 | I197: 0 | J197: 0 | K197: 0 | M197: Serviço | N197: Serviço | O197: - | P197: AGETOP | Q197: 81663 | R197: CORPO CX. SIFONADA DIAM. 150 X 150 X 50 | S197: Un | T197: 3 | U197: 1 | V197: 3 | Y197: 0 | Z197: 0
A198: 4 | B198: 4 | C198: 4 | D198: 2 | E198: 1 | F198: 6 | G198: 3 | H198: 2 | I198: 0 | J198: 21 | K198: 2 | M198: Nível 4 | N198: Nível 4 | O198: - | P198: SINAPI | R198: CURVAS | S198: - | U198: 1 | V198: - | Y198: 0 | Z198: 0
A199: S | B199: 4 | C199: S | D199: 0 | E199: 1 | F199: 6 | G199: 3 | H199: 2 | I199: 0 | J199: 0 | K199: 0 | M199: Serviço | N199: Serviço | O199: - | P199: AGETOP | Q199: 81730 | R199: CURVA 90 GRAUS CURTA DIAM. 40 MM | S199: Un | T199: 2 | U199: 1 | V199: 2 | Y199: 0 | Z199: 0
A200: 4 | B200: 4 | C200: 4 | D200: 6 | E200: 1 | F200: 6 | G200: 3 | H200: 3 | I200: 0 | J200: 19 | K200: 6 | M200: Nível 4 | N200: Nível 4 | O200: - | P200: SINAPI | R200: JOELHOS | S200: - | U200: 1 | V200: - | Y200: 0 | Z200: 0
A201: S | B201: 4 | C201: S | D201: 0 | E201: 1 | F201: 6 | G201: 3 | H201: 3 | I201: 0 | J201: 0 | K201: 0 | M201: Serviço | N201: Serviço | O201: - | P201: SINAPI | Q201: 89726 | R201: JOELHO 45 GRAUS, PVC, SERIE NORMAL, ESGOTO PREDIAL, DN 40 MM, JUNTA SOLDÁVEL, FORNECIDO E INSTALADO EM RAMAL DE DESCARGA OU RAMAL DE ESGOTO SANITÁRIO. AF_12/2014 | S201: UN | T201: 1 | U201: 1 | V201: 1 | Y201: 0 | Z201: 0
A202: S | B202: 4 | C202: S | D202: 0 | E202: 1 | F202: 6 | G202: 3 | H202: 3 | I202: 0 | J202: 0 | K202: 0 | M202: Serviço | N202: Serviço | O202: - | P202: SINAPI | Q202: 89802 | R202: JOELHO 45 GRAUS, PVC, SERIE NORMAL, ESGOTO PREDIAL, DN 50 MM, JUNTA ELÁSTICA, FORNECIDO E INSTALADO EM PRUMADA DE ESGOTO SANITÁRIO OU VENTILAÇÃO. AF_12/2014 | S202: UN | T202: 4 | U202: 1 | V202: 4 | Y202: 0 | Z202: 0
A203: S | B203: 4 | C203: S | D203: 0 | E203: 1 | F203: 6 | G203: 3 | H203: 3 | I203: 0 | J203: 0 | K203: 0 | M203: Serviço | N203: Serviço | O203: - | P203: AGETOP | Q203: 81938 | R203: JOELHO 90 GRAUS DIAMETRO 100 MM | S203: Un | T203: 2 | U203: 1 | V203: 2 | Y203: 0 | Z203: 0
A204: S | B204: 4 | C204: S | D204: 0 | E204: 1 | F204: 6 | G204: 3 | H204: 3 | I204: 0 | J204: 0 | K204: 0 | M204: Serviço | N204: Serviço | O204: - | P204: SINAPI | Q204: 89731 | R204: JOELHO 90 GRAUS, PVC, SERIE NORMAL, ESGOTO PREDIAL, DN 50 MM, JUNTA ELÁSTICA, FORNECIDO E INSTALADO EM RAMAL DE DESCARGA OU RAMAL DE ESGOTO SANITÁRIO. AF_12/2014 | S204: UN | T204: 4 | U204: 1 | V204: 4 | Y204: 0 | Z204: 0
A205: S | B205: 4 | C205: S | D205: 0 | E205: 1 | F205: 6 | G205: 3 | H205: 3 | I205: 0 | J205: 0 | K205: 0 | M205: Serviço | N205: Serviço | O205: - | P205: AGETOP | Q205: 81927 | R205: JOELHO 90 GRAUS C/ANEL 40 mm | S205: Un | T205: 2 | U205: 1 | V205: 2 | Y205: 0 | Z205: 0
A206: 4 | B206: 4 | C206: 4 | D206: 3 | E206: 1 | F206: 6 | G206: 3 | H206: 4 | I206: 0 | J206: 13 | K206: 3 | M206: Nível 4 | N206: Nível 4 | O206: - | P206: SINAPI | R206: JUNÇÕES | S206: - | U206: 1 | V206: - | Y206: 0 | Z206: 0
A207: S | B207: 4 | C207: S | D207: 0 | E207: 1 | F207: 6 | G207: 3 | H207: 4 | I207: 0 | J207: 0 | K207: 0 | M207: Serviço | N207: Serviço | O207: - | P207: SINAPI | Q207: 89797 | R207: JUNÇÃO SIMPLES, PVC, SERIE NORMAL, ESGOTO PREDIAL, DN 100 X 100 MM, JUNTA ELÁSTICA, FORNECIDO E INSTALADO EM RAMAL DE DESCARGA OU RAMAL DE ESGOTO SANITÁRIO. AF_12/2014 | S207: UN | T207: 1 | U207: 1 | V207: 1 | Y207: 0 | Z207: 0 | AA207: Referência: AGETOP - 81975
... 246 more rows

Sheet Resumo
B3: UNIDADE ESCOLAR | G3: CÓDIGO INEP
B4: =Orçamento!$O$5 -> COORDENAÇÃO REGIONAL DE EDUCAÇÃO DE JATAÍ | G4: =Orçamento!X5 -> 52052656
B6: OBRA | G6: CIDADE
B7: =Orçamento!$O$8 -> REFORMA E AMPLIAÇÃO | G7: =Orçamento!$X$8 -> JATAÍ
B9: ENDEREÇO | G9: CRE
B10: =Orçamento!$R$11 -> PRAÇA DOM GERMANO, 42 - CENTRO | G10: =Orçamento!$O$11 -> CRE-JATAI
B12: REFERÊNCIA | D12: DATA | G12: ÁREA TOTAL CONSTRUÍDA (M²)
B13: =CONCATENATE("AGETOP E SINAPI - ",Orçamento!$T$11) -> AGETOP E SINAPI - DESONERADA | D13: =Orçamento!$S$8 -> 2020-05-19 | G13: =Orçamento!$X$14 -> 452.07
A14: FILTRO
B15: RESUMO GERAL DO ORÇAMENTO
A16: ↓ | B16: ITEM | C16: DESCRIÇÃO DOS SERVIÇOS | G16: PREÇO SEM BDI | H16: PREÇO COM BDI | I16: PARTICIP. (%)
A17: =IF(G17>0,"F","") ->  | B17: 1. | C17: REFORMA E AMPLIAÇÃO | G17: =IFERROR(Orçamento!S433,"-") -> 0 | H17: =IFERROR(Orçamento!X433,"") -> 0 | I17: =Orçamento!AA433 -> 100
A18: =IF(G18>0,"F","") ->  | B18: 2. | C18: =Orçamento!$P434 ->  | G18: =IFERROR(Orçamento!S434,"-") -> 0 | H18: =IFERROR(Orçamento!X434,"") -> 0 | I18: =Orçamento!AA434 -> 0
B19: 3. | C19: =Orçamento!$P435 ->  | G19: =IFERROR(Orçamento!S435,"-") -> 0 | H19: =IFERROR(Orçamento!X435,"") -> 0 | I19: =Orçamento!AA435 -> 0
B20: 4. | C20: =Orçamento!$P436 ->  | G20: =IFERROR(Orçamento!S436,"-") -> 0 | H20: =IFERROR(Orçamento!X436,"") -> 0 | I20: =Orçamento!AA436 -> 0
B21: 5. | C21: =Orçamento!$P437 ->  | G21: =IFERROR(Orçamento!S437,"-") -> 0 | H21: =IFERROR(Orçamento!X437,"") -> 0 | I21: =Orçamento!AA437 -> 0
B22: 6. | C22: =Orçamento!$P438 ->  | G22: =IFERROR(Orçamento!S438,"-") -> 0 | H22: =IFERROR(Orçamento!X438,"") -> 0 | I22: =Orçamento!AA438 -> 0
B23: 7. | C23: =Orçamento!$P439 ->  | G23: =IFERROR(Orçamento!S439,"-") -> 0 | H23: =IFERROR(Orçamento!X439,"") -> 0 | I23: =Orçamento!AA439 -> 0
B24: 8. | C24: =Orçamento!$P440 ->  | G24: =IFERROR(Orçamento!S440,"-") -> 0 | H24: =IFERROR(Orçamento!X440,"") -> 0 | I24: =Orçamento!AA440 -> 0
B25: 9. | C25: =Orçamento!$P441 ->  | G25: =IFERROR(Orçamento!S441,"-") -> 0 | H25: =IFERROR(Orçamento!X441,"") -> 0 | I25: =Orçamento!AA441 -> 0
B26: 10. | C26: =Orçamento!$P442 ->  | G26: =IFERROR(Orçamento!S442,"-") -> 0 | H26: =IFERROR(Orçamento!X442,"") -> 0 | I26: =Orçamento!AA442 -> 0
B27: 11. | C27: =Orçamento!$P443 ->  | G27: =IFERROR(Orçamento!S443,"-") -> 0 | H27: =IFERROR(Orçamento!X443,"") -> 0 | I27: =Orçamento!AA443 -> 0
B28: 12. | C28: =Orçamento!$P444 ->  | G28: =IFERROR(Orçamento!S444,"-") -> 0 | H28: =IFERROR(Orçamento!X444,"") -> 0 | I28: =Orçamento!AA444 -> 0
B29: 13. | C29: =Orçamento!$P445 ->  | G29: =IFERROR(Orçamento!S445,"-") -> 0 | H29: =IFERROR(Orçamento!X445,"") -> 0 | I29: =Orçamento!AA445 -> 0
B30: 14. | C30: =Orçamento!$P446 ->  | G30: =IFERROR(Orçamento!S446,"-") -> 0 | H30: =IFERROR(Orçamento!X446,"") -> 0 | I30: =Orçamento!AA446 -> 0
B31: 15. | C31: =Orçamento!$P447 ->  | G31: =IFERROR(Orçamento!S447,"-") -> 0 | H31: =IFERROR(Orçamento!X447,"") -> 0 | I31: =Orçamento!AA447 -> 0
B32: 16. | C32: =Orçamento!$P448 ->  | G32: =IFERROR(Orçamento!S448,"-") -> 0 | H32: =IFERROR(Orçamento!X448,"") -> 0 | I32: =Orçamento!AA448 -> 0
B33: 17. | C33: =Orçamento!$P449 ->  | G33: =IFERROR(Orçamento!S449,"-") -> 0 | H33: =IFERROR(Orçamento!X449,"") -> 0 | I33: =Orçamento!AA449 -> 0
B34: 18. | C34: =Orçamento!$P450 ->  | G34: =IFERROR(Orçamento!S450,"-") -> 0 | H34: =IFERROR(Orçamento!X450,"") -> 0 | I34: =Orçamento!AA450 -> 0
B35: 19. | C35: =Orçamento!$P451 ->  | G35: =IFERROR(Orçamento!S451,"-") -> 0 | H35: =IFERROR(Orçamento!X451,"") -> 0 | I35: =Orçamento!AA451 -> 0
B36: 20. | C36: =Orçamento!$P452 ->  | G36: =IFERROR(Orçamento!S452,"-") -> 0 | H36: =IFERROR(Orçamento!X452,"") -> 0 | I36: =Orçamento!AA452 -> 0
A37: F | B37: TOTAL GERAL DO ORÇAMENTO (R$) | G37: =SUM(G17:G36) -> 0 | H37: =SUM(H17:H36) -> 0 | I37: =SUM(I17:I36) -> 100
A38: F
A39: F

Sheet Somatório
B3: UNIDADE ESCOLAR | E3: CÓDIGO INEP
B4: =Orçamento!$O$5 -> COORDENAÇÃO REGIONAL DE EDUCAÇÃO DE JATAÍ | E4: =Orçamento!X5 -> 52052656
B6: OBRA | E6: CIDADE
B7: =Orçamento!$O$8 -> REFORMA E AMPLIAÇÃO | E7: =Orçamento!$X$8 -> JATAÍ
B9: ENDEREÇO | E9: CRE
B10: =Orçamento!$R$11 -> PRAÇA DOM GERMANO, 42 - CENTRO | E10: =Orçamento!$O$11 -> CRE-JATAI
B12: REFERÊNCIA | D12: DATA | E12: ÁREA TOTAL CONSTRUÍDA (M²)
B13: =CONCATENATE("AGETOP E SINAPI - ",Orçamento!$T$11) -> AGETOP E SINAPI - DESONERADA | D13: =Orçamento!$S$8 -> 2020-05-19 | E13: =Orçamento!$X$14 -> 452.07
A14: FILTRO
B15: SOMATÓRIO DE SERVIÇOS
A16: ↓ | B16: ITEM | C16: DESCRIÇÃO DOS SERVIÇOS | D16: PREÇO SEM BDI (R$) | E16: PREÇO COM BDI (R$) | F16: PARTIC. ( % )
A17: =IF(D17>0,"F","") ->  | B17: a. | C17: =Orçamento!P399 -> SERVIÇOS PRELIMINARES | D17: =Orçamento!S399 -> 0 | E17: =Orçamento!X399 -> 0 | F17: =Orçamento!AA399 -> 0
A18: =IF(D18>0,"F","") ->  | B18: b. | C18: =Orçamento!P400 -> TRANSPORTES | D18: =Orçamento!S400 -> 0 | E18: =Orçamento!X400 -> 0 | F18: =Orçamento!AA400 -> 0
B19: c. | C19: =Orçamento!P401 -> SERVIÇO EM TERRA | D19: =Orçamento!S401 -> 0 | E19: =Orçamento!X401 -> 0 | F19: =Orçamento!AA401 -> 0
B20: d. | C20: =Orçamento!P402 -> FUNDAÇÕES E SONDAGENS | D20: =Orçamento!S402 -> 0 | E20: =Orçamento!X402 -> 0 | F20: =Orçamento!AA402 -> 0
B21: e. | C21: =Orçamento!P403 -> ESTRUTURA | D21: =Orçamento!S403 -> 0 | E21: =Orçamento!X403 -> 0 | F21: =Orçamento!AA403 -> 0
B22: f. | C22: =Orçamento!P404 -> INSTALAÇÕES ELÉTRICAS | D22: =Orçamento!S404 -> 0 | E22: =Orçamento!X404 -> 0 | F22: =Orçamento!AA404 -> 0
B23: g. | C23: =Orçamento!P405 -> INSTALAÇÕES HIDROSSANITÁRIAS | D23: =Orçamento!S405 -> 0 | E23: =Orçamento!X405 -> 0 | F23: =Orçamento!AA405 -> 0
B24: h | C24: =Orçamento!P406 -> INSTALAÇÕES ESPECIAIS | D24: =Orçamento!S406 -> 0 | E24: =Orçamento!X406 -> 0 | F24: =Orçamento!AA406 -> 0
B25: i. | C25: =Orçamento!P407 -> ALVENARIAS E DIVISÓRIAS | D25: =Orçamento!S407 -> 0 | E25: =Orçamento!X407 -> 0 | F25: =Orçamento!AA407 -> 0
B26: j. | C26: =Orçamento!P408 -> ALVENARIA AUTO-PORTANTE | D26: =Orçamento!S408 -> 0 | E26: =Orçamento!X408 -> 0 | F26: =Orçamento!AA408 -> 0
B27: k. | C27: =Orçamento!P409 -> IMPERMEABILIZAÇÃO | D27: =Orçamento!S409 -> 0 | E27: =Orçamento!X409 -> 0 | F27: =Orçamento!AA409 -> 0
B28: l. | C28: =Orçamento!P410 -> ISOLAMENTO TÉRMICO E ACÚSTICO | D28: =Orçamento!S410 -> 0 | E28: =Orçamento!X410 -> 0 | F28: =Orçamento!AA410 -> 0
B29: m. | C29: =Orçamento!P411 -> ESTRUTURA DE MADEIRA | D29: =Orçamento!S411 -> 0 | E29: =Orçamento!X411 -> 0 | F29: =Orçamento!AA411 -> 0
B30: n. | C30: =Orçamento!P412 -> ESTRUTURAS METÁLICAS | D30: =Orçamento!S412 -> 0 | E30: =Orçamento!X412 -> 0 | F30: =Orçamento!AA412 -> 0
B31: o. | C31: =Orçamento!P413 -> COBERTURAS | D31: =Orçamento!S413 -> 0 | E31: =Orçamento!X413 -> 0 | F31: =Orçamento!AA413 -> 0
B32: p. | C32: =Orçamento!P414 -> ESQUADRIAS DE MADEIRA | D32: =Orçamento!S414 -> 0 | E32: =Orçamento!X414 -> 0 | F32: =Orçamento!AA414 -> 0
B33: q. | C33: =Orçamento!P415 -> ESQUADRIAS METÁLICAS | D33: =Orçamento!S415 -> 0 | E33: =Orçamento!X415 -> 0 | F33: =Orçamento!AA415 -> 0
B34: r. | C34: =Orçamento!P416 -> VIDROS | D34: =Orçamento!S416 -> 0 | E34: =Orçamento!X416 -> 0 | F34: =Orçamento!AA416 -> 0
B35: s. | C35: =Orçamento!P417 -> REVESTIMENTO DE PAREDE | D35: =Orçamento!S417 -> 0 | E35: =Orçamento!X417 -> 0 | F35: =Orçamento!AA417 -> 0
B36: t. | C36: =Orçamento!P418 -> FORROS | D36: =Orçamento!S418 -> 0 | E36: =Orçamento!X418 -> 0 | F36: =Orçamento!AA418 -> 0
B37: u. | C37: =Orçamento!P419 -> REVESTIMENTO DE PISO | D37: =Orçamento!S419 -> 0 | E37: =Orçamento!X419 -> 0 | F37: =Orçamento!AA419 -> 0
B38: v. | C38: =Orçamento!P420 -> FERRAGENS | D38: =Orçamento!S420 -> 0 | E38: =Orçamento!X420 -> 0 | F38: =Orçamento!AA420 -> 0
B39: w. | C39: =Orçamento!P421 -> MARCENARIA | D39: =Orçamento!S421 -> 0 | E39: =Orçamento!X421 -> 0 | F39: =Orçamento!AA421 -> 0
B40: x. | C40: =Orçamento!P422 -> ADMINISTRAÇÃO | D40: =Orçamento!S422 -> 0 | E40: =Orçamento!X422 -> 0 | F40: =Orçamento!AA422 -> 0
B41: y. | C41: =Orçamento!P423 -> PINTURA | D41: =Orçamento!S423 -> 0 | E41: =Orçamento!X423 -> 0 | F41: =Orçamento!AA423 -> 0
B42: z. | C42: =Orçamento!P424 -> DIVERSOS | D42: =Orçamento!S424 -> 0 | E42: =Orçamento!X424 -> 0 | F42: =Orçamento!AA424 -> 0
A43: F | B43: TOTAL GERAL DO ORÇAMENTO | D43: =SUM(D17:D42) -> 0 | E43: =SUM(E17:E42) -> 0 | F43: =SUM(F17:F42) -> 0
B45: (*) Para itens da AGETOP, os vidros não estão inclusos nas esquadrias e já foram considerados os custos de contramarco para as esquadrias de alumínio;

Sheet Cronog_30_Dias
B3: UNIDADE ESCOLAR | I3: PRAZO
B4: =Orçamento!$O$5 -> COORDENAÇÃO REGIONAL DE EDUCAÇÃO DE JATAÍ | I4: 30 DIAS CORRIDOS
B6: OBRA | I6: DATA
B7: =Orçamento!$O$8 -> REFORMA E AMPLIAÇÃO | I7: =Orçamento!$S$8 -> 2020-05-19
B9: LOCAL | I9: ÁREA TOTAL CONSTRUÍDA (M²)
A10: FILTRO | B10: =Orçamento!$X$8 -> JATAÍ | I10: =Orçamento!$X$14 -> 452.07
B12: CRONOGRAMA - FÍSICO FINANCEIRO
A13: ↓ | B13: CUSTO TOTAL: | C13: =D93 -> 0 | D13: VALOR | E13: Dias: | F13: 15 | J13: 30 | N13: TOTAL
B14: DESCRIÇÃO DOS SERVIÇOS | E14: % | F14: 1ª PARCELA | J14: 2ª PARCELA
A15: =IF(D15>0,"F","") ->  | B15: SERVIÇOS PRELIMINARES | D15: =Orçamento!X399 -> 0 | E15: =Orçamento!AA399 -> 0 | F15: =ROUND(F17*$D$15,2) -> 0 | J15: =ROUND(J17*$D$15,2) -> 0 | N15: =SUM(F15:M15) -> 0
A16: =IF(A15="F",A15,"") -> 
A17: =IF(A16="F",A16,"") ->  | F17: 1 | J17: =1-F17 -> 0 | N17: =IFERROR(E15/100,"") -> 0
A18: =IF(D18>0,"F","") ->  | B18: TRANSPORTES | D18: =Orçamento!X400 -> 0 | E18: =Orçamento!AA400 -> 0 | F18: =ROUND(F20*$D$18,2) -> 0 | J18: =ROUND(J20*$D$18,2) -> 0 | N18: =SUM(F18:M18) -> 0
A19: =IF(A18="F",A18,"") -> 
A20: =IF(A19="F",A19,"") ->  | F20: 0.48 | J20: =1-F20 -> 0.52 | N20: =IFERROR(E18/100,"") -> 0
A21: =IF(D21>0,"F","") ->  | B21: SERVIÇO EM TERRA | D21: =Orçamento!X401 -> 0 | E21: =Orçamento!AA401 -> 0 | F21: =ROUND(F23*$D$21,2) -> 0 | J21: =ROUND(J23*$D$21,2) -> 0 | N21: =SUM(F21:M21) -> 0
A22: =IF(A21="F",A21,"") -> 
A23: =IF(A22="F",A22,"") ->  | F23: 1 | J23: =1-F23 -> 0 | N23: =IFERROR(E21/100,"") -> 0
A24: =IF(D24>0,"F","") ->  | B24: FUNDAÇÕES E SONDAGENS | D24: =Orçamento!X402 -> 0 | E24: =Orçamento!AA402 -> 0 | F24: =ROUND(F26*$D$24,2) -> 0 | J24: =ROUND(J26*$D$24,2) -> 0 | N24: =SUM(F24:M24) -> 0
A25: =IF(A24="F",A24,"") -> 
A26: =IF(A25="F",A25,"") ->  | F26: 1 | J26: =1-F26 -> 0 | N26: =IFERROR(E24/100,"") -> 0
A27: =IF(D27>0,"F","") ->  | B27: ESTRUTURA | D27: =Orçamento!X403 -> 0 | E27: =Orçamento!AA403 -> 0 | F27: =ROUND(F29*$D$27,2) -> 0 | J27: =ROUND(J29*$D$27,2) -> 0 | N27: =SUM(F27:M27) -> 0
A28: =IF(A27="F",A27,"") -> 
A29: =IF(A28="F",A28,"") ->  | F29: 0.49 | J29: =1-F29 -> 0.51 | N29: =IFERROR(E27/100,"") -> 0
A30: =IF(D30>0,"F","") ->  | B30: INST.ELET/TELEFÔNICA/CABEAMENTO ESTRUTURADO | D30: =Orçamento!X404 -> 0 | E30: =Orçamento!AA404 -> 0 | F30: =ROUND(F32*$D$30,2) -> 0 | J30: =ROUND(J32*$D$30,2) -> 0 | N30: =SUM(F30:M30) -> 0
A31: =IF(A30="F",A30,"") -> 
A32: =IF(A31="F",A31,"") ->  | F32: 0.4 | J32: =1-F32 -> 0.6 | N32: =IFERROR(E30/100,"") -> 0
A33: =IF(D33>0,"F","") ->  | B33: INSTALAÇÕES HIDROSSANITÁRIAS | D33: =Orçamento!X405 -> 0 | E33: =Orçamento!AA405 -> 0 | F33: =ROUND(F35*$D$33,2) -> 0 | J33: =ROUND(J35*$D$33,2) -> 0 | N33: =SUM(F33:M33) -> 0
A34: =IF(A33="F",A33,"") -> 
A35: =IF(A34="F",A34,"") ->  | F35: 0.48 | J35: =1-F35 -> 0.52 | N35: =IFERROR(E33/100,"") -> 0
A36: =IF(D36>0,"F","") ->  | B36: INSTALAÇÕES ESPECIAIS | D36: =Orçamento!X406 -> 0 | E36: =Orçamento!AA406 -> 0 | F36: =ROUND(F38*$D$36,2) -> 0 | J36: =ROUND(J38*$D$36,2) -> 0 | N36: =SUM(F36:M36) -> 0
A37: =IF(A36="F",A36,"") -> 
A38: =IF(A37="F",A37,"") ->  | F38: 1 | J38: =1-F38 -> 0 | N38: =IFERROR(E36/100,"") -> 0
A39: =IF(D39>0,"F","") ->  | B39: ALVENARIA E DIVISÓRIAS | D39: =Orçamento!X407 -> 0 | E39: =Orçamento!AA407 -> 0 | F39: =ROUND(F41*$D$39,2) -> 0 | J39: =ROUND(J41*$D$39,2) -> 0 | N39: =SUM(F39:M39) -> 0
A40: =IF(A39="F",A39,"") -> 
A41: =IF(A40="F",A40,"") ->  | F41: 1 | J41: =1-F41 -> 0 | N41: =IFERROR(E39/100,"") -> 0
A42: =IF(D42>0,"F","") ->  | B42: ALVENARIA AUTO-PORTANTE | D42: =Orçamento!X408 -> 0 | E42: =Orçamento!AA408 -> 0 | F42: =ROUND(F44*$D$42,2) -> 0 | J42: =ROUND(J44*$D$42,2) -> 0 | N42: =SUM(F42:M42) -> 0
A43: =IF(A42="F",A42,"") -> 
A44: =IF(A43="F",A43,"") ->  | F44: 1 | J44: =1-F44 -> 0 | N44: =IFERROR(E42/100,"") -> 0
A45: =IF(D45>0,"F","") ->  | B45: IMPERMEABILIZAÇÃO | D45: =Orçamento!X409 -> 0 | E45: =Orçamento!AA409 -> 0 | F45: =ROUND(F47*$D$45,2) -> 0 | J45: =ROUND(J47*$D$45,2) -> 0 | N45: =SUM(F45:M45) -> 0
A46: =IF(A45="F",A45,"") -> 
A47: =IF(A46="F",A46,"") ->  | F47: 1 | J47: =1-F47 -> 0 | N47: =IFERROR(E45/100,"") -> 0
A48: =IF(D48>0,"F","") ->  | B48: ISOLAMENTO TÉRMICO E ACÚSTICO | D48: =Orçamento!X410 -> 0 | E48: =Orçamento!AA410 -> 0 | F48: =ROUND(F50*$D$48,2) -> 0 | J48: =ROUND(J50*$D$48,2) -> 0 | N48: =SUM(F48:M48) -> 0
A49: =IF(A48="F",A48,"") -> 
A50: =IF(A49="F",A49,"") ->  | F50: 0.5 | J50: =1-F50 -> 0.5 | N50: =IFERROR(E48/100,"") -> 0
A51: =IF(D51>0,"F","") ->  | B51: ESTRUTURA DE MADEIRA | D51: =Orçamento!X411 -> 0 | E51: =Orçamento!AA411 -> 0 | F51: =ROUND(F53*$D$51,2) -> 0 | J51: =ROUND(J53*$D$51,2) -> 0 | N51: =SUM(F51:M51) -> 0
A52: =IF(A51="F",A51,"") -> 
A53: =IF(A52="F",A52,"") ->  | F53: 0.4 | J53: =1-F53 -> 0.6 | N53: =IFERROR(E51/100,"") -> 0
A54: =IF(D54>0,"F","") ->  | B54: ESTRUTURA METÁLICA | D54: =Orçamento!X412 -> 0 | E54: =Orçamento!AA412 -> 0 | F54: =ROUND(F56*$D$54,2) -> 0 | J54: =ROUND(J56*$D$54,2) -> 0 | N54: =SUM(F54:M54) -> 0
A55: =IF(A54="F",A54,"") -> 
A56: =IF(A55="F",A55,"") ->  | F56: 0.35 | J56: =1-F56 -> 0.65 | N56: =IFERROR(E54/100,"") -> 0
A57: =IF(D57>0,"F","") ->  | B57: COBERTURAS | D57: =Orçamento!X413 -> 0 | E57: =Orçamento!AA413 -> 0 | F57: =ROUND(F59*$D$57,2) -> 0 | J57: =ROUND(J59*$D$57,2) -> 0 | N57: =SUM(F57:M57) -> 0
A58: =IF(A57="F",A57,"") -> 
A59: =IF(A58="F",A58,"") ->  | F59: 0 | J59: =1-F59 -> 1 | N59: =IFERROR(E57/100,"") -> 0
A60: =IF(D60>0,"F","") ->  | B60: ESQUADRIAS DE MADEIRA | D60: =Orçamento!X414 -> 0 | E60: =Orçamento!AA414 -> 0 | F60: =ROUND(F62*$D$60,2) -> 0 | J60: =ROUND(J62*$D$60,2) -> 0 | N60: =SUM(F60:M60) -> 0
A61: =IF(A60="F",A60,"") -> 
A62: =IF(A61="F",A61,"") ->  | F62: 0.54 | J62: =1-F62 -> 0.46 | N62: =IFERROR(E60/100,"") -> 0
A63: =IF(D63>0,"F","") ->  | B63: ESQUADRIAS METÁLICAS | D63: =Orçamento!X415 -> 0 | E63: =Orçamento!AA415 -> 0 | F63: =ROUND(F65*$D$63,2) -> 0 | J63: =ROUND(J65*$D$63,2) -> 0 | N63: =SUM(F63:M63) -> 0
A64: =IF(A63="F",A63,"") -> 
A65: =IF(A64="F",A64,"") ->  | F65: 0.49 | J65: =1-F65 -> 0.51 | N65: =IFERROR(E63/100,"") -> 0
A66: =IF(D66>0,"F","") ->  | B66: VIDROS | D66: =Orçamento!X416 -> 0 | E66: =Orçamento!AA416 -> 0 | F66: =ROUND(F68*$D$66,2) -> 0 | J66: =ROUND(J68*$D$66,2) -> 0 | N66: =SUM(F66:M66) -> 0
A67: =IF(A66="F",A66,"") -> 
A68: =IF(A67="F",A67,"") ->  | F68: 0 | J68: =1-F68 -> 1 | N68: =IFERROR(E66/100,"") -> 0
A69: =IF(D69>0,"F","") ->  | B69: REVESTIMENTO DE PAREDE | D69: =Orçamento!X417 -> 0 | E69: =Orçamento!AA417 -> 0 | F69: =ROUND(F71*$D$69,2) -> 0 | J69: =ROUND(J71*$D$69,2) -> 0 | N69: =SUM(F69:M69) -> 0
A70: =IF(A69="F",A69,"") -> 
A71: =IF(A70="F",A70,"") ->  | F71: 0.32 | J71: =1-F71 -> 0.68 | N71: =IFERROR(E69/100,"") -> 0
A72: =IF(D72>0,"F","") ->  | B72: FORROS | D72: =Orçamento!X418 -> 0 | E72: =Orçamento!AA418 -> 0 | F72: =ROUND(F74*$D$72,2) -> 0 | J72: =ROUND(J74*$D$72,2) -> 0 | N72: =SUM(F72:M72) -> 0
A73: =IF(A72="F",A72,"") -> 
A74: =IF(A73="F",A73,"") ->  | F74: 0.24 | J74: =1-F74 -> 0.76 | N74: =IFERROR(E72/100,"") -> 0
A75: =IF(D75>0,"F","") ->  | B75: REVESTIMENTO DE PISO | D75: =Orçamento!X419 -> 0 | E75: =Orçamento!AA419 -> 0 | F75: =ROUND(F77*$D$75,2) -> 0 | J75: =ROUND(J77*$D$75,2) -> 0 | N75: =SUM(F75:M75) -> 0
A76: =IF(A75="F",A75,"") -> 
A77: =IF(A76="F",A76,"") ->  | F77: 0.49 | J77: =1-F77 -> 0.51 | N77: =IFERROR(E75/100,"") -> 0
A78: =IF(D78>0,"F","") ->  | B78: FERRAGENS | D78: =Orçamento!X420 -> 0 | E78: =Orçamento!AA420 -> 0 | F78: =ROUND(F80*$D$78,2) -> 0 | J78: =ROUND(J80*$D$78,2) -> 0 | N78: =SUM(F78:M78) -> 0
A79: =IF(A78="F",A78,"") -> 
A80: =IF(A79="F",A79,"") ->  | F80: 0 | J80: =1-F80 -> 1 | N80: =IFERROR(E78/100,"") -> 0
A81: =IF(D81>0,"F","") ->  | B81: MARCENARIA | D81: =Orçamento!X421 -> 0 | E81: =Orçamento!AA421 -> 0 | F81: =ROUND(F83*$D$81,2) -> 0 | J81: =ROUND(J83*$D$81,2) -> 0 | N81: =SUM(F81:M81) -> 0
A82: =IF(A81="F",A81,"") -> 
A83: =IF(A82="F",A82,"") ->  | F83: 0.4 | J83: =1-F83 -> 0.6 | N83: =IFERROR(E81/100,"") -> 0
A84: =IF(D84>0,"F","") ->  | B84: ADMINISTRAÇÃO - MENSALISTAS | D84: =Orçamento!X422 -> 0 | E84: =Orçamento!AA422 -> 0 | F84: =ROUND(F86*$D$84,2) -> 0 | J84: =ROUND(J86*$D$84,2) -> 0 | N84: =SUM(F84:M84) -> 0
A85: =IF(A84="F",A84,"") -> 
A86: =IF(A85="F",A85,"") ->  | F86: 0.49 | J86: =1-F86 -> 0.51 | N86: =IFERROR(E84/100,"") -> 0
A87: =IF(D87>0,"F","") ->  | B87: PINTURA | D87: =Orçamento!X423 -> 0 | E87: =Orçamento!AA423 -> 0 | F87: =ROUND(F89*$D$87,2) -> 0 | J87: =ROUND(J89*$D$87,2) -> 0 | N87: =SUM(F87:M87) -> 0
A88: =IF(A87="F",A87,"") -> 
A89: =IF(A88="F",A88,"") ->  | F89: 0 | J89: =1-F89 -> 1 | N89: =IFERROR(E87/100,"") -> 0
A90: =IF(D90>0,"F","") ->  | B90: DIVERSOS | D90: =Orçamento!X424 -> 0 | E90: =Orçamento!AA424 -> 0 | F90: =ROUND(F92*$D$90,2) -> 0 | J90: =ROUND(J92*$D$90,2) -> 0 | N90: =SUM(F90:M90) -> 0
A91: =IF(A90="F",A90,"") -> 
A92: =IF(A91="F",A91,"") ->  | F92: 0.4646 | J92: =1-F92 -> 0.5354 | N92: =IFERROR(E90/100,"") -> 0
A93: F | B93: CUSTO DO ORÇAMENTO | D93: =SUM(D15:D92) -> 0 | E93: =SUM(E15:E92) -> 0 | F93: =F15+F18+F21+F24+F27+F30+F33+F36+F39+F42+F45+F48+F51+F54+F57+F60+F63+F66+F69+F72+F75+F78+F81+F84+F87+F90 -> 0 | J93: =J15+J18+J21+J24+J27+J30+J33+J36+J39+J42+J45+J48+J51+J54+J57+J60+J63+J66+J69+J72+J75+J78+J81+J84+J87+J90 -> 0 | N93: =N15+N18+N21+N24+N27+N30+N33+N36+N39+N42+N45+N48+N51+N54+N57+N60+N63+N66+N69+N72+N75+N78+N81+N84+N87+N90 -> 0
A94: F | B94: PERCENTUAIS: | F94: =IFERROR(F93/D93,"") ->  | J94: =IFERROR(J93/D93,"") ->  | N94: =SUM(F94:M94) -> 0
A95: F | B95: TOTAIS ACUMULADOS: | F95: =F93 -> 0 | J95: =F95+J93 -> 0
A96: F | B96: PERCENTUAIS ACUMULADOS: | F96: =F94 ->  | J96: =IFERROR(F96+J94,"") -> 
A97: F
A98: F | B98: OBSERVAÇÕES:
A99: F | B99: Os pagamentos somente poderão ser efetuados mediante medição e atesto pelos técnicos da Secretaria da Educação.

Sheet Composição BDI
A3: UNIDADE ESCOLAR
A4: COORDENAÇÃO REGIONAL DE EDUCAÇÃO DE JATAÍ
A6: OBRA
A7: REFORMA E AMPLIAÇÃO
A9: ENDEREÇO
A10: PRAÇA DOM GERMANO, 42 - CENTRO
A12: CIDADE
A13: JATAÍ
A15: CRE
A16: CRE-JATAI
A18: DETALHAMENTO DA COMPOSIÇÃO DE BDI
A19: COMPOSIÇÃO BDI PARA OBRAS CIVIS | F19: BDI CONSTRUÇÃO E REFORMA
A20: DESCRIÇÃO | B20: COEF. | C20: TAXA % (a.m) | D20: % no preço de venda | F20: Situação | G20: 1º Quartil | H20: Médio | I20: 3º Quartil
A21: 1) COFINS | B21: 1 | C21: 0.03 | D21: 0.03 | F21: OK | G21: 0.03 | H21: 0.03 | I21: 0.03
A22: 2) PIS | B22: 1 | C22: 0.0065 | D22: 0.0065 | F22: OK | G22: 0.0065 | H22: 0.0065 | I22: 0.0065
A23: 3) ISSQN | B23: 1 | C23: 0.025 | D23: 0.025 | F23: OK | G23: 0.02 | H23: 0.035 | I23: 0.05
A24: 4) CPRB | B24: 1 | C24: 0.045 | D24: 0.045 | F24: OK | G24: 0.045 | H24: 0.045 | I24: 0.045
A25: 5) Administração Central | B25: 1 | C25: 0.04 | D25: 0.04 | F25: OK | G25: 0.03 | H25: 0.04 | I25: 0.055
A26: 6) Despesas Financeiras | B26: 1 | C26: 0.0056 | D26: 0.0056 | F26: FORA DO INTERVALO | G26: 0.0059 | H26: 0.0123 | I26: 0.0139
A27: 7) Seguros + Garantias | B27: 1 | C27: 0.0012 | D27: 0.0012 | F27: FORA DO INTERVALO | G27: 0.008 | H27: 0.008 | I27: 0.01
A28: 8) Risco | B28: 1 | C28: 0.0097 | D28: 0.0097 | F28: OK | G28: 0.0097 | H28: 0.0127 | I28: 0.0127
A29: 9) Lucro | B29: 1 | C29: 0.06871 | D29: 0.06871 | F29: OK | G29: 0.0616 | H29: 0.074 | I29: 0.0896
A30: BDI - FINAL | D30: 0.2640142586 | F30: FORA DO INTERVALO | G30: 0.2034 | H30: 0.2212 | I30: 0.25
A32: Notas:
A33: (1) e (2) Alíquota definida por lei.
A34: (3) Alíquota e base de cálculo definidas pela legislação municipal.
A35: (4) Alíquota definida pelas leis 12.546/11, 12844/13 e 13.161/15 (CPRB – contribuição previdenciária sobre a receita bruta).
A36: (5) Valores definidos a partir dos limites no Acórdão nº 2.622/2013 - TCU – Plenário. Valores entre o 1º e 3º quartis.
A37: (6) Valor calculado pela expressão matemática do acórdão 2.369/2011 – TCU – Plenário e disponibilizado pela AGETOP em dezembro de 2018. (Foi utilizado para o cálculo a média da Taxa SELIC no período de 11/2017 a 10/2018)
A39: (7) Valores definidos pela AGETOP a partir dos limites no Acórdão nº 2.622/2013 - TCU – Plenário. Valores médios. Observação da AGETOP: (Seguros contra erros de execução, incêndio e explosão, danos da natureza (vendaval, destelhamento, alagamento, inundação, desmoronamento, geadas etc.), emprego de material defeituoso ou inadequado, roubo e/ou furto qualificado, quebra de equipamentos, desmoronamento de estrutura, nas modalidades de Obras Civis em Construção (OCC); Instalação e Montagem (IM); e Obras Civis em Construção e Instalação e Montagem (OCC/IM). Bem como coberturas adicionais para ampliação dessas coberturas básicas, como: cobertura de responsabilidade civil geral, cobertura de responsabilidade civil cruzada, cobertura de despesas extraordinárias, cobertura de tumultos, cobertura de desentulho do local, cobertura de riscos do fabricante, dentre outras, incluindo o seguro de vida em grupo regido pela convenção coletiva dos trabalhadores na indústria da construção civil). A partir de 24/02/2015 por intermédio da Portaria 449/2015 a Presidência da AGETOP, na pessoa do Senhor Jayme Eduardo Rincon, determinou a exclusão dos valores referentes aos Seguros de Risco de Engenharia e Responsabilidade Civil do Profissional na composição do cálculo do B.D.I..
A40: (8) Valores definidos a partir dos limites no Acórdão nº 2.622/2013 - TCU – Plenário. Valores entre 1º e 3° quartis.
A41: (9) Valores definidos a partir dos limites definidos no Acórdão nº 2.622/2013 - TCU – Plenário. Valores adotados e praticados no mercado ( “ ex ante ” ) ou aqueles entre os 1º e 3º quartis.
A43: (*) A fórmula para estipulação da taxa de BDI estimado adotado é a mesma que foi aplicada para a obtenção das tabelas contidas no Acórdão n. 2.622/2013 – TCUPlenário
A45: Obs.: Para obras com valores superiores a R$ 20.000.000,00 sugere-se recalcular o BDI, dimensionando as taxas de administração central e lucro para patamares inferiores ao estipulado acima.

Sheet Relatório CENTRAL
B3: UNIDADE ESCOLAR | D3: CIDADE
B4: =Orçamento!$O$5 -> COORDENAÇÃO REGIONAL DE EDUCAÇÃO DE JATAÍ | D4: =Orçamento!$X$8 -> JATAÍ
B6: OBRA | D6: CRE
B7: =Orçamento!$O$8 -> REFORMA E AMPLIAÇÃO | D7: =Orçamento!$O$11 -> CRE-JATAI
B9: ENDEREÇO | D9: DATA
A10: FILTRO | B10: =Orçamento!$R$11 -> PRAÇA DOM GERMANO, 42 - CENTRO | D10: =Orçamento!$S$8 -> 2020-05-19
B12: RELATÓRIO CENTRAL
A13: ↓ | B13: CÓDIGO | C13: ETAPA | D13: PREÇO (R$) C/ BDI | E13: PARTIC ( % )
A14: =IF(D14>0,"F","") ->  | B14: =Orçamento!O399 -> a. | C14: =Orçamento!P399 -> SERVIÇOS PRELIMINARES | D14: =Orçamento!X399 -> 0 | E14: =Orçamento!AA399 -> 0
A15: =IF(D15>0,"F","") ->  | B15: =Orçamento!O400 -> b. | C15: =Orçamento!P400 -> TRANSPORTES | D15: =Orçamento!X400 -> 0 | E15: =Orçamento!AA400 -> 0
B16: =Orçamento!O401 -> c. | C16: =Orçamento!P401 -> SERVIÇO EM TERRA | D16: =Orçamento!X401 -> 0 | E16: =Orçamento!AA401 -> 0
B17: =Orçamento!O402 -> d. | C17: =Orçamento!P402 -> FUNDAÇÕES E SONDAGENS | D17: =Orçamento!X402 -> 0 | E17: =Orçamento!AA402 -> 0
B18: =Orçamento!O403 -> e. | C18: =Orçamento!P403 -> ESTRUTURA | D18: =Orçamento!X403 -> 0 | E18: =Orçamento!AA403 -> 0
B19: =Orçamento!O404 -> f. | C19: =Orçamento!P404 -> INSTALAÇÕES ELÉTRICAS | D19: =Orçamento!X404 -> 0 | E19: =Orçamento!AA404 -> 0
B20: =Orçamento!O405 -> g. | C20: =Orçamento!P405 -> INSTALAÇÕES HIDROSSANITÁRIAS | D20: =Orçamento!X405 -> 0 | E20: =Orçamento!AA405 -> 0
B21: =Orçamento!O406 -> h | C21: =Orçamento!P406 -> INSTALAÇÕES ESPECIAIS | D21: =Orçamento!X406 -> 0 | E21: =Orçamento!AA406 -> 0
B22: =Orçamento!O407 -> i. | C22: =Orçamento!P407 -> ALVENARIAS E DIVISÓRIAS | D22: =Orçamento!X407 -> 0 | E22: =Orçamento!AA407 -> 0
B23: =Orçamento!O408 -> j. | C23: =Orçamento!P408 -> ALVENARIA AUTO-PORTANTE | D23: =Orçamento!X408 -> 0 | E23: =Orçamento!AA408 -> 0
B24: =Orçamento!O409 -> k. | C24: =Orçamento!P409 -> IMPERMEABILIZAÇÃO | D24: =Orçamento!X409 -> 0 | E24: =Orçamento!AA409 -> 0
B25: =Orçamento!O410 -> l. | C25: =Orçamento!P410 -> ISOLAMENTO TÉRMICO E ACÚSTICO | D25: =Orçamento!X410 -> 0 | E25: =Orçamento!AA410 -> 0
B26: =Orçamento!O411 -> m. | C26: =Orçamento!P411 -> ESTRUTURA DE MADEIRA | D26: =Orçamento!X411 -> 0 | E26: =Orçamento!AA411 -> 0
B27: =Orçamento!O412 -> n. | C27: =Orçamento!P412 -> ESTRUTURAS METÁLICAS | D27: =Orçamento!X412 -> 0 | E27: =Orçamento!AA412 -> 0
B28: =Orçamento!O413 -> o. | C28: =Orçamento!P413 -> COBERTURAS | D28: =Orçamento!X413 -> 0 | E28: =Orçamento!AA413 -> 0
B29: =Orçamento!O414 -> p. | C29: =Orçamento!P414 -> ESQUADRIAS DE MADEIRA | D29: =Orçamento!X414 -> 0 | E29: =Orçamento!AA414 -> 0
B30: =Orçamento!O415 -> q. | C30: =Orçamento!P415 -> ESQUADRIAS METÁLICAS | D30: =Orçamento!X415 -> 0 | E30: =Orçamento!AA415 -> 0
B31: =Orçamento!O416 -> r. | C31: =Orçamento!P416 -> VIDROS | D31: =Orçamento!X416 -> 0 | E31: =Orçamento!AA416 -> 0
B32: =Orçamento!O417 -> s. | C32: =Orçamento!P417 -> REVESTIMENTO DE PAREDE | D32: =Orçamento!X417 -> 0 | E32: =Orçamento!AA417 -> 0
B33: =Orçamento!O418 -> t. | C33: =Orçamento!P418 -> FORROS | D33: =Orçamento!X418 -> 0 | E33: =Orçamento!AA418 -> 0
B34: =Orçamento!O419 -> u. | C34: =Orçamento!P419 -> REVESTIMENTO DE PISO | D34: =Orçamento!X419 -> 0 | E34: =Orçamento!AA419 -> 0
B35: =Orçamento!O420 -> v. | C35: =Orçamento!P420 -> FERRAGENS | D35: =Orçamento!X420 -> 0 | E35: =Orçamento!AA420 -> 0
B36: =Orçamento!O421 -> w. | C36: =Orçamento!P421 -> MARCENARIA | D36: =Orçamento!X421 -> 0 | E36: =Orçamento!AA421 -> 0
B37: =Orçamento!O422 -> x. | C37: =Orçamento!P422 -> ADMINISTRAÇÃO | D37: =Orçamento!X422 -> 0 | E37: =Orçamento!AA422 -> 0
B38: =Orçamento!O423 -> y. | C38: =Orçamento!P423 -> PINTURA | D38: =Orçamento!X423 -> 0 | E38: =Orçamento!AA423 -> 0
B39: =Orçamento!O424 -> z. | C39: =Orçamento!P424 -> DIVERSOS | D39: =Orçamento!X424 -> 0 | E39: =Orçamento!AA424 -> 0
A40: F | B40: TOTAL GERAL DO ORÇAMENTO (R$) C/BDI | D40: =SUM(D14:D39) -> 0 | E40: =SUM(E14:E39) -> 0

Sheet Parc Maior Relev
B3: UNIDADE ESCOLAR | E3: CÓDIGO INEP
B4: =Orçamento!$O$5 -> COORDENAÇÃO REGIONAL DE EDUCAÇÃO DE JATAÍ | E4: =Orçamento!$X$5 -> 52052656
B6: OBRA | E6: CIDADE
B7: =Orçamento!$O$8 -> REFORMA E AMPLIAÇÃO | E7: =Orçamento!$X$8 -> JATAÍ
B9: CRE | E9: ÁREA TOTAL CONSTRUÍDA (M²)
B10: =Orçamento!$O$11 -> CRE-JATAI | E10: =Orçamento!$X$14 -> 452.07
A12: FILTRO | B12: PARCELA DE MAIOR RELEVÂNCIA
A13: =IF(G14>0,"F","") ->  | B13: CÓDIGO | C13: SERVIÇO | D13: DESCRIÇÃO | E13: UNID | F13: QUANT | G13: PARC. MAIOR RELEV (100%)
A14: =IF(G14>0,"F","") ->  | B14: f. | C14: INSTALAÇÕES ELÉTRICAS | D14: SUBESTAÇÃO | E14: KVA | F14: =SUMIF(Orçamento!$R$21:$R$380,'Parc Maior Relev'!D14,Orçamento!$T$21:$T$380) -> 0 | G14: =F14 -> 0
A15: =IF(SUM(G16:G30)>0,"F","") -> F | B15: CÓDIGO | C15: SERVIÇO | D15: DESCRIÇÃO | E15: UNID | F15: QUANT | G15: PARC. MAIOR RELEV (50%)
A16: =IF(G16>0,"F","") ->  | B16: e. | C16: ESTRUTURA | D16: CONCRETO | E16: M3 | F16: =SUMIF(Orçamento!$R$21:$R$380,'Parc Maior Relev'!D16,Orçamento!$T$21:$T$380) -> 0 | G16: =F16*0.5 -> 0
A17: =IF(G17>0,"F","") ->  | B17: f. | C17: INSTALAÇÕES ELÉTRICAS | D17: INSTALAÇÕES ELÉTRICAS | E17: KVA | F17: =SUMIF(Orçamento!$R$21:$R$380,'Parc Maior Relev'!D17,Orçamento!$T$21:$T$380) -> 0 | G17: =F17*0.5 -> 0
A18: =IF(G18>0,"F","") -> F | B18: o. | C18: COBERTURAS | D18: TELHAMENTO COM TELHA METÁLICA | E18: m² | F18: 282.99 | G18: 141.495
B19: o. | C19: COBERTURAS | D19: TELHAMENTO COM TELHA METÁLICA | E19: M2 | F19: =SUMIF(Orçamento!$R$21:$R$380,'Parc Maior Relev'!D19,Orçamento!$T$21:$T$380) -> 0 | G19: 0
B20: s. | C20: REVESTIMENTO DE PAREDE | D20: CHAPISCO | E20: M2 | F20: =SUMIF(Orçamento!$R$21:$R$380,'Parc Maior Relev'!D20,Orçamento!$T$21:$T$380) -> 0 | G20: 0
B21: s. | C21: REVESTIMENTO DE PAREDE | D21: REBOCO | E21: M2 | F21: =SUMIF(Orçamento!$R$21:$R$380,'Parc Maior Relev'!D21,Orçamento!$T$21:$T$380) -> 0 | G21: 0
B22: s. | C22: REVESTIMENTO DE PAREDE | D22: REVESTIMENTO CERÂMICO | E22: M2 | F22: =SUMIF(Orçamento!$R$21:$R$380,'Parc Maior Relev'!D22,Orçamento!$T$21:$T$380) -> 0 | G22: 0
B23: t. | C23: FORROS | D23: FORRO DE GESSO | E23: M2 | F23: =SUMIF(Orçamento!$R$21:$R$380,'Parc Maior Relev'!D23,Orçamento!$T$21:$T$380) -> 0 | G23: 0
B24: t. | C24: FORROS | D24: FORRO DE PVC | E24: M2 | F24: =SUMIF(Orçamento!$R$21:$R$380,'Parc Maior Relev'!D24,Orçamento!$T$21:$T$380) -> 0 | G24: 0
B25: t. | C25: FORROS | D25: FORRO DE GESSO ACARTONADO | E25: M2 | F25: =SUMIF(Orçamento!$R$21:$R$380,'Parc Maior Relev'!D25,Orçamento!$T$21:$T$380) -> 0 | G25: 0
B26: u. | C26: REVESTIMENTO DE PISO | D26: PISO DE GRANITINA | E26: M2 | F26: =SUMIF(Orçamento!$R$21:$R$380,'Parc Maior Relev'!D26,Orçamento!$T$21:$T$380) -> 0 | G26: 0
B27: u. | C27: REVESTIMENTO DE PISO | D27: PISO LAMINADO | E27: M2 | F27: =SUMIF(Orçamento!$R$21:$R$380,'Parc Maior Relev'!D27,Orçamento!$T$21:$T$380) -> 0 | G27: 0
B28: u. | C28: REVESTIMENTO DE PISO | D28: PISO DE CONCRETO DESEMPENADO | E28: M2 | F28: =SUMIF(Orçamento!$R$21:$R$380,'Parc Maior Relev'!D28,Orçamento!$T$21:$T$380) -> 0 | G28: 0
B29: u. | C29: REVESTIMENTO DE PISO | D29: PISO CERÂMICO | E29: M2 | F29: =SUMIF(Orçamento!$R$21:$R$380,'Parc Maior Relev'!D29,Orçamento!$T$21:$T$380) -> 0 | G29: 0
B30: y. | C30: PINTURA | D30: PINTURA | E30: M2 | F30: =SUMIF(Orçamento!$R$21:$R$380,'Parc Maior Relev'!D30,Orçamento!$T$21:$T$380) -> 0 | G30: 0
A31: F
A32: F | B32: (*) Para os fins do inciso I dp § 1º do Art. 30 da Lei Federal 8.666/93, são consideradas parcelas de maior relevância técnica as execuções apresentadas
A33: F

Sheet Composições
A4: UNIDADE ESCOLAR | H4: CÓDIGO INEP
A5: =Orçamento!$O$5 -> COORDENAÇÃO REGIONAL DE EDUCAÇÃO DE JATAÍ | H5: =Orçamento!$X$5 -> 52052656
A7: OBRA | H7: CIDADE
A8: =Orçamento!$O$8 -> REFORMA E AMPLIAÇÃO | H8: =Orçamento!$X$8 -> JATAÍ
A10: CRE | D10: ENDEREÇO | H10: REFERÊNCIA AGETOP
A11: =Orçamento!$O$11 -> CRE-JATAI | D11: =Orçamento!$R$11 -> PRAÇA DOM GERMANO, 42 - CENTRO | H11: =Orçamento!$S$11 -> ABR/19 | I11: =Orçamento!$T$11 -> DESONERADA
A13: DATA | D13: ÁREA TOTAL CONSTRUÍDA (M²) | H13: REFERÊNCIA SINAPI
A14: =Orçamento!$S$8 -> 2020-05-19 | D14: =Orçamento!$X$14 -> 452.07 | H14: =Orçamento!$X$11 -> MAR/20 | I14: =Orçamento!$Y$11 -> DESONERADA
A16: COMPOSIÇÕES DE CUSTOS UNITÁRIOS - SEE-GO
A17: 387 | B17: FONTE | C17: CÓDIGO | D17: DESCRIÇÃO | E17: UNIDADE | F17: COEFIC. | G17: CUSTO UNITÁRIO | I17: CUSTO TOTAL (A) + (B) + (C) + (D) + (E)
G18: DESONERADO | H18: NÃO DESONER. | I18: DESONERADO | J18: NÃO DESONER.
B19: COMPOSIÇÃO | C19: COMP 387_SEE | D19: LÂMPADA LED TUBULAR 18W | E19: UN | I19: 22.3 | J19: 22.35
B20: AGETOP_I | C20: 8 | D20: AJUDANTE | E20: h | F20: 0.015 | G20: 8.75 | H20: 10.14 | I20: 0.13 | J20: 0.15
B21: AGETOP_I | C21: 12 | D21: ELETRICISTA | E21: h | F21: 0.015 | G21: 13.95 | H21: 16.16 | I21: 0.21 | J21: 0.24
B22: MÃO DE OBRA (B) - TOTAL | I22: 0.34 | J22: 0.39
B23: COTAÇÃO | C23: COT 195_SEE | D23: LÂMPADA LED TUBULAR 18W | E23: UN | F23: 1 | G23: 21.96 | H23: 21.96 | I23: 21.96 | J23: 21.96
B24: MATERIAL (C) - TOTAL | I24: 21.96 | J24: 21.96
A26: 24 | B26: FONTE | C26: CÓDIGO | D26: DESCRIÇÃO | E26: UNIDADE | F26: COEFIC. | G26: CUSTO UNITÁRIO | I26: CUSTO TOTAL (A) + (B) + (C) + (D) + (E)
G27: DESONERADO | H27: NÃO DESONER. | I27: DESONERADO | J27: NÃO DESONER.
B28: COMPOSIÇÃO | C28: COMP 024_SEE | D28: SINALIZADOR FOTOLUMINESCENTE PARA EXTINTOR | E28: UN | G28: - | H28: - | I28: 25.32 | J28: 25.44
B29: AGETOP_I | C29: 5 | D29: SERVENTE | E29: h | F29: 0.09 | G29: 8.75 | H29: 10.14 | I29: 0.79 | J29: 0.91
B30: MÃO DE OBRA (B) - TOTAL | I30: 0.79 | J30: 0.91
B31: AGETOP_I | C31: 3070 | D31: BUCHA DE NYLON S-6 | E31: un | F31: 2 | G31: 0.04 | H31: 0.04 | I31: 0.08 | J31: 0.08
B32: AGETOP_I | C32: 3393 | D32: PARAFUSO P/BUCHA S-6 | E32: un | F32: 2 | G32: 0.08 | H32: 0.08 | I32: 0.16 | J32: 0.16
B33: SINAPI_I | C33: 37556 | D33: PLACA DE SINALIZACAO DE SEGURANCA CONTRA INCENDIO, FOTOLUMINESCENTE, QUADRADA, *20 X 20* CM, EM PVC *2* MM ANTI-CHAMAS (SIMBOLOS, CORES E PICTOGRAMAS CONFORME NBR 13434) | E33: UN | F33: 1 | G33: 24.29 | H33: 24.29 | I33: 24.29 | J33: 24.29
B34: MATERIAL (C) - TOTAL | I34: 24.53 | J34: 24.53
A36: 25 | B36: FONTE | C36: CÓDIGO | D36: DESCRIÇÃO | E36: UNIDADE | F36: COEFIC. | G36: CUSTO UNITÁRIO | I36: CUSTO TOTAL (A) + (B) + (C) + (D) + (E)
G37: DESONERADO | H37: NÃO DESONER. | I37: DESONERADO | J37: NÃO DESONER.
B38: COMPOSIÇÃO | C38: COMP 025_SEE | D38: SINALIZADOR FOTOLUMINESCENTE DE EMERGÊNCIA | E38: UN | G38: - | H38: - | I38: 25.32 | J38: 25.44
B39: AGETOP_I | C39: 5 | D39: SERVENTE | E39: h | F39: 0.09 | G39: 8.75 | H39: 10.14 | I39: 0.79 | J39: 0.91
B40: MÃO DE OBRA (B) - TOTAL | I40: 0.79 | J40: 0.91
B41: AGETOP_I | C41: 3070 | D41: BUCHA DE NYLON S-6 | E41: un | F41: 2 | G41: 0.04 | H41: 0.04 | I41: 0.08 | J41: 0.08
B42: AGETOP_I | C42: 3393 | D42: PARAFUSO P/BUCHA S-6 | E42: un | F42: 2 | G42: 0.08 | H42: 0.08 | I42: 0.16 | J42: 0.16
B43: SINAPI_I | C43: 37556 | D43: PLACA DE SINALIZACAO DE SEGURANCA CONTRA INCENDIO, FOTOLUMINESCENTE, QUADRADA, *20 X 20* CM, EM PVC *2* MM ANTI-CHAMAS (SIMBOLOS, CORES E PICTOGRAMAS CONFORME NBR 13434) | E43: UN | F43: 1 | G43: 24.29 | H43: 24.29 | I43: 24.29 | J43: 24.29
B44: MATERIAL (C) - TOTAL | I44: 24.53 | J44: 24.53
A46: 277 | B46: FONTE | C46: CÓDIGO | D46: DESCRIÇÃO | E46: UNIDADE | F46: COEFIC. | G46: CUSTO UNITÁRIO | I46: CUSTO TOTAL (A) + (B) + (C) + (D) + (E)
G47: DESONERADO | H47: NÃO DESONER. | I47: DESONERADO | J47: NÃO DESONER.
B48: COMPOSIÇÃO | C48: COMP 277_SEE | D48: MARCAÇÃO NO PISO - 1X1 M PARA EXTINTOR | E48: M2 | I48: 29.67 | J48: 29.75
B49: AGETOP_I | C49: 5 | D49: SERVENTE | E49: h | F49: 0.0333 | G49: 8.75 | H49: 10.14 | I49: 0.29 | J49: 0.34
B50: MÃO DE OBRA (B) - TOTAL | I50: 0.29 | J50: 0.34
B51: SINAPI_I | C51: 5318 | D51: SOLVENTE DILUENTE A BASE DE AGUARRAS | E51: L | F51: 0.13 | G51: 11.78 | H51: 11.78 | I51: 1.53 | J51: 1.53
B52: SINAPI | C52: 5824 | D52: CAMINHÃO TOCO, PBT 16.000 KG, CARGA ÚTIL MÁX. 10.685 KG, DIST. ENTRE EIXOS 4,8 M, POTÊNCIA 189 CV, INCLUSIVE CARROCERIA FIXA ABERTA DE MADEIRA P/ TRANSPORTE GERAL DE CARGA SECA, DIMEN. APROX. 2,5 X 7,00 X 0,50 M - CHP DIURNO. AF_06/2014 | E52: CHP | F52: 0.0033 | G52: 120.02 | H52: 123.21 | I52: 0.4 | J52: 0.41
B53: SINAPI_I | C53: 7343 | D53: TINTA A BASE DE RESINA ACRILICA, PARA SINALIZACAO HORIZONTAL VIARIA (NBR 11862) | E53: L | F53: 0.6 | G53: 12.82 | H53: 12.82 | I53: 7.69 | J53: 7.69
B54: SINAPI_I | C54: 7348 | D54: TINTA ACRILICA PREMIUM PARA PISO | E54: L | F54: 0.03 | G54: 13.72 | H54: 13.72 | I54: 0.41 | J54: 0.41
B55: SINAPI_I | C55: 25972 | D55: MICROESFERAS DE VIDRO PARA SINALIZACAO HORIZONTAL VIARIA, TIPO I-B (PREMIX) - NBR 16184 | E55: KG | F55: 2.14 | G55: 8.88 | H55: 8.88 | I55: 19 | J55: 19
B56: SINAPI | C56: 95133 | D56: MÁQUINA DEMARCADORA DE FAIXA DE TRÁFEGO À FRIO, AUTOPROPELIDA, POTÊNCIA 38 HP - CHP DIURNO. AF_07/2016 | E56: CHP | F56: 0.0033 | G56: 107.44 | H56: 110.99 | I56: 0.35 | J56: 0.37
B57: MATERIAL (C) - TOTAL | I57: 29.38 | J57: 29.41
A59: 235 | B59: FONTE | C59: CÓDIGO | D59: DESCRIÇÃO | E59: UNIDADE | F59: COEFIC. | G59: CUSTO UNITÁRIO | I59: CUSTO TOTAL (A) + (B) + (C) + (D) + (E)
G60: DESONERADO | H60: NÃO DESONER. | I60: DESONERADO | J60: NÃO DESONER.
B61: COMPOSIÇÃO | C61: COMP 235_SEE | D61: PLACA DE SINALIZAÇÃO EM PVC COD 01 - (300X300) PROIBIDO FUMAR | E61: UN | I61: 25.32 | J61: 25.44
B62: AGETOP_I | C62: 5 | D62: SERVENTE | E62: h | F62: 0.09 | G62: 8.75 | H62: 10.14 | I62: 0.79 | J62: 0.91
B63: MÃO DE OBRA (B) - TOTAL | I63: 0.79 | J63: 0.91
B64: AGETOP_I | C64: 3070 | D64: BUCHA DE NYLON S-6 | E64: un | F64: 2 | G64: 0.04 | H64: 0.04 | I64: 0.08 | J64: 0.08
B65: AGETOP_I | C65: 3393 | D65: PARAFUSO P/BUCHA S-6 | E65: un | F65: 2 | G65: 0.08 | H65: 0.08 | I65: 0.16 | J65: 0.16
B66: SINAPI_I | C66: 37556 | D66: PLACA DE SINALIZACAO DE SEGURANCA CONTRA INCENDIO, FOTOLUMINESCENTE, QUADRADA, *20 X 20* CM, EM PVC *2* MM ANTI-CHAMAS (SIMBOLOS, CORES E PICTOGRAMAS CONFORME NBR 13434) | E66: UN | F66: 1 | G66: 24.29 | H66: 24.29 | I66: 24.29 | J66: 24.29
B67: MATERIAL (C) - TOTAL | I67: 24.53 | J67: 24.53
A69: 236 | B69: FONTE | C69: CÓDIGO | D69: DESCRIÇÃO | E69: UNIDADE | F69: COEFIC. | G69: CUSTO UNITÁRIO | I69: CUSTO TOTAL (A) + (B) + (C) + (D) + (E)
G70: DESONERADO | H70: NÃO DESONER. | I70: DESONERADO | J70: NÃO DESONER.
B71: COMPOSIÇÃO | C71: COMP 236_SEE | D71: PLACA DE SINALIZAÇÃO EM PVC COD 06 - (300X300) PERIGO INFLAMÁVEL | E71: UN | I71: 25.32 | J71: 25.44
B72: AGETOP_I | C72: 5 | D72: SERVENTE | E72: h | F72: 0.09 | G72: 8.75 | H72: 10.14 | I72: 0.79 | J72: 0.91
B73: MÃO DE OBRA (B) - TOTAL | I73: 0.79 | J73: 0.91
B74: AGETOP_I | C74: 3070 | D74: BUCHA DE NYLON S-6 | E74: un | F74: 2 | G74: 0.04 | H74: 0.04 | I74: 0.08 | J74: 0.08
B75: AGETOP_I | C75: 3393 | D75: PARAFUSO P/BUCHA S-6 | E75: un | F75: 2 | G75: 0.08 | H75: 0.08 | I75: 0.16 | J75: 0.16
B76: SINAPI_I | C76: 37556 | D76: PLACA DE SINALIZACAO DE SEGURANCA CONTRA INCENDIO, FOTOLUMINESCENTE, QUADRADA, *20 X 20* CM, EM PVC *2* MM ANTI-CHAMAS (SIMBOLOS, CORES E PICTOGRAMAS CONFORME NBR 13434) | E76: UN | F76: 1 | G76: 24.29 | H76: 24.29 | I76: 24.29 | J76: 24.29
B77: MATERIAL (C) - TOTAL | I77: 24.53 | J77: 24.53
A79: 382 | B79: FONTE | C79: CÓDIGO | D79: DESCRIÇÃO | E79: UNIDADE | F79: COEFIC. | G79: CUSTO UNITÁRIO | I79: CUSTO TOTAL (A) + (B) + (C) + (D) + (E)
G80: DESONERADO | H80: NÃO DESONER. | I80: DESONERADO | J80: NÃO DESONER.
B81: COMPOSIÇÃO | C81: COMP 382_SEE | D81: TE DE REDUCAO DE FERRO GALVANIZADO, COM ROSCA BSP, DE 3/4" X 1/2" | E81: UN | I81: 24.25 | J81: 26.43
B82: AGETOP_I | C82: 8 | D82: AJUDANTE | E82: h | F82: 0.6 | G82: 8.75 | H82: 10.14 | I82: 5.25 | J82: 6.08
B83: AGETOP_I | C83: 11 | D83: ENCANADOR | E83: h | F83: 0.6105 | G83: 13.95 | H83: 16.16 | I83: 8.52 | J83: 9.87
B84: MÃO DE OBRA (B) - TOTAL | I84: 13.77 | J84: 15.95
B85: SINAPI_I | C85: 3146 | D85: FITA VEDA ROSCA EM ROLOS DE 18 MM X 10 M (L X C) | E85: UN | F85: 0.120754717 | G85: 3.4 | H85: 3.4 | I85: 0.41 | J85: 0.41
B86: SINAPI_I | C86: 6302 | D86: TE DE REDUCAO DE FERRO GALVANIZADO, COM ROSCA BSP, DE 3/4" X 1/2" | E86: UN | F86: 1 | G86: 10.07 | H86: 10.07 | I86: 10.07 | J86: 10.07
B87: MATERIAL (C) - TOTAL | I87: 10.48 | J87: 10.48
A89: 383 | B89: FONTE | C89: CÓDIGO | D89: DESCRIÇÃO | E89: UNIDADE | F89: COEFIC. | G89: CUSTO UNITÁRIO | I89: CUSTO TOTAL (A) + (B) + (C) + (D) + (E)
G90: DESONERADO | H90: NÃO DESONER. | I90: DESONERADO | J90: NÃO DESONER.
B91: COMPOSIÇÃO | C91: COMP 383_SEE | D91: BUCHA DE REDUCAO DE FERRO GALVANIZADO, COM ROSCA BSP, DE 1/2" X 1/4" | E91: UN | I91: 7.68 | J91: 8.26
B92: AGETOP_I | C92: 8 | D92: AJUDANTE | E92: h | F92: 0.16 | G92: 8.75 | H92: 10.14 | I92: 1.4 | J92: 1.62
B93: AGETOP_I | C93: 11 | D93: ENCANADOR | E93: h | F93: 0.16 | G93: 13.95 | H93: 16.16 | I93: 2.23 | J93: 2.59
B94: MÃO DE OBRA (B) - TOTAL | I94: 3.63 | J94: 4.21
B95: AGETOP_I | C95: H689 | D95: FITA VEDAROSCA 12 MM | E95: m | F95: 1.2 | G95: 0.28 | H95: 0.28 | I95: 0.34 | J95: 0.34
B96: SINAPI_I | C96: 770 | D96: BUCHA DE REDUCAO DE FERRO GALVANIZADO, COM ROSCA BSP, DE 1/2" X 1/4" | E96: UN | F96: 1 | G96: 3.71 | H96: 3.71 | I96: 3.71 | J96: 3.71
B97: MATERIAL (C) - TOTAL | I97: 4.05 | J97: 4.05
A99: 212 | B99: FONTE | C99: CÓDIGO | D99: DESCRIÇÃO | E99: UNIDADE | F99: COEFIC. | G99: CUSTO UNITÁRIO | I99: CUSTO TOTAL (A) + (B) + (C) + (D) + (E)
G100: DESONERADO | H100: NÃO DESONER. | I100: DESONERADO | J100: NÃO DESONER.
B101: COMPOSIÇÃO | C101: COMP 212_SEE | D101: NIPLE DE REDUÇÃO 1/2" X 1/4" BSP | E101: UN | I101: 9.68 | J101: 10.26
B102: AGETOP_I | C102: 8 | D102: AJUDANTE | E102: h | F102: 0.16 | G102: 8.75 | H102: 10.14 | I102: 1.4 | J102: 1.62
B103: AGETOP_I | C103: 11 | D103: ENCANADOR | E103: h | F103: 0.16 | G103: 13.95 | H103: 16.16 | I103: 2.23 | J103: 2.59
B104: MÃO DE OBRA (B) - TOTAL | I104: 3.63 | J104: 4.21
B105: COTAÇÃO | C105: COT 103_SEE | D105: NIPLE DE REDUÇÃO 1/2" X 1/4" BSP | E105: UN | F105: 1 | G105: 6.053333333 | H105: 6.053333333 | I105: 6.05 | J105: 6.05
B106: MATERIAL (C) - TOTAL | I106: 6.05 | J106: 6.05
A108: 213 | B108: FONTE | C108: CÓDIGO | D108: DESCRIÇÃO | E108: UNIDADE | F108: COEFIC. | G108: CUSTO UNITÁRIO | I108: CUSTO TOTAL (A) + (B) + (C) + (D) + (E)
G109: DESONERADO | H109: NÃO DESONER. | I109: DESONERADO | J109: NÃO DESONER.
B110: COMPOSIÇÃO | C110: COMP 213_SEE | D110: NIPLE DE REDUÇÃO 3/4" X 1/2" BSP | E110: UN | I110: 13.34 | J110: 13.92
B111: AGETOP_I | C111: 8 | D111: AJUDANTE | E111: h | F111: 0.16 | G111: 8.75 | H111: 10.14 | I111: 1.4 | J111: 1.62
B112: AGETOP_I | C112: 11 | D112: ENCANADOR | E112: h | F112: 0.16 | G112: 13.95 | H112: 16.16 | I112: 2.23 | J112: 2.59
B113: MÃO DE OBRA (B) - TOTAL | I113: 3.63 | J113: 4.21
B114: COTAÇÃO | C114: COT 104_SEE | D114: NIPLE DE REDUÇÃO 3/4" X 1/2" BSP | E114: UN | F114: 1 | G114: 9.71 | H114: 9.71 | I114: 9.71 | J114: 9.71
B115: MATERIAL (C) - TOTAL | I115: 9.71 | J115: 9.71
A117: 237 | B117: FONTE | C117: CÓDIGO | D117: DESCRIÇÃO | E117: UNIDADE | F117: COEFIC. | G117: CUSTO UNITÁRIO | I117: CUSTO TOTAL (A) + (B) + (C) + (D) + (E)
G118: DESONERADO | H118: NÃO DESONER. | I118: DESONERADO | J118: NÃO DESONER.
B119: COMPOSIÇÃO | C119: COMP 237_SEE | D119: FITA ANTICORROSIVA | E119: M | I119: 11.16 | J119: 11.88
B120: AGETOP_I | C120: 8 | D120: AJUDANTE | E120: h | F120: 0.2 | G120: 8.75 | H120: 10.14 | I120: 1.75 | J120: 2.03
B121: AGETOP_I | C121: 12 | D121: ELETRICISTA | E121: h | F121: 0.2 | G121: 13.95 | H121: 16.16 | I121: 2.79 | J121: 3.23
B122: MÃO DE OBRA (B) - TOTAL | I122: 4.54 | J122: 5.26
B123: SINAPI_I | C123: 39634 | D123: FITA ADESIVA ANTICORROSIVA DE PVC FLEXIVEL, COR PRETA, PARA PROTECAO TUBULACAO, 50 MM X 30 M (L X C), E= *0,25* MM | E123: M | F123: 1 | G123: 6.62 | H123: 6.62 | I123: 6.62 | J123: 6.62
B124: MATERIAL (C) - TOTAL | I124: 6.62 | J124: 6.62
A126: 542 | B126: FONTE | C126: CÓDIGO | D126: DESCRIÇÃO | E126: UNIDADE | F126: COEFIC. | G126: CUSTO UNITÁRIO | I126: CUSTO TOTAL (A) + (B) + (C) + (D) + (E)
G127: DESONERADO | H127: NÃO DESONER. | I127: DESONERADO | J127: NÃO DESONER.
B128: COMPOSIÇÃO | C128: COMP 542_SEE | D128: VÁLVULA UGV 3/4" (S) LATÃO | E128: UN | I128: 25.65 | J128: 27.2
B129: AGETOP_I | C129: 8 | D129: AJUDANTE | E129: h | F129: 0.432 | G129: 8.75 | H129: 10.14 | I129: 3.78 | J129: 4.38
B130: AGETOP_I | C130: 11 | D130: ENCANADOR | E130: h | F130: 0.432 | G130: 13.95 | H130: 16.16 | I130: 6.03 | J130: 6.98
B131: MÃO DE OBRA (B) - TOTAL | I131: 9.81 | J131: 11.36
B132: COTAÇÃO | C132: COT 281_SEE | D132: VÁLVULA UGV 3/4" (S) LATÃO | E132: UN | F132: 1 | G132: 15.83666667 | H132: 15.83666667 | I132: 15.84 | J132: 15.84
B133: MATERIAL (C) - TOTAL | I133: 15.84 | J133: 15.84
A135: 543 | B135: FONTE | C135: CÓDIGO | D135: DESCRIÇÃO | E135: UNIDADE | F135: COEFIC. | G135: CUSTO UNITÁRIO | I135: CUSTO TOTAL (A) + (B) + (C) + (D) + (E)
G136: DESONERADO | H136: NÃO DESONER. | I136: DESONERADO | J136: NÃO DESONER.
B137: COMPOSIÇÃO | C137: COMP 543_SEE | D137: VÁLVULA UGV 1/2" (S) LATÃO | E137: UN | I137: 24.98 | J137: 26.53
B138: AGETOP_I | C138: 8 | D138: AJUDANTE | E138: h | F138: 0.432 | G138: 8.75 | H138: 10.14 | I138: 3.78 | J138: 4.38
B139: AGETOP_I | C139: 11 | D139: ENCANADOR | E139: h | F139: 0.432 | G139: 13.95 | H139: 16.16 | I139: 6.03 | J139: 6.98
B140: MÃO DE OBRA (B) - TOTAL | I140: 9.81 | J140: 11.36
B141: COTAÇÃO | C141: COT 282_SEE | D141: VÁLVULA UGV 1/2" (S) LATÃO | E141: UN | F141: 1 | G141: 15.16666667 | H141: 15.16666667 | I141: 15.17 | J141: 15.17
B142: MATERIAL (C) - TOTAL | I142: 15.17 | J142: 15.17
A144: 211 | B144: FONTE | C144: CÓDIGO | D144: DESCRIÇÃO | E144: UNIDADE | F144: COEFIC. | G144: CUSTO UNITÁRIO | I144: CUSTO TOTAL (A) + (B) + (C) + (D) + (E)
G145: DESONERADO | H145: NÃO DESONER. | I145: DESONERADO | J145: NÃO DESONER.
B146: COMPOSIÇÃO | C146: COMP 211_SEE | D146: REGULADOR DE 2º ESTÁGIO 5KG/H | E146: UN | I146: 86.72 | J146: 90.86
B147: AGETOP_I | C147: 8 | D147: AJUDANTE | E147: h | F147: 1.15 | G147: 8.75 | H147: 10.14 | I147: 10.06 | J147: 11.66
B148: AGETOP_I | C148: 11 | D148: ENCANADOR | E148: h | F148: 1.15 | G148: 13.95 | H148: 16.16 | I148: 16.04 | J148: 18.58
B149: MÃO DE OBRA (B) - TOTAL | I149: 26.1 | J149: 30.24
B150: COTAÇÃO | C150: COT 102_SEE | D150: REGULADOR DE 2º ESTÁGIO 5KG/H | E150: UN | F150: 1 | G150: 59.83333333 | H150: 59.83333333 | I150: 59.83 | J150: 59.83
B151: AGETOP_I | C151: H689 | D151: FITA VEDAROSCA 12 MM | E151: m | F151: 2.82 | G151: 0.28 | H151: 0.28 | I151: 0.79 | J151: 0.79
B152: MATERIAL (C) - TOTAL | I152: 60.62 | J152: 60.62
A154: 210 | B154: FONTE | C154: CÓDIGO | D154: DESCRIÇÃO | E154: UNIDADE | F154: COEFIC. | G154: CUSTO UNITÁRIO | I154: CUSTO TOTAL (A) + (B) + (C) + (D) + (E)
G155: DESONERADO | H155: NÃO DESONER. | I155: DESONERADO | J155: NÃO DESONER.
B156: COMPOSIÇÃO | C156: COMP 210_SEE | D156: REGULADOR DE 1º ESTÁGIO 60KG/H MODELO AP-40 COM MANÔMETRO | E156: UN | I156: 232.47 | J156: 236.61
B157: AGETOP_I | C157: 8 | D157: AJUDANTE | E157: h | F157: 1.15 | G157: 8.75 | H157: 10.14 | I157: 10.06 | J157: 11.66
B158: AGETOP_I | C158: 11 | D158: ENCANADOR | E158: h | F158: 1.15 | G158: 13.95 | H158: 16.16 | I158: 16.04 | J158: 18.58
B159: MÃO DE OBRA (B) - TOTAL | I159: 26.1 | J159: 30.24
B160: COTAÇÃO | C160: COT 101_SEE | D160: REGULADOR DE 1º ESTÁGIO 60KG/H MODELO AP-40 COM MANÔMETRO | E160: UN | F160: 1 | G160: 205.5766667 | H160: 205.5766667 | I160: 205.58 | J160: 205.58
B161: AGETOP_I | C161: H689 | D161: FITA VEDAROSCA 12 MM | E161: m | F161: 2.82 | G161: 0.28 | H161: 0.28 | I161: 0.79 | J161: 0.79
B162: MATERIAL (C) - TOTAL | I162: 206.37 | J162: 206.37
A164: 45 | B164: FONTE | C164: CÓDIGO | D164: DESCRIÇÃO | E164: UNIDADE | F164: COEFIC. | G164: CUSTO UNITÁRIO | I164: CUSTO TOTAL (A) + (B) + (C) + (D) + (E)
G165: DESONERADO | H165: NÃO DESONER. | I165: DESONERADO | J165: NÃO DESONER.
B166: COMPOSIÇÃO | C166: COMP 045_SEE | D166: LAUDO DE ESTANQUEIDADE | E166: UN | I166: 936 | J166: 1085.12
B167: AGETOP | C167: 250101 | D167: ENGENHEIRO - (OBRAS CIVIS) | E167: H | F167: 16 | G167: 58.5 | H167: 67.82 | I167: 936 | J167: 1085.12
B168: MÃO DE OBRA (B) - TOTAL | I168: 936 | J168: 1085.12
B169: MATERIAL (C) - TOTAL | I169: 0 | J169: 0
A171: 84 | B171: FONTE | C171: CÓDIGO | D171: DESCRIÇÃO | E171: UNIDADE | F171: COEFIC. | G171: CUSTO UNITÁRIO | I171: CUSTO TOTAL (A) + (B) + (C) + (D) + (E)
G172: DESONERADO | H172: NÃO DESONER. | I172: DESONERADO | J172: NÃO DESONER.
B173: COMPOSIÇÃO | C173: COMP 084_SEE | D173: GUARDA-CORPO COM CORRIMÃO - SEDUC | E173: M | I173: 206.14 | J173: 211.22
B174: AGETOP_I | C174: 25 | D174: OFICIAL "B" | E174: h | F174: 1.1 | G174: 13.95 | H174: 16.16 | I174: 15.35 | J174: 17.78
B175: AGETOP_I | C175: 8 | D175: AJUDANTE | E175: h | F175: 1.1 | G175: 8.75 | H175: 10.14 | I175: 9.63 | J175: 11.15
B176: MÃO DE OBRA (B) - TOTAL | I176: 24.98 | J176: 28.93
B177: AGETOP_I | C177: 2376 | D177: TUBO INDUSTRIAL 2" CHAPA 13 | E177: Kg | F177: 7.7778 | G177: 5.23 | H177: 5.23 | I177: 40.68 | J177: 40.68
B178: AGETOP_I | C178: 2504 | D178: TUBO INDUSTRIAL D=25 MM CHAPA 13 | E178: Kg | F178: 4.632 | G178: 5.07 | H178: 5.07 | I178: 23.48 | J178: 23.48
B179: AGETOP_I | C179: 2377 | D179: TUBO INDUSTRIAL 40X40 CH.13 | E179: Kg | F179: 6.342 | G179: 5.07 | H179: 5.07 | I179: 32.15 | J179: 32.15
B180: AGETOP_I | C180: 2421 | D180: TUBO INDUSTRIAL 1.1/2" CHAPA 13 | E180: Kg | F180: 1.4862 | G180: 5.07 | H180: 5.07 | I180: 7.54 | J180: 7.54
B181: AGETOP_I | C181: 2417 | D181: MASSA PLASTICA | E181: Kg | F181: 0.2041 | G181: 10.58 | H181: 10.58 | I181: 2.16 | J181: 2.16
B182: AGETOP_I | C182: 2246 | D182: ELETRODO 2.5 OK | E182: Kg | F182: 0.1146 | G182: 8.7 | H182: 8.7 | I182: 1 | J182: 1
B183: AGETOP_I | C183: 1672 | D183: LIXA PARA FERRO ( NÚMERO 100 ) | E183: un | F183: 0.2551 | G183: 2.12 | H183: 2.12 | I183: 0.54 | J183: 0.54
B184: AGETOP_I | C184: 1264 | D184: DISCO DE DESBASTE 7/8" P/ CONC./FERRO (1/4" X 7") | E184: un | F184: 0.051 | G184: 7 | H184: 7 | I184: 0.36 | J184: 0.36
B185: AGETOP_I | C185: 1334 | D185: DISCO DE CORTE DIAM. 5/8"- 10" | E185: un | F185: 0.373 | G185: 5.5 | H185: 5.5 | I185: 2.05 | J185: 2.05
B186: AGETOP_I | C186: 2902 | D186: FABRICAÇÃO / MONTAGEM | E186: un | F186: 1 | G186: 50.44 | H186: 50.44 | I186: 50.44 | J186: 50.44
B187: AGETOP_I | C187: 2150 | D187: CHAPA DE FERRO DOBRADA No.13 | E187: Kg | F187: 0.4352 | G187: 5.28 | H187: 5.28 | I187: 2.3 | J187: 2.3
B188: AGETOP_I | C188: 2719 | D188: CHAPA PERFILADA 3/16" | E188: Kg | F188: 1.098 | G188: 5.04 | H188: 5.04 | I188: 5.53 | J188: 5.53
B189: AGETOP_I | C189: 2436 | D189: ACO CA-25 - 6,3 MM (1/4") - BARRA LISA A-36 | E189: Kg | F189: 0.38125 | G189: 5.13 | H189: 5.13 | I189: 1.96 | J189: 1.96
B190: AGETOP | C190: 261602 | D190: PINT.ESMALTE/ESQUAD.FERRO C/FUNDO ANTICOR. | E190: m2 | F190: 0.78 | G190: 14.07 | H190: 15.51 | I190: 10.97 | J190: 12.1
B191: MATERIAL (C) - TOTAL | I191: 181.16 | J191: 182.29
A193: 82 | B193: FONTE | C193: CÓDIGO | D193: DESCRIÇÃO | E193: UNIDADE | F193: COEFIC. | G193: CUSTO UNITÁRIO | I193: CUSTO TOTAL (A) + (B) + (C) + (D) + (E)
G194: DESONERADO | H194: NÃO DESONER. | I194: DESONERADO | J194: NÃO DESONER.
B195: COMPOSIÇÃO | C195: COMP 082_SEE | D195: CORRIMÃO PAREDE - SEDUC | E195: M | I195: 121.38 | J195: 125.41
B196: AGETOP_I | C196: 25 | D196: OFICIAL "B" | E196: h | F196: 1 | G196: 13.95 | H196: 16.16 | I196: 13.95 | J196: 16.16
B197: AGETOP_I | C197: 8 | D197: AJUDANTE | E197: h | F197: 1 | G197: 8.75 | H197: 10.14 | I197: 8.75 | J197: 10.14
B198: MÃO DE OBRA (B) - TOTAL | I198: 22.7 | J198: 26.3
B199: AGETOP_I | C199: 2376 | D199: TUBO INDUSTRIAL 2" CHAPA 13 | E199: Kg | F199: 5.5248 | G199: 5.23 | H199: 5.23 | I199: 28.89 | J199: 28.89
B200: AGETOP_I | C200: 2504 | D200: TUBO INDUSTRIAL D=25 MM CHAPA 13 | E200: Kg | F200: 1.1 | G200: 5.07 | H200: 5.07 | I200: 5.58 | J200: 5.58
B201: AGETOP_I | C201: 2417 | D201: MASSA PLASTICA | E201: Kg | F201: 0.2041 | G201: 10.58 | H201: 10.58 | I201: 2.16 | J201: 2.16
B202: AGETOP_I | C202: 2246 | D202: ELETRODO 2.5 OK | E202: Kg | F202: 0.1146 | G202: 8.7 | H202: 8.7 | I202: 1 | J202: 1
B203: AGETOP_I | C203: 1672 | D203: LIXA PARA FERRO ( NÚMERO 100 ) | E203: un | F203: 0.125 | G203: 2.12 | H203: 2.12 | I203: 0.27 | J203: 0.27
B204: AGETOP_I | C204: 1264 | D204: DISCO DE DESBASTE 7/8" P/ CONC./FERRO (1/4" X 7") | E204: un | F204: 0.025 | G204: 7 | H204: 7 | I204: 0.18 | J204: 0.18
B205: AGETOP_I | C205: 1334 | D205: DISCO DE CORTE DIAM. 5/8"- 10" | E205: un | F205: 0.1865 | G205: 5.5 | H205: 5.5 | I205: 1.03 | J205: 1.03
B206: AGETOP_I | C206: 2902 | D206: FABRICAÇÃO / MONTAGEM | E206: un | F206: 1 | G206: 50.44 | H206: 50.44 | I206: 50.44 | J206: 50.44
B207: AGETOP_I | C207: 2719 | D207: CHAPA PERFILADA 3/16" | E207: Kg | F207: 0.72 | G207: 5.04 | H207: 5.04 | I207: 3.63 | J207: 3.63
B208: AGETOP_I | C208: 2436 | D208: ACO CA-25 - 6,3 MM (1/4") - BARRA LISA A-36 | E208: Kg | F208: 0.25 | G208: 5.13 | H208: 5.13 | I208: 1.28 | J208: 1.28
B209: AGETOP | C209: 261602 | D209: PINT.ESMALTE/ESQUAD.FERRO C/FUNDO ANTICOR. | E209: m2 | F209: 0.3 | G209: 14.07 | H209: 15.51 | I209: 4.22 | J209: 4.65
B210: MATERIAL (C) - TOTAL | I210: 98.68 | J210: 99.11
